Workbook

Sheet Instructivo
A2: =+A2:H15E15A2:H13A2:H19E15A2:H13A2:H26E15A2:H13A2A2:H35 ->  | B2: EVALUACIÓN INDEPENDIENTE SISTEMA DE CONTROL INTERNO (instrucciones para su diligenciamiento)
B6: Teniendo en cuenta que con la expedición del Decreto 1499 de 2017 “Por medio del cual se modifica el Decreto 1083 de 2015, Decreto Único Reglamentario del Sector Función Pública, en lo relacionado con el Sistema de Gestión establecido en el artículo 133 de la Ley 1753 de 2015”, se crea un solo Sistema de Gestión y se alinea con el Sistema de Control Interno, hoy todas las entidades públicas requieren actualizar y/o implementar el Modelo Integrado de Planeación y Gestión MIPG, modelo que incorpora el Modelo Estándar de Control Interno MECI a través de la 7a dimensión del mismo. Esta estructura requiere de un análisis articulado frente al desarrollo de las políticas de gestión y desempeño contenidas en el modelo y su efectividad en relación con la estructura de control, este útlimo, aspecto esecial para garantizar el buen manejo de los recursos, que las metas y objetivos se cumplan y se mejore la prestación del servicio a los usuarios, ejes fundamentales para la generación de valor público. Teniendo en cuenta lo anterior y dada la necesidad de dar cumplimiento a la dispuesto en el articulo 156 del Decreto 2106 de 2019, el presente formato busca que las entidades cuenten con una herramienta para evaluar sus Sistemas de Control Interno de manera integral y permitirle al Jefe de Control Interno o quien haga sus veces llevar a cabo el informe de evaluación independiente sobre el mismo para su publicación cada seis (6) meses, en el sitio web de la entidad.
B8: Orientaciones Generales
B9: El archivo contiene las siguientes hojas: - Pestañas por cada uno de los componentes de control interno: "Ambiente de Control", "Evaluación de riesgos", "Actividades de control", "Información y Comunicación", y " Actividades de Monitoreo". las cuales cuentan todas con la siguiente estructura:
C12: Columna | E12: Descripción
C13: Lineamiento X: | E13: Esta columna define los lineamientos generales para cada uno de los componentes del MECI y se asocian los temas específicos que se deben analizar en cada uno.
C14: DIMENSIÓN O POLÍTICA DEL MIPG ASOCIADA AL REQUERIMIENTO | E14: En esta columna se deben asociar la (las) dimensión (es), así como la (s) política (s) de gestión y desempeño que permiten el desarrollo del tema en la entidad, en el marco del Modelo Integrado de Planeación y Gestión MIPG.
C15: Evaluación "si se encuentra Presente" Referencia a Procesos, Manuales/Políticas de Operación/Procedimientos/Instructivos u otros desarrollos que den cuente de su aplicación | E15: Indicar el nombre del proceso, manual, política de operación, procedimiento o instructivo en donde se encuentra documentado y su fuente de consulta. De acuerdo con lo identificado como resultado de la evaluación del requerimiento, seleccione de la lista desplegable 1, 2 o 3 de acuerdo con las siguientes definiciones: 1 - No existen actividades diseñadas para cubrir el requerimiento. 2 - Existen actividades diseñadas o en proceso de diseño, pero éstas no se encuentran documentadas en las políticas/procedimientos u otras herramientas 3 - Las actividades se encuentran diseñadas, documentadas y socializadas de acuerdo con el requerimiento. Nota: Entiendase "diseñada" como aquella actividad que cuenta con un responsable(s), periodicidad (cada cuanto se realiza ), proposito (objetivo), Como se lleva a cabo (procedimiento), qué pasa con las desviaciones y/o excepciones (producto de su ejecucion) y cuenta con evidencia (documentacion).
C16: EVIDENCIA DEL CONTROL | D16: No. | E16: Relaciona el consecutivo de las evidencias que se identifican en relación con la efectividad del control.
D17: Referencia a Análisis y verificaciones en el marco del Comité Institucional de Coordinación de Control Interno | E17: Indicar las acciones que se han adelantado para evaluar el estado del Sistema de Control Interno en el marco del Comité Institucional de Coordinación de Control Interno. Acciones entendidas a las modificaciones, actualizaciones y actividades de fortalecimiento del sistema a partir de la normatividad vigente.
D18: Observaciones de la evaluacion independiente (tener encuenta papel de líneas de defensa) | E18: Indicar las acciones que se han adelantado en el marco de la evaluaciòn independiente (auditoria interna), sobre el estado del Sistema de Control Interno . Acciones entendidas en la evaluación y monitoreo de la efectividad del control, incluyendo el seguimiento a los controles de la primera y segunda linea de defensa.
C19: Evaluación "si se encuentra Funcionando" | E19: Seleccionar de la lista desplegable 1, 2 o 3 de acuerdo con los siguientes criterios y basado en los resultados reportados por la Oficina de Control Interno así: 1 - El control no opera como está diseñado o bien no está presente (no se ha implementado) 2 - El control opera como está diseñado pero con algunas falencias 3- El control opera como está diseñado y es efectivo frente al cumplimiento de los objetivos y para evitar la materialización del riesgo.
B21: - Análisis de Resultados: Esta hoja permite establecer si el Sistema de Control Interno evaluado se encuentra PRESENTE y FUNCIONANDO, permitiéndo definir puntos de mejora a través de los componentes del MECI y su articulacion con las Dimensiones del MIPG.
C23: Clasificación | D23: Descripción | F23: Observaciones del Control
C24: Mantenimiento del Control | D24: Cuando en el análisis de los requerimientos en los diferentes componentes del MECI se cuente con aspectos evaluados en nivel 3 (presente) y 3 (funcionando). | F24: Se encuentra presente y funciona correctamente, por lo tanto se requiere acciones o actividades dirigidas a su mantenimiento dentro del marco de las lineas de defensa.
C25: Oportunidad de Mejora | D25: Cuando en el análisis de los requerimientos en los diferentes componentes del MECI se cuente con aspectos evaluados en nivel 2 (presente) y 3 (funcionando). | F25: Se encuentra presente y funcionando, pero requiere mejoras frente a su diseño, ya que opera de manera efectiva
C26: Deficiencia de Control (Diseño o Ejecución) | D26: Cuando en el análisis de los requerimientos en los diferentes componentes del MECI se cuente con aspectos evaluados en nivel 2 (presente) y 2 (funcionando); 3 (presente) y 1 (funcionando); 3 (presente) y 2 (funcionando); 2 (presente) y 1 (funcionando) | F26: Se encuentra presente y funcionando, pero requiere acciones dirigidas a fortalecer o mejorar su diseño y/o ejecucion.
C27: Deficiencia de Control Mayor (Diseño y Ejecución) | D27: Cuando en el análisis de los requerimientos en los diferentes componentes del MECI se cuente con aspectos evaluados en nivel 1 (presente) y 1 (funcionando);1 (presente) y 2 (funcionando); 1(presente) y 3 (funcionando). | F27: No se encuentra presente por lo tanto no esta funcionando, lo que hace que se requieran acciones dirigidas a fortalecer su diseño y puesta en marcha
B30: - Conclusiones: Esta hoja permite establecer si el Sistema de Control Interno evaluado se encuentra PRESENTE y FUNCIONANDO, definiendo puntos de mejora a través de los componentes del MECI y su relación con las Dimensiones del MIPG.
B32: - Definiciones: Algunos términos asociados a con control interno y utilizados en diferentes partes del formato.

Sheet Definiciones
B2: Términos y Definiciones
B4: Término | C4: Descripción
B5: Actividad de control | C5: Acciones establecidas en los procesos, políticas, procedimientos u otras herramientas que permiten que se lleven a cabo las instrucciones de la Administración para mitigar los riesgos relacionados con el logro de los objetivos. Las Actividades de Control son un Componente del Control Interno.
B6: Alta Dirección | C6: Comprende los empleos del Nivel Directivo a los cuales corresponden funciones de dirección general, de formulación de políticas institucionales y de adopción de planes, programas y proyectos. (Decreto 770 de 2005)
B7: Ambiente de control | C7: El ambiente de control establece el tono de una organización. Es la base de los otros componentes del control interno pues define los valores y principios con los cuales se rige la entidad e influye en la conciencia de los servidores sobre la forma en que se deben llevar a cabo las operaciones.
B8: Comité Institucional de Coordinación de Control Interno | C8: Instancia del más alto nivel jerárquico, creado como órgano asesor e instancia decisora en los asuntos de control interno, de oblgatoria conformación para todas las entidades estatales. (Ley 87 de 1993, art 13 y Decreto 648 de 2017).
B9: Comité Institucional de Gestión y Desempeño | C9: Instancia del más alto nivel jerárquico, encargado de orientar la implementación y operación del Modelo Integrado de Planeación y Gestión MIPG, de oblgatoria conformación para todas las entidades estatales. (Decreto 1499 de 2017).
B10: Componente | C10: Uno de los cinco elementos del Modelo Estándar de Control Interno MECI.
B11: Conflicto de interés | C11: Situación en la cual un auditor interno, que ocupa un puesto de confianza, tiene interés personal o profesional en competencia con otros intereses. Tales intereses pueden hacerle difícil el cumplimiento imparcial de sus tareas. (Tomado de las Normas Internacionales de Auditoría Interna Norma 1120) En el sector público el conflicto de interés existe cuando el interés personal de quien ejerce una función pública colisiona con los deberes y obligaciones del cargo que desempeña. (Guía Conflictos de Interés de Servidores Públicos. Función Pública. 2018).
B12: Control Interno | C12: Estructura de procesos, políticas, procedimientos, manuales y otras herramientas diseñadas por la entidad para proporcionar seguridad razonable de que los objetivos y metas se alcanzarán y que los eventos no deseados se evitaran o bien se detectaran y corregirán.
B13: Control interno efectivo | C13: El Sistema de Control Interno para que sea efectivo requiere que cada uno de los cinco componentes del MECI y sus lineamientos, estén presentes, funcionando y operando de manera articulada con el MIPG.
B14: Controles generales de TI | C14: Actividades de control que ayudan a asegurar la apropiada operación de la tecnología, incluyen los controles sobre la infraestructura de tecnología, seguridad de la información, adquisición de tecnología su desarrollo y mantenimiento.
B15: Corrupción | C15: Posibilidad de que por acción u omisión, se use el poder para desviar la gestión de lo público hacia un beneficio privado. (Secretaría de Transparencia)
B16: COSO | C16: Committe of Sponsoring Organizations of the Treadway Commission (por sus siglas en inglés). COSO es una iniciativa conjunta de cinco organizaciones del sector privado y se dedica a liderar el desarrollo de marcos y guías en control interno y gestión de riesgos.
B17: Cumplimiento | C17: Esta relacionado con el cumplimiento a las leyes y regulaciones aplicables a la Entidad.
B18: Deficiencia de control | C18: Es una falla con respecto a un control particular o actividad de control.
B19: Deficiencia del Sistema de control interno | C19: Se asocia a fallas o brechas en un componente o componentes y sus lineamientos que tiene la capacidad para generar riesgos.
B20: Evaluación de Riesgos | C20: Proceso que permite a cada entidad identificar, analizar y administrar riesgos relevantes para el logro de sus objetivos.
B21: Evaluaciones continuas | C21: Corresponden a actividades (manuales o automáticas) que sirven para monitorear la efectividad del control interno en el día a día de las operaciones. Estas evaluaciones incluyen actos regulares de administración, comparaciones, conciliaciones y otras acciones rutinarias.
B22: Evaluaciones separadas | C22: Incluye autoevaluaciones, en las que las personas responsables por una unidad o función particular (2a línea de defensa) determinan la efectividad de los controles para sus actividades clave para el logro de los objetivos institucionales. Así mismo, se incluyen las evaluaciones realizadas por las Auditorías (interna y externa).
B23: Funcionando | C23: La determinación que los componentes y lineamientos son aplicados de forma sistemática como han sido diseñados y es posible analizar su efectividad para evitar la materialización de riesgos, mediante el contraste de información relevante.
B24: Integridad | C24: El economista estadounidense Anthony Downs “la integridad consiste en la coherencia entre las declaraciones y las realizaciones[1]”, entendiéndose esta como una característica personal, que en el sector público también se refiere al cumplimiento de la promesa que cada servidor le hace al Estado y a la ciudadanía de ejercer a cabalidad su labor. (Tomado micrositio MIPG, Dimensión Talento Humano).
B25: Lineamiento | C25: Especificaciones fundamentales asociadas a cada uno de los componentes del MECI que permitirán establecer la efectividad del Sistema de Control Interno.
B26: Mantenimieto del Control | C26: Verificar periodicamente el control y ante cambios en el entorno externo o interno realizar los ajustes correspondientes o incluir un nuevo control
B27: Mapa de riesgos | C27: Herramiento cualitativa que permite identificar los riesgos de la organización en el cual se presenta una descripción de cada uno de ellos y su tratamiento.
B28: Oportunidad de Mejora | C28: Hallazgo en el cual sí existe un cumplimiento, pero a pesar de ello se determina, bajo criterios objetivos, que existe un margen de mejora para optimizar más una actividad, tarea o proceso concreto.
B29: Política | C29: Declaración emitida por la administración acerca de lo que debe hacerse para el control. Las políticas son la base para la definición de procedimientos.
B30: Presente | C30: La determinación que existen en diseño e implementación de los requerimientos asociados a las políticas de gestión y desempeño.
B31: Procedimiento | C31: Actividades desagregadas que implementan una política o determinan acciones concretas para la consecución de un objetivo o meta.
B32: Reporte | C32: Información suministrada por diferentes instancias de la entidad, que incluye datos internos y externos, así como información financiera y no financiera, necesaria para la toma de decisiones.
B33: Riesgo | C33: La posibilidad de que un evento ocurra y afecte de manera adversa el logro de los objetivos.
B34: Riesgo inherente | C34: El riesgo frente al logro de los objetivos en ausencia de cualquier acción por parte de la administración para afectar el impacto o probabilidad de dicho riesgo.
B35: Riesgo residual | C35: El riesgo frente al logro de los objetivos que permanece una vez la respuesta al riesgo ha sido diseñada e implementada por parte de la administración.
B36: Segregación de Funciones | C36: Se refiere a la asignación de las responsabilidades con diferentes niveles de autorización con el fin de reducir errores o posibles situaciones de corrupción durante el normal desarrollo de sus funciones.
B37: Seguridad razonable | C37: Determina que no importa que tan bien esté diseñado e implementado el control interno, no se puede garantizar que los objetivos de la entidad se van a cumplir. Esto por las limitaciones inherentes de todo Sistemas de Control Interno.
B38: Evaluación Independiente | C38: Se entiende como las prácticas de examen al control interno y ejercicio de auditoría llevadas a cabo por la oficina de control interno o quien haga sus veces, teniendo en cuenta las normas de auditoria generalmente aceptadas.
B39: Lineas de Defensa | C39: Esquema de asignación de responsabilidades, adaptada del Modelo de las 3 Líneas de Defensa” del Instituto de Auditores, el cual proporciona una manera simple y efectiva para mejorar las comunicaciones en la gestión de riesgos y control mediante la aclaración de las funciones y deberes esenciales relacionados, que permiten contar con diferentes niveles para el control.

Sheet Ambiente de Control
C18: AMBIENTE DE CONTROL
C19: La entidad debe asegurar un ambiente de control que le permita disponer de las condiciones mínimas para el ejercicio del control interno. Esto se logra con el compromiso, liderazgo y los lineamientos de la alta dirección y del Comité Institucional de Coordinación de Control Interno. El Ambiente de Control es el fundamento de todos los demás componentes del control interno, se incluyen la integridad y valores éticos, la competencia (capacidad) de los servidores de la entidad; la manera en que la Alta Dirección asigna autoridad y responsabilidad, así como también el direccionamiento estratégico definido.
B21: ID | C21: Lineamiento 1: La entidad demuestra el compromiso con la integridad (valores) y principio+I186+C21:I31+I186+C21:I31+C21:I31+C21:I31 | D21: Explicación de cómo la Entidad evidencia que está dando respuesta al requerimiento Referencia a Procesos, Manuales/Políticas+C21:I31n/Procedimientos/Instructivos u otros desarrollos que den cuente de su aplicación | E21: Explicación de cómo la Entidad evidencia que está dando respuesta al requerimiento Referencia a Procesos, Manuales/Políticas de Operación/Procedimientos/Instructivos u otros desarrollos que den cuente de su aplicación | F21: Presente (1/2/3) | G21: EVIDENCIA DEL CONTROL | J21: Funcionando (1/2/3) | K21: Evaluación
G22: No. | H22: Referencia a Análisis y verificaciones en el marco del Comité Institucional de Coordinación de Control Interno | I22: Observaciones de la evaluacion independiente (tener encuenta papel de líneas de defensa)
A24: EJEMPLO | B24: =+LEFT(C24,3) -> Ap | C24: Aplicación del Código de Integridad. (incluye análisis de desviaciones, convivencia laboral, temas disciplinarios internos, quejas o denuncias sobres los servidores de la entidad, u otros temas relacionados). | D24: Dimensión Talento Humano Política Integridad | E24: Se implementó el Código de Integridad acorde con el esquema definido de 5 valores y sus lineamientos de conducta y se desarrollaron ejercicios internos con talleres para la socialización e interiorización a todos los servidores y contratistas de la entidad. | F24: 1 | G24: 1 | H24: Seguimiento al cumplimiento de la elaboración y socialización del Código de Integridad, con base en el informe presentando por la segunda línea de defensa (cuando aplique). | I24: Se llevo a cabo un seguimiento a lo dispuesto en el marco del Comité Institucional de Coordinación de Control Interno, donde se determino la necesidad de estructurar el código de integridad siguiendo la metodología de Función Pública, para ello se delego como responsable del mismo al Secretario General. Se encontró que se realizaron ejercicios lúdicos y participativos para la construcción de los 5 valores institucionales, cada mes se hacen campañas de interiorización de los mismo al personal de la entidad, teniendo como evidencia el compromiso de los funcionarios con el horario laboral, una reducción del ausentismo así como un bajo porcentaje de quejas por parte de los ciudadanos. Por otra parte, se realiza seguimiento mensual por parte del Secretario General al cumplimiento de las actividades propuestas en el cronograma. | J24: 3 | K24: =+IF(OR(ISBLANK(F24),ISBLANK(J24)),"",IF(OR(AND(F24=1,J24=1),AND(F24=1,J24=2),AND(F24=1,J24=3)),"Deficiencia de control mayor (diseño y ejecución)",IF(OR(AND(F24=2,J24=2),AND(F24=3,J24=1),AND(F24=3,J24=2),AND(F24=2,J24=1)),"Deficiencia de control (diseño o ejecución)",IF(AND(F24=2,J24=3),"Oportunidad de mejora","Mantenimiento del control")))) -> Deficiencia de control mayor (diseño y ejecución)
G25: 2 | H25: En el marco del Comité Institucional de Control Interno bimensualmente se contrastan quejas internas y externas sobre situaciones irregulares.
G26: 3 | H26: Se han analizado los temas más críticos acerca en relación con el ausentismo, acoso laboral, solicitudes de traslado y rotación del personal.
G27: 4
G28: 5
G29: 6
G30: 7
G31: 8
B32: =+LEFT(C32,3) -> 1.1 | C32: 1.1 Aplicación del Código de Integridad. (incluye análisis de desviaciones, convivencia laboral, temas disciplinarios internos, quejas o denuncias sobres los servidores de la entidad, u otros temas relacionados). | D32: Dimensión Talento Humano Política Integridad | E32: Publicacion en la intranet del Codigo de Integridad, se realizaron socializaciones y capacitaciones articuladas entre los Gestores de Integridad y la Oficina de Control Interno Disciplinario, asi como la socializacion enfocada a la promocion de los valores institucionales a traves de los canales internos de comunicacion. Evidencias: https://intranet.idt.gov.co/gestores-de-integridad https://drive.google.com/drive/folders/1IFadqeLE_mEVqEmspcLHtcs_SdaJkQXh | F32: 3 | G32: 1 | H32: Para el primer semestre de la vigencia 2025 , la Asesoría de Control Interno realizo la evaluación de programas éticos del Instituto Distrital de Turismo y actividades relacionadas con la ética. | I32: NA | J32: 3 | K32: =+IF(OR(ISBLANK(F32),ISBLANK(J32)),"",IF(OR(AND(F32=1,J32=1),AND(F32=1,J32=2),AND(F32=1,J32=3)),"Deficiencia de control mayor (diseño y ejecución)",IF(OR(AND(F32=2,J32=2),AND(F32=3,J32=1),AND(F32=3,J32=2),AND(F32=2,J32=1)),"Deficiencia de control (diseño o ejecución)",IF(AND(F32=2,J32=3),"Oportunidad de mejora","Mantenimiento del control")))) -> Mantenimiento del control | L32: =+IF(K32="",0,IF(K32="Deficiencia de control mayor (diseño y ejecución)",4,IF(K32="Deficiencia de control (diseño o ejecución)",20,IF(K32="Oportunidad de mejora",40,60)))) -> 60 | M32: 0.04587 | N32: =+L32+M32 -> 60.05
G33: 2
G34: 3
G35: 4
G36: 5
G37: 6
G38: 7
G39: 8
B40: =+LEFT(C40,3) -> 1.2 | C40: 1.2 Mecanismos para el manejo de conflictos de interés. | D40: Dimensión Talento Humano Política Integridad | E40: De acuerdo al seguimiento implementado, el día 30 de mayo se envió al personal de planta un memorando de la Subdirección de Gestión Corporativa "Obligación de publicación proactiva de declaración de bienes y rentas, Declaración de conflicto de conflictos de interés en SIDEAP, en el cual se recuerda a los servidores la obligatoriedad de presentar su declaración de bienes y rentas y de conflicto de intereres. Evidencias: https://drive.google.com/drive/u/0/folders/1SVGMkADmhjXIohT3W2Fuuq0C6azaNvy0 | F40: 3 | G40: 1 | H40: Para lo descrito por el proceso se logra identificar su cumplimiento, de acuerdo a los soportes suministrados (documento, link, correo, etc que soporte la explicación) | I40: N/A | J40: 3 | K40: =+IF(OR(ISBLANK(F40),ISBLANK(J40)),"",IF(OR(AND(F40=1,J40=1),AND(F40=1,J40=2),AND(F40=1,J40=3)),"Deficiencia de control mayor (diseño y ejecución)",IF(OR(AND(F40=2,J40=2),AND(F40=3,J40=1),AND(F40=3,J40=2),AND(F40=2,J40=1)),"Deficiencia de control (diseño o ejecución)",IF(AND(F40=2,J40=3),"Oportunidad de mejora","Mantenimiento del control")))) -> Mantenimiento del control | L40: =+IF(K40="",0,IF(K40="Deficiencia de control mayor (diseño y ejecución)",4,IF(K40="Deficiencia de control (diseño o ejecución)",20,IF(K40="Oportunidad de mejora",40,60)))) -> 60 | M40: 0.05569 | N40: =+L40+M40 -> 60.06
G41: 2
G42: 3
G43: 4
B44: =+LEFT(C44,3) -> 1.3 | C44: 1.3 Mecanismos frente a la detección y prevención del uso inadecuado de información privilegiada u otras situaciones que puedan implicar riesgos para la entidad. | D44: Dimensión Información y Comunicación Política Transparencia y Acceso a la Información Pública Política Gestión Documental | E44: Desde el proceso de Gestión Tecnológica se cuenta con el Manual de Polítias para la Administración y Uso de las Tecnologías de la Información y la Comunicación (TIC) GT-M03, el objetivo del documento es principalmente la definición de las Políticas Institucionales respecto al uso responsable de los sistemas de Información del Instituto Distrital de Turismo. De igual forma se continúa con las directrices, lineamientos y acciones establecidas en el Manual Estratégico de Comunicaciones, del proceso de Comunicaciones lo cual permite como su objetivo lo establece visibilizar la efectividad de la gestión institucional adelantada, a través de la comunicación interna, externa y digital. A partir de lo establecido en el Manual Reglamento Interno de Archivo, el cual suministra a los funcionarios y/o contratistas del Instituto, un instrumento mediante el cual se dictan una serie de pautas del que hacer archivistico que permiten alto desempeño en las tareas archivísticas al interior de la entidad. Asi mismo se cuenta con los lineamientos que permitan cumplir con el Programa de Gestión Documental, el IDT cuenta con el instructivo para la producción documental y gestión de correspondencia, su objetivo es establecer dichos lineamientos que permitan cumplir con el Programa de Gestión Documental, para la producción, recepción distribución, seguimiento y consulta de los documentos. El procedimiento "Consulta y Préstamo de Documentos" tiene como objetivo: Brindar el servicio de consulta y préstamo de los documentos que custodia el Archivo Central de las diferentes dependencias del Instituto Distrital de Turismo - IDT, estableciendo directrices que regulen las solicitudes, con el fin de atender las necesidades de los servidores referente a la consulta de documentos, de forma oportuna, facilitando el acceso a la información. Evidencias: GT-M03 Manual de políticas para la administración y uso de las tecnologías de la información y la comunicación (TIC), link: https://intranet.idt.gov.co/sites/default/files/2025-05/GT-M03_Manual_Politicas_Administracion_y_Uso_DTI_V7_30042025.pdf CO - M01 Manual Estratégico de Comunicaciones, link: https://intranet.idt.gov.co/sites/default/files/2023-06/CO-M01%20Manual%20Estrategico%20de%20Comunicaciones%20V8%2030052023.pdf GD - M01 Manual Reglamento Interno de Archivo, link: chrome-extension://efaidnbmnnnibpcajpcglclefindmkaj/https://intranet.idt.gov.co/sites/default/files/2023-11/GD-M01%20Reglamento%20Interno%20de%20Archivo%20V4%2031052023.pdf GD I06 Intructivo para la producción documental y gestión de correspondencia, link: https://intranet.idt.gov.co/sites/default/files/2022-12/Instructivo%20para%20la%20producción%20documental%20y%20gestión%20de%20correspondencia%20V5%2030112022.pdf GD - P13 Consulta y préstamo de documentos, link:https://intranet.idt.gov.co/sites/default/files/2023-07/GD-P13%20Consulta%20y%20Préstamo%20de%20Documentos%20V5%2030052023_0.pdf | F44: 3 | G44: 1 | H44: Para lo descrito por el proceso se logra identificar su cumplimiento, de acuerdo a los soportes suministrados (documento, link, correo, etc que soporte la explicación) | I44: N/A | J44: 3 | K44: =+IF(OR(ISBLANK(F44),ISBLANK(J44)),"",IF(OR(AND(F44=1,J44=1),AND(F44=1,J44=2),AND(F44=1,J44=3)),"Deficiencia de control mayor (diseño y ejecución)",IF(OR(AND(F44=2,J44=2),AND(F44=3,J44=1),AND(F44=3,J44=2),AND(F44=2,J44=1)),"Deficiencia de control (diseño o ejecución)",IF(AND(F44=2,J44=3),"Oportunidad de mejora","Mantenimiento del control")))) -> Mantenimiento del control | L44: =+IF(K44="",0,IF(K44="Deficiencia de control mayor (diseño y ejecución)",4,IF(K44="Deficiencia de control (diseño o ejecución)",20,IF(K44="Oportunidad de mejora",40,60)))) -> 60 | M44: 0.066896 | N44: =+L44+M44 -> 60.067
G45: 2
G46: 3
G47: 4
G48: 5
G49: 6
G50: 7
G51: 8
B52: =+LEFT(C52,3) -> 1.4 | C52: 1.4 La evaluación de las acciones transversales de integridad, mediante el monitoreo permanente de los riesgos de corrupción. | D52: Dimension Talento Humano Politica de Integridad | E52: Se realiza seguimiento cuatrimestral a la gestión de riesgos tanto de corrupción como de gestión por parte de la Asesoría de Control Interno, en donde se verifican cada uno de los riesgos presentes en los procesos, y en los que se incluyen los procesos que intervienen con las acciones de integridad. Evidencia: Seguimiento riesgos https://www.idt.gov.co/seguimientos | F52: 3 | G52: 1 | H52: En el marco del comite llevados a cabo durante el primer semestre de la vigencia 2025, se expuso la gestión de riesgos de la entidad en donde se contemplaban los riesgos de corrupción, los cuales tienen relación con las acciones de integridad presentes en el IDT. | J52: 3 | K52: =+IF(OR(ISBLANK(F52),ISBLANK(J52)),"",IF(OR(AND(F52=1,J52=1),AND(F52=1,J52=2),AND(F52=1,J52=3)),"Deficiencia de control mayor (diseño y ejecución)",IF(OR(AND(F52=2,J52=2),AND(F52=3,J52=1),AND(F52=3,J52=2),AND(F52=2,J52=1)),"Deficiencia de control (diseño o ejecución)",IF(AND(F52=2,J52=3),"Oportunidad de mejora","Mantenimiento del control")))) -> Mantenimiento del control | L52: =+IF(K52="",0,IF(K52="Deficiencia de control mayor (diseño y ejecución)",4,IF(K52="Deficiencia de control (diseño o ejecución)",20,IF(K52="Oportunidad de mejora",40,60)))) -> 60 | M52: 0.06691 | N52: =+L52+M52 -> 60.0669
G53: 2
G54: 3
G55: 4
G56: 5
G57: 6
G58: 7
G59: 8
B60: =+LEFT(C60,3) -> 1.5 | C60: 1.5 Análisis sobre viabilidad para el establecimiento de una línea de denuncia interna sobre situaciones irregulares o posibles incumplimientos al código de integridad. NOTA: Si la entidad ya cuenta con esta línea en funcionamiento, establecezca si ha aportado para la mejora de los mapas de riesgos o bien en otros ámbitos organizacionales. | D60: Dimensión Direccionamiento Estratégico y Planeación Plan Anticorrupción y de Atención al Ciudadano | E60: Se cuenta con un Equipo de Gestores de Integridad, quienes fomentan la transparencia, buenas prácticas y promueven los valores de nuestro Código de Integridad. En el espacio de la intranet encontramos información acerca de la gestión de este grupo. Cabe resaltar el componente 7 "Promocion de la integridad y etica publica" que tiene el Programa de Transparencia y Etica Pública el cual muestra las actividades que el equipo de Gestores de Integridad realiza en la vigencia. Para denunciar de manera reservada y oportuna cualquier acto de corrupción la entidad cuenta con el siguiente correo eléctronico: codigointegridad@idt.gov.co. De otra parte contamos con el botón "Denuncie Actos de Corrupción", donde se pueden reportar situaciones irregulares o incumplimientos al Código de Integridad. Evidencias: Micrositio en la intranet: https://intranet.idt.gov.co/gestores-de-integridad https://www.idt.gov.co/ botón Denuncie Actos de Corrupción. https://www.idt.gov.co/index.php/es/transparencia-y-acceso-la-informacion 4.3.3. Programa de Transparencia y Ética Pública https://bogota.gov.co/sdqs/denuncias-por-actos-de-corrupcion | F60: 3 | G60: 1 | H60: Para lo descrito por el proceso se logra identificar su cumplimiento, de acuerdo a los soportes suministrados (documento, link, correo, etc que soporte la explicación) | I60: NA | J60: 3 | K60: =+IF(OR(ISBLANK(F60),ISBLANK(J60)),"",IF(OR(AND(F60=1,J60=1),AND(F60=1,J60=2),AND(F60=1,J60=3)),"Deficiencia de control mayor (diseño y ejecución)",IF(OR(AND(F60=2,J60=2),AND(F60=3,J60=1),AND(F60=3,J60=2),AND(F60=2,J60=1)),"Deficiencia de control (diseño o ejecución)",IF(AND(F60=2,J60=3),"Oportunidad de mejora","Mantenimiento del control")))) -> Mantenimiento del control | L60: =+IF(K60="",0,IF(K60="Deficiencia de control mayor (diseño y ejecución)",4,IF(K60="Deficiencia de control (diseño o ejecución)",20,IF(K60="Oportunidad de mejora",40,60)))) -> 60 | M60: 0.073569 | N60: =+L60+M60 -> 60.07
G61: 2
G62: 3
G63: 4
G64: 5
G65: 6
G66: 7
G67: 8
C68: Lineamiento 2: Aplicación de mecanismos para ejercer una adecuada supervisión del Sistema de Control Interno | D68: DIMENSIÓN O POLÍTICA DEL MIPG ASOCIADA AL REQUERIMIENTO | E68: Explicación de cómo la Entidad evidencia que está dando respuesta al requerimiento Referencia a Procesos, Manuales/Políticas de Operación/Procedimientos/Instructivos u otros desarrollos que den cuente de su aplicación | F68: Presente (1/2/3) | G68: EVIDENCIA DEL CONTROL | J68: Funcionando (1/2/3) | K68: Evaluación
G69: No. | H69: Referencia a Análisis y verificaciones en el marco del Comité Institucional de Coordinación de Control Interno | I69: Observaciones de la evaluacion independiente (tener encuenta papel de líneas de defensa)
B71: =+LEFT(C71,3) -> 2.1 | C71: 2.1 Creación o actualización del Comité Institucional de Coordinación de Control Interno (incluye ajustes en periodicidad para reunión, articulación con el Comité Institucional de Gestión y Desempeño). | D71: Dimension Control Interno Politica de Control Interno | E71: Por medio de la resolución 129 de 26 de julo de 2018 “por la cual se crea el Comité Institucional de Coordinación de Control Interno del Instituto Distrital de Turismo y se establece su reglamento” se definen sus funciones y específicamente en la función No.16 establece: “Analizar las recomendaciones del Comité Institucional y Desempeño en relación con las políticas de Gestión y desempeño que puedan generar cambios o ajustes a estructura de control de la Entidad” Mediante la Resolución 023 del 20 de febrero de 2025 “Por la cual se actualizan y modifican disposiciones sobre conformación del Comité Institucional de Coordinación de Control Interno del Instituto Distrital de Turismo creado por la Resolución 129 de 2018, modificada por la Resolución 052 de 31 de marzo de 2022 y la Resolución 011 de 2023” Esta resolucion modifica lo concerniente a la integración del comite. Evidencia: https://www.alcaldiabogota.gov.co/sisjur/normas/Norma1.jsp?i=175302 Resolución 129 de 26 de julo de 2018 - https://www.alcaldiabogota.gov.co/sisjur/normas/Norma1.jsp?i=88329 | F71: 3 | G71: 1 | H71: Dentro de los comités de CICCI se evidencia la articulación con el Comité Institucional y Desempeño y se evidencia el cumplimiento de la periodicidad en las sesiones, al llevar a cabo sesiones para la vigencia 2025. | I71: Continuar con la articulación entre el Comité Institucional de Coordinación de Control Interno y el Comité de Desempeño. | J71: 3 | K71: =+IF(OR(ISBLANK(F71),ISBLANK(J71)),"",IF(OR(AND(F71=1,J71=1),AND(F71=1,J71=2),AND(F71=1,J71=3)),"Deficiencia de control mayor (diseño y ejecución)",IF(OR(AND(F71=2,J71=2),AND(F71=3,J71=1),AND(F71=3,J71=2),AND(F71=2,J71=1)),"Deficiencia de control (diseño o ejecución)",IF(AND(F71=2,J71=3),"Oportunidad de mejora","Mantenimiento del control")))) -> Mantenimiento del control | L71: =+IF(K71="",0,IF(K71="Deficiencia de control mayor (diseño y ejecución)",4,IF(K71="Deficiencia de control (diseño o ejecución)",20,IF(K71="Oportunidad de mejora",40,60)))) -> 60 | M71: 0.0889653 | N71: =+L71+M71 -> 60.09
G72: 2
G73: 3
G74: 4
G75: 5
G76: 6
G77: 7
G78: 8
B79: =+LEFT(C79,3) -> 2.2 | C79: 2.2 Definición y documentación del Esquema de Líneas de Defensa | D79: Dimension Control Interno Politica de Control Interno Lineas de defensa | E79: Se tiene implementada la Politica para la Administracion del Riesgo del IDT, la cual en el capitulo 5 identifica los Roles y líneas de defensa. Evidencias: DE-P01 politica para la Administracion del Riesgo https://intranet.idt.gov.co/sites/default/files/2023-12/SIG-P01%20Politica%20de%20Administraci%C3%B3n%20del%20Riesgo%20V5%2014122023.pdf | F79: 3 | G79: 1 | H79: Para lo descrito por el proceso se logra identificar su cumplimiento, de acuerdo a los soportes suministrados (documento, link, correo, etc que soporte la explicación) | I79: N/A | J79: 3 | K79: =+IF(OR(ISBLANK(F79),ISBLANK(J79)),"",IF(OR(AND(F79=1,J79=1),AND(F79=1,J79=2),AND(F79=1,J79=3)),"Deficiencia de control mayor (diseño y ejecución)",IF(OR(AND(F79=2,J79=2),AND(F79=3,J79=1),AND(F79=3,J79=2),AND(F79=2,J79=1)),"Deficiencia de control (diseño o ejecución)",IF(AND(F79=2,J79=3),"Oportunidad de mejora","Mantenimiento del control")))) -> Mantenimiento del control | L79: =+IF(K79="",0,IF(K79="Deficiencia de control mayor (diseño y ejecución)",4,IF(K79="Deficiencia de control (diseño o ejecución)",20,IF(K79="Oportunidad de mejora",40,60)))) -> 60 | M79: 0.0989653 | N79: =+L79+M79 -> 60.10
G80: 2
G81: 3
G82: 4
G83: 5
G84: 6
G85: 7
G86: 8
B87: =+LEFT(C87,3) -> 2.3 | C87: 2.3 Definición de líneas de reporte en temas clave para la toma de decisiones, atendiendo el Esquema de Líneas de Defensa | D87: Dimension Control Interno Politica de Control Interno Linea de Defensa Dimension de Informaciòn y Comunicaciòn | E87: La política administración del riesgo, en la actualidad se encuentra publicada y establece el marco general para la administración de los riesgos y que puedan afectar el logro de los planes estratégicos, junto con la metas previstas para cumplir con la visión de la entidad. De manera cuatrimestral se revisa el mapa de riesgos de la entidad, donde se incluyen las actualizaciones correspondientes, se incluyen nuevos riesgos y se revisan los controles y el cumplimiento de acciones asociadas a los riesgos. El mapa de riesgos se encuentra publicado en el aplicativo de riesgos de la entidad publicado en la intranet y se puede verificar en el aplicativo de riesgos donde cada usuario junto con la Asesoría de Control interno y la Subdirección de Planeación cuentan con usuario para realizar las verificaciones correspondientes. De otra parte se viene dando continuidad al Mapa de Aseguramiento de la entidad, el cual fué revisado y actualizado para la presente vigencia Evidencias: DE-PO1 Polìtica Administración del Riesgos, link: https://intranet.idt.gov.co/sites/default/files/2023-12/SIG-P01%20Politica%20de%20Administraci%C3%B3n%20del%20Riesgo%20V5%2014122023.pdf Mapa de riesgos de la entidad link: http://186.28.253.174/ https://www.idt.gov.co/es/matriz-riesgos-4331 Mapa de aseguramiento de la entidad, disponible en Evaluación institucional en la sección Registros, link: https://intranet.idt.gov.co/es/evaluacion-institucional-0 | F87: 3 | G87: 1 | H87: En el marco de los comites llevados a cabo durante el primer semestre de la vigencia se exousieron los resultados del informe de seguimiento a los riesgos tanto de gestión como de corrupción y en donde se evidencian los roles de cada una de las líneas de defensa para la mitigación de los mismos. | I87: N/A | J87: 3 | K87: =+IF(OR(ISBLANK(F87),ISBLANK(J87)),"",IF(OR(AND(F87=1,J87=1),AND(F87=1,J87=2),AND(F87=1,J87=3)),"Deficiencia de control mayor (diseño y ejecución)",IF(OR(AND(F87=2,J87=2),AND(F87=3,J87=1),AND(F87=3,J87=2),AND(F87=2,J87=1)),"Deficiencia de control (diseño o ejecución)",IF(AND(F87=2,J87=3),"Oportunidad de mejora","Mantenimiento del control")))) -> Mantenimiento del control | L87: =+IF(K87="",0,IF(K87="Deficiencia de control mayor (diseño y ejecución)",4,IF(K87="Deficiencia de control (diseño o ejecución)",20,IF(K87="Oportunidad de mejora",40,60)))) -> 60 | M87: 0.15698 | N87: =+L87+M87 -> 60.16
G88: 2 | H88: Para lo descrito por el proceso se logra identificar su cumplimiento, de acuerdo a los soportes suministrados (documento, link, correo, etc que soporte la explicación)
G89: 3
G90: 4
G91: 5
G92: 6
G93: 7
G94: 8
C95: Lineamiento 3: Establece la planeación estratégica con responsables, metas, tiempos que faciliten el seguimiento y aplicación de controles que garanticen de forma razonable su cumplimiento. Así mismo a partir de la política de riesgo, establecer sistemas de gestión de riesgos y las responsabilidades para controlar riesgos específicos bajo la supervisión de la alta dirección. | D95: DIMENSIÓN O POLÍTICA DEL MIPG ASOCIADA AL REQUERIMIENTO | E95: Explicación de cómo la Entidad evidencia que está dando respuesta al requerimiento Referencia a Procesos, Manuales/Políticas de Operación/Procedimientos/Instructivos u otros desarrollos que den cuente de su aplicación | F95: Presente (1/2/3) | G95: EVIDENCIA DEL CONTROL | J95: Funcionando (1/2/3) | K95: Evaluación
G96: No. | H96: Referencia a Análisis y verificaciones en el marco del Comité Institucional de Coordinación de Control Interno | I96: Observaciones de la evaluacion independiente (tener encuenta papel de líneas de defensa)
B98: =+LEFT(C98,3) -> 3.1 | C98: 3.1 Definición y evaluación de la Política de Administración del Riesgo (Acorde con lineamientos de la Guía para la Administración del Riesgo de Gestión y Corrupción y Diseño de Controles en Entidades Públicas). La evaluación debe considerar su aplicación en la entidad, cambios en el entorno que puedan defnir ajustes, dificultades para su desarrollo. | D98: Dimension de Direccionamiento Estrategico y Planeaciòn Politica de Planeaciòn Institucional Dimension Control Interno | E98: Se tiene implementada la politica para la Administracion del Riesgo del IDT, la cual establece la metodología de la administración del riesgo para el IDT, definida a partir de la misión, visión y los objetos estratégicos proyectados para el cuatrienio 2024 – 2028, y atendiendo las disposiciones de la Guía para la administración del riesgo. Evidencias: DE-P01 Polìtica Administración del Riesgos, link: https://intranet.idt.gov.co/sites/default/files/2023-12/SIG-P01%20Politica%20de%20Administraci%C3%B3n%20del%20Riesgo%20V5%2014122023.pdf | F98: 3 | G98: 1 | H98: Para lo descrito por el proceso se logra identificar su cumplimiento, de acuerdo a los soportes suministrados (documento, link, correo, etc que soporte la explicación) | I98: NA | J98: 3 | K98: =+IF(OR(ISBLANK(F98),ISBLANK(J98)),"",IF(OR(AND(F98=1,J98=1),AND(F98=1,J98=2),AND(F98=1,J98=3)),"Deficiencia de control mayor (diseño y ejecución)",IF(OR(AND(F98=2,J98=2),AND(F98=3,J98=1),AND(F98=3,J98=2),AND(F98=2,J98=1)),"Deficiencia de control (diseño o ejecución)",IF(AND(F98=2,J98=3),"Oportunidad de mejora","Mantenimiento del control")))) -> Mantenimiento del control | L98: =+IF(K98="",0,IF(K98="Deficiencia de control mayor (diseño y ejecución)",4,IF(K98="Deficiencia de control (diseño o ejecución)",20,IF(K98="Oportunidad de mejora",40,60)))) -> 60 | M98: 0.28965 | N98: =+L98+M98 -> 60.29
G99: 2 | H99: En el marco de los comités llevados a cabo durante la vigencia, se expusieron los resultados del informe de seguimiento a los riesgos, tanto de gestión como de corrupción y en donde se presenta el seguimiento frente a la Política de Administración de riesgos de la Entidad.
G100: 3
B101: =+LEFT(C101,3) -> 3.2 | C101: 3.2 La Alta Dirección frente a la política de Administración del Riesgo definen los niveles de aceptación del riesgo, teniendo en cuenta cada uno de los objetivos establecidos. | D101: Dimension Control Interno Politica de Control Interno Linea Estrategica | E101: Se tiene implementada la politica para la Administracion del Riesgo del IDT, la cual en el capitulo 5 identifica los Roles y las líneas de defensa. Evidencias: DE-P01 Polìtica Administración del Riesgos, link: https://intranet.idt.gov.co/sites/default/files/2023-12/SIG-P01%20Politica%20de%20Administraci%C3%B3n%20del%20Riesgo%20V5%2014122023.pdf | F101: 3 | G101: 1 | H101: En el marco de los comités llevados a cabo durante la vigencia, se expusieron los resultados del informe de seguimiento a los riesgos, tanto de gestión como de corrupción y en donde se presenta el seguimiento frente a la Política de Administración de riesgos de la Entidad. | I101: NA | J101: 3 | K101: =+IF(OR(ISBLANK(F101),ISBLANK(J101)),"",IF(OR(AND(F101=1,J101=1),AND(F101=1,J101=2),AND(F101=1,J101=3)),"Deficiencia de control mayor (diseño y ejecución)",IF(OR(AND(F101=2,J101=2),AND(F101=3,J101=1),AND(F101=3,J101=2),AND(F101=2,J101=1)),"Deficiencia de control (diseño o ejecución)",IF(AND(F101=2,J101=3),"Oportunidad de mejora","Mantenimiento del control")))) -> Mantenimiento del control | L101: =+IF(K101="",0,IF(K101="Deficiencia de control mayor (diseño y ejecución)",4,IF(K101="Deficiencia de control (diseño o ejecución)",20,IF(K101="Oportunidad de mejora",40,60)))) -> 60 | M101: 0.389653 | N101: =+L101+M101 -> 60.39
G102: 2 | H102: Para lo descrito por el proceso se logra identificar su cumplimiento, de acuerdo a los soportes suministrados (documento, link, correo, etc que soporte la explicación)
G103: 3
G104: 4
G105: 5
G106: 6
G107: 7
G108: 8
B109: =+LEFT(C109,3) -> 3.3 | C109: 3.3 Evaluación de la planeación estratégica, considerando alertas frente a posibles incumplimientos, necesidades de recursos, cambios en el entorno que puedan afectar su desarrollo, entre otros aspectos que garanticen de forma razonable su cumplimiento. | D109: Diimensiòn Evaluacion de Resultados Politica de Seguimiento y Evaluaciòn al Desemepeño Institucional Dimension Control Interno Lineas de defensa | E109: El Instituto cuenta con el procedimiento DE-P23 Formulación y Seguimiento a la Planeación Estratégica en el cual se plantea el escenario futuro del quehacer de la entidad de acuerdo con las políticas institucionales y el Plan Distrital de Desarrollo, así como para realizar seguimiento, monitoreo y control a su ejecución, a través de herramientas que busquen la eficiencia y la coherencia de las metas con los objetivos planteado De igual forma se tiene establecido el DE-P02 Procedimiento para la aprobación y seguimiento al Plan Anual de Adquisiciones (PAA), el cual hace seguimiento y control a las actividades a realizar por cada dependencia que interviene en la revisión, aprobación, modificación y ejecución del PAA. A través de los Comités Directivos se tratan temas que pueden afectar el normal desarrollo de la ejecución de los diferentes planes, programas y proyectos. Otro espacio importante de mencionar es el Comité Institucional de Gestión y Desempeño, en el cual se presentan temas importantes para la toma de decisiones. En lo que va corrido de la presente vigencia se han realizado cuatro (4) Comités, evidencia que reposa en la intranet del Instituto, es importante aclara que el ultima acta esta en proceso de firma. Evidencias: https://intranet.idt.gov.co/sites/default/files/2025-05/DE-P23%20Procedimiento%20Formulacion%20y%20seguimiento%20Planeacion%20Estrategica%20V3%2016052025.pdf https://intranet.idt.gov.co/sites/default/files/2025-06/DE-P02%20Procedimiento%20aprobación%20y%20seguimientoPlan%20Anual%20de%20Adquisiciones-PAA%20V9%2019052025.pdf Las actas de los Comités Directivos reposan en la Dirección General (ahora se realizan de manera mensual). Comité Institucional de Gestión y Desempeño https://intranet.idt.gov.co/es/procesos-estrategicos-docs?section=19 | F109: 3 | G109: 1 | H109: En el marco de los comités llevados a cabo durante la vigencia, se expusieron los resultados de los informes en los que se evalúan posibles incumplimientos, necesidades de recurso, cambios en el entorno que puedan afectar el cumplimiento de los objetivos de la Entidad. | I109: Dentro de cada uno de los informes de monitoreo, seguimiento y evaluación para el primer semestre de la vigencia 2025, se reflejan las observaciones y recomendaciones producto. | J109: 3 | K109: =+IF(OR(ISBLANK(F109),ISBLANK(J109)),"",IF(OR(AND(F109=1,J109=1),AND(F109=1,J109=2),AND(F109=1,J109=3)),"Deficiencia de control mayor (diseño y ejecución)",IF(OR(AND(F109=2,J109=2),AND(F109=3,J109=1),AND(F109=3,J109=2),AND(F109=2,J109=1)),"Deficiencia de control (diseño o ejecución)",IF(AND(F109=2,J109=3),"Oportunidad de mejora","Mantenimiento del control")))) -> Mantenimiento del control | L109: =+IF(K109="",0,IF(K109="Deficiencia de control mayor (diseño y ejecución)",4,IF(K109="Deficiencia de control (diseño o ejecución)",20,IF(K109="Oportunidad de mejora",40,60)))) -> 60 | M109: 0.48965 | N109: =+L109+M109 -> 60.49
G110: 2 | H110: Para lo descrito por el proceso se logra identificar su cumplimiento, de acuerdo a los soportes suministrados (documento, link, correo, etc que soporte la explicación)
G111: 3
G112: 4
G113: 5
G114: 6
G115: 7
G116: 8
C117: Lineamiento 4: Compromiso con la competencia de todo el personal, por lo que la gestión del talento humano tiene un carácter estratégico con el despliegue de actividades clave para todo el ciclo de vida del servidor público –ingreso, permanencia y retiro. | D117: DIMENSIÓN O POLÍTICA DEL MIPG ASOCIADA AL REQUERIMIENTO | E117: Explicación de cómo la Entidad evidencia que está dando respuesta al requerimiento Referencia a Procesos, Manuales/Políticas de Operación/Procedimientos/Instructivos u otros desarrollos que den cuente de su aplicación | F117: Presente (1/2/3) | G117: EVIDENCIA DEL CONTROL | J117: Funcionando (1/2/3) | K117: Evaluación
G118: No. | H118: Referencia a Análisis y verificaciones en el marco del Comité Institucional de Coordinación de Control Interno | I118: Observaciones de la evaluacion independiente (tener encuenta papel de líneas de defensa)
B120: =+LEFT(C120,3) -> 4.1 | C120: 4.1 Evaluación de la Planeación Estratégica del Talento Humano. | D120: Dimension de Talento Humano Politica Gestion Estrategica del Talento Humano Dimension de Control Interno Lineas de Defensa | E120: El proceso de Gestión de Talento Humano evalúa mensualmente la planeación estratégica dentro de los reportes a su plan de acción de MIPG , los cuales se reflejan el resultado de su gestión y se orienta a mejora de los mismos. Evidencia: Seguimiento a los planes de acción MIPG https://drive.google.com/drive/folders/1_eRXGs6rXrZtUI5yb7NjCgyTyCfRidZo?usp=drive_link | F120: 3 | G120: 1 | H120: En el segundo semestre de la vigencia se llevará a cabo el seguiiento a la plan estrategico del Talento Humano por parte de la ACI. | I120: Para el segundo semestre de la vigencia 2025 se tiene contemplado la revisión al plan estrategico de Talento Humano, .en el marco de la Auditoria al proceso de talento humano. | J120: 1 | K120: =+IF(OR(ISBLANK(F120),ISBLANK(J120)),"",IF(OR(AND(F120=1,J120=1),AND(F120=1,J120=2),AND(F120=1,J120=3)),"Deficiencia de control mayor (diseño y ejecución)",IF(OR(AND(F120=2,J120=2),AND(F120=3,J120=1),AND(F120=3,J120=2),AND(F120=2,J120=1)),"Deficiencia de control (diseño o ejecución)",IF(AND(F120=2,J120=3),"Oportunidad de mejora","Mantenimiento del control")))) -> Deficiencia de control (diseño o ejecución) | M120: 0.58965 | N120: =+L120+M120 -> 0.59
G121: 2
G122: 3
G123: 4
G124: 5
G125: 6
G126: 7
G127: 8
B128: =+LEFT(C128,3) -> 4.2 | C128: 4.2 Evaluación de las actividades relacionadas con el Ingreso del personal. | D128: Dimension de Talento Humano Politica Gestion Estrategica del Talento Humano Dimension de Control Interno Lineas de Defensa | E128: Se realizan a todos los servidores al momento de su ingreso a la entidad, la inducción para terminar con el proceso. En link adjunto se evidencian sus respuestas sumadas a otras de inducción y reinducción que se hacen a lo largo del año. Evidencias: https://sites.google.com/idt.gov.co/induccionyreinduccionidt/inicio?pli=1 | F128: 3 | G128: 1 | H128: Para lo descrito por el proceso se logra identificar su cumplimiento, de acuerdo a los soportes suministrados (documento, link, correo, etc que soporte la explicación) | I128: N/A | J128: 3 | K128: =+IF(OR(ISBLANK(F128),ISBLANK(J128)),"",IF(OR(AND(F128=1,J128=1),AND(F128=1,J128=2),AND(F128=1,J128=3)),"Deficiencia de control mayor (diseño y ejecución)",IF(OR(AND(F128=2,J128=2),AND(F128=3,J128=1),AND(F128=3,J128=2),AND(F128=2,J128=1)),"Deficiencia de control (diseño o ejecución)",IF(AND(F128=2,J128=3),"Oportunidad de mejora","Mantenimiento del control")))) -> Mantenimiento del control | L128: =+IF(K128="",0,IF(K128="Deficiencia de control mayor (diseño y ejecución)",4,IF(K128="Deficiencia de control (diseño o ejecución)",20,IF(K128="Oportunidad de mejora",40,60)))) -> 60 | M128: 0.68965 | N128: =+L128+M128 -> 60.69
G129: 2
G130: 3
G131: 4
G132: 5
G133: 6
G134: 7
G135: 8
B136: =+LEFT(C136,3) -> 4.3 | C136: 4.3 Evaluación de las actividades relacionadas con la permanencia del personal. | D136: Dimension de Talento Humano Politica Gestion Estrategica del Talento Humano Dimension de Control Interno Lineas de Defensa | E136: Anualmente se realizan mínimo 2 jornadas de inducción y reincucción, una de ellas de manera presencial y otra mediante formulario de google. Adjunto el link de la página web donde se evidencia los 2 tipos de jornada. Evidencias: https://sites.google.com/idt.gov.co/induccionyreinduccionidt/inicio?pli=1 | F136: 3 | G136: 1 | H136: Para lo descrito por el proceso se logra identificar su cumplimiento, de acuerdo a los soportes suministrados (documento, link, correo, etc que soporte la explicación) | J136: 3 | K136: =+IF(OR(ISBLANK(F136),ISBLANK(J136)),"",IF(OR(AND(F136=1,J136=1),AND(F136=1,J136=2),AND(F136=1,J136=3)),"Deficiencia de control mayor (diseño y ejecución)",IF(OR(AND(F136=2,J136=2),AND(F136=3,J136=1),AND(F136=3,J136=2),AND(F136=2,J136=1)),"Deficiencia de control (diseño o ejecución)",IF(AND(F136=2,J136=3),"Oportunidad de mejora","Mantenimiento del control")))) -> Mantenimiento del control | M136: 0.78965 | N136: =+L136+M136 -> 0.79
G137: 2
G138: 3
G139: 4
G140: 5
G141: 6
G142: 7
G143: 8
B144: =+LEFT(C144,3) -> 4.4 | C144: 4.4Analizar si se cuenta con políticas claras y comunicadas relacionadas con la responsabilidad de cada servidor sobre el desarrollo y mantenimiento del control interno (1a línea de defensa) | D144: Dimension de Talento Humano Politica Gestion Estrategica del Talento Humano Dimension de Control Interno Lineas de Defensa | E144: En el marco del Plan Estratégico de Talento Humano 2025 se plantearon como objetivos específicos: 1. Actualizar el Plan Anual de Vacantes y Previsión de Talento Humano, identificando las vacancias definitivas, sus requisitos y forma de provisión, el cual se ha cumplido con la vinculación en LNR, provisionalidad y encargo de las diferentes plazas. 2. Fortalecer los conocimientos y habilidades del talento humano al servicio del IDT, a través del Plan Institucional de Capacitación – PIC y el Programa de Inducción y Re inducción que contribuyan al mejoramiento de las competencias individuales y grupales, la calidad de vida, así como al cumplimiento de la misión y visión de la Entidad, el cual se viene ejecutando en lo corrido de la vigencia. 3. Hacer del Plan de Bienestar y del Plan de Incentivos, una herramienta estratégica al interior de la entidad, a través de la cual se genere desarrollo en todos los ámbitos de la vida de los funcionarios, con el fin de fortalecer las competencias comportamentales comunes que permitan llegar al logro de las metas estratégicas de la entidad, aportando al éxito organizaciona, , dichos planes se vienen ejecutando en lo corrido de la vigencia. Evidencias: https://www.idt.gov.co/index.php/es/transparencia-y-acceso-la-informacion | F144: 3 | G144: 1 | H144: En el segundo semestre de la vigencia se llevará a cabo el seguiiento a la plan estrategico del Talento Humano por parte de la ACI. | I144: Para el segundo semestre de la vigencia 2025 se tiene contemplado la revisión al plan estrategico de Talento Humano, .en el marco de la Auditria al proceso de talento humano. | J144: 3 | K144: =+IF(OR(ISBLANK(F144),ISBLANK(J144)),"",IF(OR(AND(F144=1,J144=1),AND(F144=1,J144=2),AND(F144=1,J144=3)),"Deficiencia de control mayor (diseño y ejecución)",IF(OR(AND(F144=2,J144=2),AND(F144=3,J144=1),AND(F144=3,J144=2),AND(F144=2,J144=1)),"Deficiencia de control (diseño o ejecución)",IF(AND(F144=2,J144=3),"Oportunidad de mejora","Mantenimiento del control")))) -> Mantenimiento del control | M144: 0.88965 | N144: =+L144+M144 -> 0.89
G145: 2
G146: 3
G147: 4
G148: 5
G149: 6
G150: 7
G151: 8
B152: =+LEFT(C152,3) -> 4.5 | C152: 4.5 Evaluación de las actividades relacionadas con el retiro del personal. | D152: Dimension de Talento Humano Politica Gestion Estrategica del Talento Humano Dimension de Control Interno Lineas de Defensa | E152: Los servidores de carrera administrativa se realiza la Evaluación de Desenpeño Laboral en la plataforma EDL dispuesta por la CNSC, en lo corrido de este semestre, se presentó la evaluación definitiva del periodo comprendido entre el 01/02/2024 y el 31/01/2025, realizada entre el 01/02/2025 y el 20/02/2025, en el link de drive se disponen las evaluaciones de los servidores del IDT. Evidencias: https://drive.google.com/drive/u/0/folders/1WH_w2tjJmEuyk1xEAtlOL13dg4rqntCI | F152: 3 | G152: 1 | H152: Para lo descrito por el proceso se logra identificar su cumplimiento, de acuerdo a los soportes suministrados (documento, link, correo, etc que soporte la explicación) | J152: 3 | K152: =+IF(OR(ISBLANK(F152),ISBLANK(J152)),"",IF(OR(AND(F152=1,J152=1),AND(F152=1,J152=2),AND(F152=1,J152=3)),"Deficiencia de control mayor (diseño y ejecución)",IF(OR(AND(F152=2,J152=2),AND(F152=3,J152=1),AND(F152=3,J152=2),AND(F152=2,J152=1)),"Deficiencia de control (diseño o ejecución)",IF(AND(F152=2,J152=3),"Oportunidad de mejora","Mantenimiento del control")))) -> Mantenimiento del control | L152: =+IF(K152="",0,IF(K152="Deficiencia de control mayor (diseño y ejecución)",4,IF(K152="Deficiencia de control (diseño o ejecución)",20,IF(K152="Oportunidad de mejora",40,60)))) -> 60 | M152: 0.98965 | N152: =+L152+M152 -> 60.990
G153: 2
G154: 3
G155: 4
G156: 5
G157: 6
G158: 7
G159: 8
B160: =+LEFT(C160,3) -> 4.6 | C160: 4.6 Evaluar el impacto del Plan Institucional de Capacitación - PIC | D160: Dimension de Talento Humano Politica Gestion Estrategica del Talento Humano Dimension de Control Interno Lineas de Defensa | E160: Se realizaron las encuestas de satisfacción de las actividades con erogación del Plan de Capacitación 2024, su respectivo análisis y observaciones se tiene en cuenta para la formulación del Plan de Capacitación 2025 como insumo para determinar los nuevos ejes temáticos y nesedidades de aprendizaje de la entidad. Evidencias: https://drive.google.com/drive/u/0/folders/1AJ6ofzxmpSclucqDGMYOZsrCjN4_Eyrt | F160: 3 | G160: 1 | H160: En el primer semestre de la vigencia 2025 no se evaluo esta tematica , ni se incluyo en el comité institucional de control intenro. | I160: De igual manera el proceso manifiesta que este seguimiento se ve reflejado mediante el reporte del indicador Promedio de calificación de los funcionarios en las capacitaciones formales realizadas en cumplimiento PIC, Sin embargo, Desde la Asesoria de Control Interno se realizó la revisión en donde se logro envidenciar que dentro del proceso de talento humano frente a este indicador se cuenta con el reporte realizado para el primer semestre 2025 | J160: 2 | K160: =+IF(OR(ISBLANK(F160),ISBLANK(J160)),"",IF(OR(AND(F160=1,J160=1),AND(F160=1,J160=2),AND(F160=1,J160=3)),"Deficiencia de control mayor (diseño y ejecución)",IF(OR(AND(F160=2,J160=2),AND(F160=3,J160=1),AND(F160=3,J160=2),AND(F160=2,J160=1)),"Deficiencia de control (diseño o ejecución)",IF(AND(F160=2,J160=3),"Oportunidad de mejora","Mantenimiento del control")))) -> Deficiencia de control (diseño o ejecución) | L160: =+IF(K160="",0,IF(K160="Deficiencia de control mayor (diseño y ejecución)",4,IF(K160="Deficiencia de control (diseño o ejecución)",20,IF(K160="Oportunidad de mejora",40,60)))) -> 20 | M160: 0.989652 | N160: =+L160+M160 -> 20.9897
G161: 2 | H161: Para lo descrito por el proceso se logra identificar su cumplimiento, de acuerdo a los soportes suministrados (documento, link, correo, etc que soporte la explicación)
G162: 3
G163: 4
G164: 5
G165: 6
G166: 7
G167: 8
B168: =+LEFT(C168,3) -> 4.7 | C168: 4.7 Evaluación frente a los productos y servicios en los cuales participan los contratistas de apoyo. | D168: Dimension de Talento Humano Politica Gestion Estrategica del Talento Humano Dimension de Control Interno Lineas de Defensa | E168: Dentro de los informes de supervisión, se realiza la evaluación respecto al cumplimiento y satisfacción de los productos y servicios en los cuales participan los contratistas. Evidencias: https://www.idt.gov.co/Informes-Auditorias | F168: 3 | G168: 1 | H168: En el segundo semestre de la vigencia se llevará a cabo la auditoria del proceso de gestion contractual en la que se evauluará los informes de supervision. | I168: Para el segundo semestre de la vigencia 2025 se tiene contemplado la revisión de los infromes de supervisión, .en el marco de la Auditria al proceso de gestion contractual. | J168: 3 | K168: =+IF(OR(ISBLANK(F168),ISBLANK(J168)),"",IF(OR(AND(F168=1,J168=1),AND(F168=1,J168=2),AND(F168=1,J168=3)),"Deficiencia de control mayor (diseño y ejecución)",IF(OR(AND(F168=2,J168=2),AND(F168=3,J168=1),AND(F168=3,J168=2),AND(F168=2,J168=1)),"Deficiencia de control (diseño o ejecución)",IF(AND(F168=2,J168=3),"Oportunidad de mejora","Mantenimiento del control")))) -> Mantenimiento del control | L168: =+IF(K168="",0,IF(K168="Deficiencia de control mayor (diseño y ejecución)",4,IF(K168="Deficiencia de control (diseño o ejecución)",20,IF(K168="Oportunidad de mejora",40,60)))) -> 60 | M168: 1.89623 | N168: =+L168+M168 -> 61.90
G169: 2
G170: 3
G171: 4
G172: 5
G173: 6
G174: 7
G175: 8
D176: DIMENSIÓN O POLÍTICA DEL MIPG ASOCIADA AL REQUERIMIENTO | E176: Explicación de cómo la Entidad evidencia que está dando respuesta al requerimiento Referencia a Procesos, Manuales/Políticas de Operación/Procedimientos/Instructivos u otros desarrollos que den cuente de su aplicación | F176: Presente (1/2/3) | G176: EVIDENCIA DEL CONTROL | J176: Funcionando (1/2/3) | K176: Evaluación
G177: No. | H177: Referencia a Análisis y verificaciones en el marco del Comité Institucional de Coordinación de Control Interno | I177: Observaciones de la evaluacion independiente (tener encuenta papel de líneas de defensa)
B179: =+LEFT(C179,3) -> 5.1 | C179: 5.1 Acorde con la estructura del Esquema de Líneas de Defensa se han definido estándares de reporte, periodicidad y responsables frente a diferentes temas críticos de la entidad. | D179: Dimension de Informaciòn y Comunicaciòn Dimensiòn de Control Interno Lineas de Defensa | E179: Se evidencia a traves del procedimiento Medición de la Gestión del IDT, cuyo objetivo es consolidar, medir y analizar la gestión de la entidad por medio de indicadores definidos por cada uno de los procesos, realizando seguimientos de acuerdo a la periodicidad de cada uno, lo que permite evaluar el cumplimiento de objetivos y metas institucionales, con el fin de propender por el mejoramiento continuo y el fortalecimiento de los principios de eficiencia, eficacia y efectividad. También se mantiene el Instructivo para el Diseño, Monitoreo y Evaluación de Indicadores cuyo objetivo es Definir los lineamientos para el diseño, monitoreo y evaluación de los indicadores del Instituto Distrital de Turismo, mediante el desarrollo de instrumentos y acompañamiento a los líderes de proceso. Se cuenta también con el procedimiento Formulación y Seguimiento a la Planeación Estratégica, cuyo objetivo es Definir las actividades necesarias para formular la planeación estratégica del Instituto Distrital de Turismo que orientará el escenario futuro del quehacer de la entidad de acuerdo con las políticas institucionales y el Plan Distrital de Desarrollo. Se realizó la revisión del Mapa de Aseguramiento en la entidad, dentro del que se encuentran identificadas las actividades a asegurar de acuerdo al rol de las líneas de defensa de la entidad. Evidencias: Procedimiento medicion de la gestion: https://intranet.idt.gov.co/sites/default/files/2025-06/SIG-P05_Procedimiento%20para%20la%20Medicion%20de%20la%20Gestion%20del%20IDT_V11_10062025.pdf Instructivo diseño, monitorieo y evaluacion de indicadores https://intranet.idt.gov.co/sites/default/files/2025-06/SIG-I02%20Instructivo%20para%20el%20Diseño%2C%20Monitoreo%20y%20Evaluacion%20de%20Indicadores%20V3%2010062025.pdf Procedimiento de formulacion y seguimiento a la planeacion estrategica https://intranet.idt.gov.co/sites/default/files/2025-05/DE-P23%20Procedimiento%20Formulacion%20y%20seguimiento%20Planeacion%20Estrategica%20V3%2016052025.pdf https://intranet.idt.gov.co/es/procesos-estrategicos-docs?section=49 | F179: 3 | G179: 1 | H179: En el marco de los comites llevados a cabo durante la vigencia , se reflejan los resultados de las auditorias, seguimientos y monitoreos como el caso de los , seguimientos a los riesgos de gestión y corrupción, efectividad de los planes de mejoramiento por procesos e institucional, en los cuales intervienen todas las líneas de defensa frente a temas críticos de la entidad. | I179: NA | J179: 3 | K179: =+IF(OR(ISBLANK(F179),ISBLANK(J179)),"",IF(OR(AND(F179=1,J179=1),AND(F179=1,J179=2),AND(F179=1,J179=3)),"Deficiencia de control mayor (diseño y ejecución)",IF(OR(AND(F179=2,J179=2),AND(F179=3,J179=1),AND(F179=3,J179=2),AND(F179=2,J179=1)),"Deficiencia de control (diseño o ejecución)",IF(AND(F179=2,J179=3),"Oportunidad de mejora","Mantenimiento del control")))) -> Mantenimiento del control | L179: =+IF(K179="",0,IF(K179="Deficiencia de control mayor (diseño y ejecución)",4,IF(K179="Deficiencia de control (diseño o ejecución)",20,IF(K179="Oportunidad de mejora",40,60)))) -> 60 | M179: 1.1896 | N179: =+L179+M179 -> 61.19
G180: 2 | H180: Para lo descrito por el proceso se logra identificar su cumplimiento, de acuerdo a los soportes suministrados (documento, link, correo, etc que soporte la explicación).
G181: 3
G182: 4
G183: 5
G184: 6
G185: 7
G186: 8
B187: =+LEFT(C187,3) -> 5.2 | C187: 5.2 La Alta Dirección analiza la información asociada con la generación de reportes financieros. | D187: Dimensiòn de Control Interno Linea de Estrategica | E187: En las actas del Comité Directivo se relaciona información sobre programación y ejecución presupuestal, lo que conlleva a la toma de decisiones para el normal desarrollo de la ejecución de los diferentes planes, programas y proyectos del Instituto. Evidencias: Las actas de los Comités Directivos reposan en la Dirección General (ahora se realizan de manera mensual). | F187: 3 | G187: 1 | H187: En el marco de comites llevados a cabo en la vigencia, se reflejan los resultados de informes de seguimiento como el de austeridad del gasto, evaluación al sistema de control Interno Contable, arqueo de caja, seguimiento a las metas plan de desarrollo entre otros. | I187: Las observaciones se encuetran en cada uno de los informes presentados por la Asesoria de Control Interno. | J187: 3 | K187: =+IF(OR(ISBLANK(F187),ISBLANK(J187)),"",IF(OR(AND(F187=1,J187=1),AND(F187=1,J187=2),AND(F187=1,J187=3)),"Deficiencia de control mayor (diseño y ejecución)",IF(OR(AND(F187=2,J187=2),AND(F187=3,J187=1),AND(F187=3,J187=2),AND(F187=2,J187=1)),"Deficiencia de control (diseño o ejecución)",IF(AND(F187=2,J187=3),"Oportunidad de mejora","Mantenimiento del control")))) -> Mantenimiento del control | L187: =+IF(K187="",0,IF(K187="Deficiencia de control mayor (diseño y ejecución)",4,IF(K187="Deficiencia de control (diseño o ejecución)",20,IF(K187="Oportunidad de mejora",40,60)))) -> 60 | M187: 1.28965 | N187: =+L187+M187 -> 61.29
G188: 2 | H188: En los meses de mayo y junio se llevo a cabo la auditoria al proceso de Gestión Financiera.
G189: 3 | H189: Para lo descrito por el proceso se logra identificar su cumplimiento, de acuerdo a los soportes suministrados (documento, link, correo, etc que soporte la explicación)
G190: 4
G191: 5
G192: 6
G193: 7
G194: 8
B195: =+LEFT(C195,3) -> 5.3 | C195: 5.3 Teniendo en cuenta la información suministrada por la 2a y 3a línea de defensa se toman decisiones a tiempo para garantizar el cumplimiento de las metas y objetivos. | D195: Dimensiòn de Control Interno Lineas de Defensa | E195: En los Comités Directivos se tratan temas presupuestales y financieros que pueden afectar el normal desarrollo de la ejecución de los diferentes planes, programas y proyectos. Se pueden mencionar temas como: presupuesto, tablero de seguimiento, evaluación de desempeño, contratación, plan estratégico, ejecución presupuetal, entre otros Evidencias: Las actas de los Comités Directivos reposan en la Dirección General (ahora se realizan de manera mensual). | F195: 3 | G195: 1 | H195: En el marco de los comites llevados a cabo en la vigencia , se reflejan los resultados de las auditorias, seguimientos y monitoreo; como el caso de los resultados de auditoría, seguimientos a los riesgos de gestión y corrupción, efectividad de los planes de mejoramiento institucional como de procesos, seguimiento a los proyectos de inversión entre otros, en los cuales se toman decisiones oportunas para el cumplimiento de metas y objetivos institucionales. | I195: N/A | J195: 3 | K195: =+IF(OR(ISBLANK(F195),ISBLANK(J195)),"",IF(OR(AND(F195=1,J195=1),AND(F195=1,J195=2),AND(F195=1,J195=3)),"Deficiencia de control mayor (diseño y ejecución)",IF(OR(AND(F195=2,J195=2),AND(F195=3,J195=1),AND(F195=3,J195=2),AND(F195=2,J195=1)),"Deficiencia de control (diseño o ejecución)",IF(AND(F195=2,J195=3),"Oportunidad de mejora","Mantenimiento del control")))) -> Mantenimiento del control | L195: =+IF(K195="",0,IF(K195="Deficiencia de control mayor (diseño y ejecución)",4,IF(K195="Deficiencia de control (diseño o ejecución)",20,IF(K195="Oportunidad de mejora",40,60)))) -> 60 | M195: 1.38963 | N195: =+L195+M195 -> 61.39
G196: 2
G197: 3
G198: 4
G199: 5
G200: 6
G201: 7
G202: 8
B203: =+LEFT(C203,3) -> 5.4 | C203: 5.4 Se evalúa la estructura de control a partir de los cambios en procesos, procedimientos, u otras herramientas, a fin de garantizar su adecuada formulación y afectación frente a la gestión del riesgo. | D203: Dimension de Gestion con Valores para Resultado Politica de Fortalecimiento Organizacional y Simplificaciòn de Procesos Dimension Control Interno Lineas de Defensa | E203: De manera cuatrimestral se realiza la actualizacion del mapa de riesgos institucional dentro del aplicativo de riesgos y este es publicado en la sede electronica en el menu de transparencia y acceso a la informacion publica. Evidencias: Actas de seguimiento a riesgos son reportadas de manera cuatrimestral a la oficina de control interno. Se adjuntan en el correo. Matriz de riesgos: https://www.idt.gov.co/index.php/es/transparencia-y-acceso-la-informacion 4.3.3.1. Matriz de riesgos de gestión y Corrupción | F203: 3 | G203: 1 | H203: En el marco de los comites llevados a cabo durante el primer semestre de la vigencia , se expusieron los resultados del informe de seguimiento a los riesgos tanto de gestión como de corrupción y en donde se evidencian las observaciones y recomendaciones | I203: Dentro del informe de seguimiento a los riesgos de gestión y corrupción se especifican las recomendaciones para cada una de las líneas de defensa relacionado con posibles cambios que puedan afectar la gestión de riesgos. | J203: 3 | K203: =+IF(OR(ISBLANK(F203),ISBLANK(J203)),"",IF(OR(AND(F203=1,J203=1),AND(F203=1,J203=2),AND(F203=1,J203=3)),"Deficiencia de control mayor (diseño y ejecución)",IF(OR(AND(F203=2,J203=2),AND(F203=3,J203=1),AND(F203=3,J203=2),AND(F203=2,J203=1)),"Deficiencia de control (diseño o ejecución)",IF(AND(F203=2,J203=3),"Oportunidad de mejora","Mantenimiento del control")))) -> Mantenimiento del control | L203: =+IF(K203="",0,IF(K203="Deficiencia de control mayor (diseño y ejecución)",4,IF(K203="Deficiencia de control (diseño o ejecución)",20,IF(K203="Oportunidad de mejora",40,60)))) -> 60 | M203: 1.48963 | N203: =+L203+M203 -> 61.49
G204: 2 | H204: Para lo descrito por el proceso se logra identificar su cumplimiento, de acuerdo a los soportes suministrados (documento, link, correo, etc que soporte la explicación)
G205: 3
G206: 4
B207: =+LEFT(C207,3) -> 5.5 | C207: 5.5 La entidad aprueba y hace seguimiento al Plan Anual de Auditoría presentado y ejecutado por parte de la Oficina de Control Interno. | D207: Dimension Control Interno Linea Estrategica | E207: El Comité Institucional de Coordinación de Control Interno, durante el primer semestre de la vigencia ha tenido dos sesiones en las cuales se ha realizado seguimiento al Plan Anual de Auditoria. La Asesoría de Control Interno, hace seguimientos periódicos con el equipo de trabajo para el seguimiento a las acciones adelantadas y por ejecutar del PAA. | F207: 3 | G207: 1 | H207: Dentro de las sesiones llevadas a cabo durante el primer semestre de la vigencia 2025 se realizó el seguimiento respectivo a cada una de las actividades ejecutadas y por ejecutar del PAA. | I207: NA | J207: 3 | K207: Mantenimiento del control | L207: =+IF(K207="",0,IF(K207="Deficiencia de control mayor (diseño y ejecución)",4,IF(K207="Deficiencia de control (diseño o ejecución)",20,IF(K207="Oportunidad de mejora",40,60)))) -> 60 | M207: 1.58965 | N207: =+L207+M207 -> 61.59
G208: 2
G209: 3
G210: 4
G211: 5
G212: 6
G213: 7
G214: 8
B215: =+LEFT(C215,3) -> 5.6 | C215: 5.6 La entidad analiza los informes presentados por la Oficina de Control Interno y evalúa su impacto en relación con la mejora institucional. | D215: Dimension Control Interno Linea Estrategica | E215: En el marco de los comités llevados a cabo durante el primer semestre de la vigencia 2025, la Dirección del IDT analiza cada uno de los informes presentados por la Asesoría de Control Interno y evalúa su impacto en relación con la mejora institucional. | F215: 3 | G215: 1 | H215: En el marco de los comités llevados a cabo durante el rimer semestre de la vigencia 2025, la Dirección del IDT analizó cada uno de los informes presentados por la Asesoría de Control Interno y evalúa su impacto en relación con la mejora institucional. | I215: Las observaciones a criterio de la Asesoría de Control Interno se encuentran en cada uno de los informes de evaluación y seguimiento generados a los procesos. Así mismo, dentro de las actas de comité se encuentran las observaciones generadas por los miembros del comité. | J215: 3 | K215: Mantenimiento del control | L215: =+IF(K215="",0,IF(K215="Deficiencia de control mayor (diseño y ejecución)",4,IF(K215="Deficiencia de control (diseño o ejecución)",20,IF(K215="Oportunidad de mejora",40,60)))) -> 60 | M215: 1.689653 | N215: =+L215+M215 -> 61.69
G216: 2
G217: 3
G218: 4
G219: 5
G220: 6
G221: 7
G222: 8

Sheet Evaluación de riesgos
C10: EVALUACIÓN DE RIESGOS
C11: Este componente hace referencia al ejercicio efectuado bajo el liderazgo del equipo directivo y de todos los servidores de la entidad, y permite identificar, evaluar y gestionar eventos potenciales, tanto internos como externos, que puedan afectar el logro de los objetivos institucionales. La condición para la evaluación de riesgos es el establecimiento de objetivos, vinculados a varios niveles de la entidad, lo que implica que la Alta Dirección define objetivos y los agrupa en categorías en todos los niveles de la entidad, con el fin de evaluarlos
B13: ID | C13: Lineamiento 6: Definición de objetivos con suficiente claridad para identificar y evaluar los riesgos relacionados: i)Estratégicos; ii)Operativos; iii)Legales y Presupuestales; iv)De Información Financiera y no Financiera. | D13: DIMENSIÓN O POLÍTICA DEL MIPG ASOCIADA AL REQUERIMIENTO | E13: Explicación de cómo la Entidad evidencia que está dando respuesta al requerimiento Referencia a Procesos, Manuales/Políticas de Operación/Procedimientos/Instructivos u otros desarrollos que den cuente de su aplicación | F13: Presente (1/2/3) | G13: EVIDENCIA DEL CONTROL | J13: Funcionando (1/2/3) | K13: Evaluación
G14: No. | H14: Referencia a Análisis y verificaciones en el marco del Comité Institucional de Coordinación de Control Interno | I14: Observaciones de la evaluacion independiente (tener encuenta papel de líneas de defensa)
B16: =+LEFT(C16,3) -> 6.1 | C16: 6.1 La Entidad cuenta con mecanismos para vincular o relacionar el plan estratégico con los objetivos estratégicos y estos a su vez con los objetivos operativos. | D16: Dimension de Direccionamiento Estratetegico y Planeacion. Politica de Planeacion Institucional | E16: La entidad cuenta con el Plan Estratégico Institucional el cual está conformado por los planes de gestión formulados para cada uno de los procesos del IDT, con información de programación y seguimiento a indicadores, metas, presupuesto, actividades, territorialización y población beneficiada. El Plan de Gestión contempla los siguientes cuatro componentes: i. Marco Estratégico: parte esencial del plan de gestión en el cual se enmarca la ruta a seguir en la gestión institucional, en armonía con sus proyectos a mediano y largo plazo. En este marco se ii. Marco Táctico: está relacionado con el marco estratégico y es parte fundamental para medir el cumplimiento de los objetivos institucionales. En este marco se definen las metas proyecto de inversión y metas de gestión formuladas a mediano plazo. iii. Marco Operativo: está relacionado con el marco táctico y está orientado a corto plazo. En el marco operativo se formula el Plan Operativo Anual – POA, identificando las acciones específicas que deben ser llevadas a cabo durante una vigencia para el cumplimiento de las metas. iv. Territorialización y Población: delimitación o localización en un lugar o territorio y su población que se beneficia con la gestión y la inversión de la entidad. Evidencias: Plan estrategico institucional 2024-2028 https://www.idt.gov.co/sites/default/files/2025-05/PEI%20IDT%202024%20-%202027%20-%20FINAL%2030042025.pdf Matriz Planeacion Estrategica https://docs.google.com/spreadsheets/d/1Yt74fP5ULhmDEvvyG7_xOJrmXdk4nxOVvTO_up4ERVY/edit?gid=968643700#gid=968643700 | F16: 3 | G16: 1 | H16: En el primer semestre de la vigencia 2025, se presentaron resultados referentes al Informe metas plan de desarrollo. | I16: Las observaciones se encuentran en el informe presentados por parte de la Asesoria de Control Interno | J16: 3 | K16: =+IF(OR(ISBLANK(F16),ISBLANK(J16)),"",IF(OR(AND(F16=1,J16=1),AND(F16=1,J16=2),AND(F16=1,J16=3)),"Deficiencia de control mayor (diseño y ejecución)",IF(OR(AND(F16=2,J16=2),AND(F16=3,J16=1),AND(F16=3,J16=2),AND(F16=2,J16=1)),"Deficiencia de control (diseño o ejecución)",IF(AND(F16=2,J16=3),"Oportunidad de mejora","Mantenimiento del control")))) -> Mantenimiento del control | L16: =+IF(K16="",75,IF(K16="Deficiencia de control mayor (diseño y ejecución)",80,IF(K16="Deficiencia de control (diseño o ejecución)",100,IF(K16="Oportunidad de mejora",120,140)))) -> 140 | M16: 1.7896 | N16: =+L16+M16 -> 141.79
G17: 2 | H17: Para lo descrito por el proceso se logra identificar su cumplimiento, de acuerdo a los soportes suministrados (documento, link, correo, etc que soporte la explicación).
G18: 3
G19: 4
G20: 5
G21: 6
B22: =+LEFT(C22,3) -> 6.2 | C22: 6.2 Los objetivos de los procesos, programas o proyectos (según aplique) que están definidos, son específicos, medibles, alcanzables, relevantes, delimitados en el tiempo. | D22: Dimension de Gestion con Valores para Resultado Politica de Fortalecimiento Organizacional y Simplificaciòn de Procesos | E22: Se tiene una planeación estratégica que contiene las metas, indicadores, hitos y la programación de cumplimiento de las actividades, la variabe de medición y la evidencia que soporta la ejecución de la actividad. Se tiene implementado el procedimiento para la medición de la gestión del IDT, cuyo objetivo es Consolidar, medir y analizar la gestión de la entidad por medio de indicadores definidos por cada uno de los procesos, realizando seguimiento trimestral para evaluar el cumplimiento de objetivos y metas institucionales, con el fin de propender por el mejoramiento continuo y el fortalecimiento de los principios de eficiencia, eficacia y efectividad. De igual forma se cuenta con la matriz de indicadores de gestión, que permiten medir el cumplimiento de los objetivos de los procesos. Se tiene implementado el Plan de Accion MIPG, que permite que todos los procesos se encuentren alineados con el Modelo Integrado de Planeacion y Gestion MIPG. Evidencias: DE-P05 Procedimiento para la Medición de la Gestión del IDT https://intranet.idt.gov.co/sites/default/files/2025-06/SIG-P05_Procedimiento%20para%20la%20Medicion%20de%20la%20Gestion%20del%20IDT_V11_10062025.pdf Matriz de indicadores 2024 https://docs.google.com/spreadsheets/d/1HO5ZFpDme7V6_cZ-ApBLd8M1TlD5Cbd3/edit?gid=1383952703#gid=1383952703 Plan de accion MIPG 2024 https://docs.google.com/spreadsheets/d/1kx_WwOcxVkWfuZWc4vZWeKIlU83Fwj63SLHnf347rco/edit?gid=1276447305#gid=1276447305 | F22: 3 | G22: 1 | H22: En el primer semestre de la vigencia 2025, se presentaron resultados referentes al Informe metas plan de desarrollo. | I22: N/A | J22: 3 | K22: =+IF(OR(ISBLANK(F22),ISBLANK(J22)),"",IF(OR(AND(F22=1,J22=1),AND(F22=1,J22=2),AND(F22=1,J22=3)),"Deficiencia de control mayor (diseño y ejecución)",IF(OR(AND(F22=2,J22=2),AND(F22=3,J22=1),AND(F22=3,J22=2),AND(F22=2,J22=1)),"Deficiencia de control (diseño o ejecución)",IF(AND(F22=2,J22=3),"Oportunidad de mejora","Mantenimiento del control")))) -> Mantenimiento del control | L22: =+IF(K22="",75,IF(K22="Deficiencia de control mayor (diseño y ejecución)",80,IF(K22="Deficiencia de control (diseño o ejecución)",100,IF(K22="Oportunidad de mejora",120,140)))) -> 140 | M22: 1.8896 | N22: =+L22+M22 -> 141.89
G23: 2 | H23: Para lo descrito por el proceso se logra identificar su cumplimiento, de acuerdo a los soportes suministrados (documento, link, correo, etc que soporte la explicación).
G24: 3
G25: 4
G26: 5
G27: 6
G28: 7
B29: =+LEFT(C29,3) -> 6.3 | C29: 6.3 La Alta Dirección evalúa periódicamente los objetivos establecidos para asegurar que estos continúan siendo consistentes y apropiados para la Entidad.C32:H39E32C32:J39C32:I39C32:L39C32:Z39E32C32:J39C32:N39C32:L39C32:K39 | D29: Dimension de Direccionamiento Estratetegico y Planeacion. Politica de Planeacion Institucional Dimension Control Interno Linea Estrategica | E29: A través de los Comités Directivos se tratan temas que pueden afectar el normal desarrollo de la ejecución de los diferentes planes, programas y proyectos. Otro espacio importante de mencionar es el Comité Institucional de Gestión y Desempeño, en el cual se presentan temas importantes para la toma de decisiones. En lo que va corrido de la presente vigencia se han realizado cuatro (4) Comités, evidencia que reposa en la intranet del Instituto, es importante aclara que el ultima acta esta en proceso de firma. Evidencias: Las actas de los Comités Directivos reposan en la Dirección General (ahora se realizan de manera mensual). Actas de Comité MIPG https://intranet.idt.gov.co/es/procesos-estrategicos-docs?section=19 | F29: 3 | G29: 1 | H29: En el segundo semestre de la vigecnia 2025r se tiene previsto la realización de la auditoria al proceso de Direccionamiento Estrategico y planeación. | I29: NA | J29: 3 | K29: =+IF(OR(ISBLANK(F29),ISBLANK(J29)),"",IF(OR(AND(F29=1,J29=1),AND(F29=1,J29=2),AND(F29=1,J29=3)),"Deficiencia de control mayor (diseño y ejecución)",IF(OR(AND(F29=2,J29=2),AND(F29=3,J29=1),AND(F29=3,J29=2),AND(F29=2,J29=1)),"Deficiencia de control (diseño o ejecución)",IF(AND(F29=2,J29=3),"Oportunidad de mejora","Mantenimiento del control")))) -> Mantenimiento del control | L29: =+IF(K29="",75,IF(K29="Deficiencia de control mayor (diseño y ejecución)",80,IF(K29="Deficiencia de control (diseño o ejecución)",100,IF(K29="Oportunidad de mejora",120,140)))) -> 140 | M29: 1.9754 | N29: =+L29+M29 -> 141.98
G30: 2 | H30: Para lo descrito por el proceso se logra identificar su cumplimiento, de acuerdo a los soportes suministrados (documento, link, correo, etc que soporte la explicación)
G31: 3
G32: 4
G33: 5
G34: 6
G35: 7
C36: Lineamiento 7: Identificación y análisis de riesgos (Analiza factores internos y externos; Implica a los niveles apropiados de la dirección; Determina cómo responder a los riesgos; Determina la importancia de los riesgos). | D36: DIMENSIÓN O POLÍTICA DEL MIPG ASOCIADA AL REQUERIMIENTO | E36: Explicación de cómo la Entidad evidencia que está dando respuesta al requerimiento Referencia a Procesos, Manuales/Políticas de Operación/Procedimientos/Instructivos u otros desarrollos que den cuente de su aplicación | F36: Presente (1/2/3) | G36: EVIDENCIA DEL CONTROL | J36: Funcionando (1/2/3) | K36: Evaluación
G37: No. | H37: Referencia a Análisis y verificaciones en el marco del Comité Institucional de Coordinación de Control Interno | I37: Observaciones de la evaluacion independiente (tener encuenta papel de líneas de defensa)
B39: =+LEFT(C39,3) -> 7.1 | C39: 7.1 Teniendo en cuenta la estructura de la política de Administración del Riesgo, su alcance define lineamientos para toda la entidad, incluyendo regionales, áreas tercerizadas u otras instancias que afectan la prestación del servicio. | D39: Dimension de Direccionamiento Estratetegico y Planeacion. Politica de Planeacion Institucional | E39: Se cuenta con el procedimiento SIG-P08 Procedimiento para la administración de riesgos en el IDTpara gestionar de manera adecuada la identificación, registro, actualización, monitoreo y seguimiento a los riesgos de la entidad, teniendo en cuenta la metodología para la administración del Riesgos del Departamento Administrativo de la Función Pública, realizando seguimiestos cuatrimestrales a cada uno de los riesgos de los procesos. Desde la politica para la Administracion del Riesgo del IDT se tienen en cuenta los lineamientos emitidos en la Guía para la administración del riesgo y el diseño de controles en entidades públicas Evidencias: SIG-P08 Procedimiento para la administración de riesgos en el IDT https://intranet.idt.gov.co/sites/default/files/2023-12/SIG-P08%20Procedimiento%20para%20la%20administración%20de%20riesgos%20V5%2014112023.pdf Politica de administracion de riesgos https://intranet.idt.gov.co/sites/default/files/2023-12/SIG-P01%20Politica%20de%20Administración%20del%20Riesgo%20V5%2014122023.pdf | F39: 3 | G39: 1 | H39: En el marco del los comites llevados a cabo en el primer semestre de la vigencia 2025, se expusieron los resultados del informe de seguimiento a los riesgos tanto de gestión como de corrupción y en donde se presentan las recomendaciones. | I39: N/A | J39: 3 | K39: =+IF(OR(ISBLANK(F39),ISBLANK(J39)),"",IF(OR(AND(F39=1,J39=1),AND(F39=1,J39=2),AND(F39=1,J39=3)),"Deficiencia de control mayor (diseño y ejecución)",IF(OR(AND(F39=2,J39=2),AND(F39=3,J39=1),AND(F39=3,J39=2),AND(F39=2,J39=1)),"Deficiencia de control (diseño o ejecución)",IF(AND(F39=2,J39=3),"Oportunidad de mejora","Mantenimiento del control")))) -> Mantenimiento del control | L39: =+IF(K39="",75,IF(K39="Deficiencia de control mayor (diseño y ejecución)",80,IF(K39="Deficiencia de control (diseño o ejecución)",100,IF(K39="Oportunidad de mejora",120,140)))) -> 140 | M39: 2.0896 | N39: =+L39+M39 -> 142.09
G40: 2 | H40: Para lo descrito por el proceso se logra identificar su cumplimiento, de acuerdo a los soportes suministrados (documento, link, correo, etc que soporte la explicación).
G41: 3
G42: 4
G43: 5
G44: 6
G45: 7
G46: 8
B47: =+LEFT(C47,3) -> 7.2 | C47: 7.2 La Oficina de Planeación, Gerencia de Riesgos (donde existan), como 2a línea de defensa, consolidan información clave frente a la gestión del riesgo. | D47: Dimension Control Interno Lineas de Defensa | E47: Se realiza seguimientro cuatrimestral a los Mapas de Riesgos de Corrupción y de Gestión del IDT por parte de la Subidreccion de Planeacion (Actas mesas de trabajo en las que se revisó y actualizó los riegos de gestión y corrupción) A partir del seguimiento realizado se realiza la actualizacion de la matriz institucional de riesgos. Evidencias: Actas de seguimiento a riesgos son reportadas de manera cuatrimestral a la oficina de control interno, se adjuntan por correo del proesente reporte. Matriz de riesgos: https://www.idt.gov.co/index.php/es/transparencia-y-acceso-la-informacion 4.3.3.1. Matriz de riesgos de gestión y Corrupción | F47: 3 | G47: 1 | H47: En el marco del los comites llevados a cabo en el primer semestre de la vigencia 2025, se expusieron los resultados del informe de seguimiento a los riesgos tanto de gestión como de corrupción y en donde se presentan las recomendaciones. | I47: En el informe de seguimiento a Riesgos que se realiza con una periodicidad cuatrimestral, se definen las recomendaciones generales frente a lo evaluado por parte de la Asesoría de Control Interno. | J47: 3 | K47: =+IF(OR(ISBLANK(F47),ISBLANK(J47)),"",IF(OR(AND(F47=1,J47=1),AND(F47=1,J47=2),AND(F47=1,J47=3)),"Deficiencia de control mayor (diseño y ejecución)",IF(OR(AND(F47=2,J47=2),AND(F47=3,J47=1),AND(F47=3,J47=2),AND(F47=2,J47=1)),"Deficiencia de control (diseño o ejecución)",IF(AND(F47=2,J47=3),"Oportunidad de mejora","Mantenimiento del control")))) -> Mantenimiento del control | L47: =+IF(K47="",75,IF(K47="Deficiencia de control mayor (diseño y ejecución)",80,IF(K47="Deficiencia de control (diseño o ejecución)",100,IF(K47="Oportunidad de mejora",120,140)))) -> 140 | M47: 2.1456 | N47: =+L47+M47 -> 142.15
G48: 2 | H48: Para lo descrito por el proceso se logra identificar su cumplimiento, de acuerdo a los soportes suministrados (documento, link, correo, etc que soporte la explicación).
G49: 3
G50: 4
G51: 5
G52: 6
G53: 7
G54: 8
B55: =+LEFT(C55,3) -> 7.3 | C55: 7.3 A partir de la información consolidada y reportada por la 2a línea de defensa (7.2), la Alta Dirección analiza sus resultados y en especial considera si se han presentado materializaciones de riesgo. | D55: Dimension Control Interno Lineas de Defensa | E55: En el espacio del Comité Institucional de Gestión y Desempeño se lleva el reporte del mapa de riesgos institucional presentando si hubo o no materialización de alguno de ellos. Evidencias: Comité No. 6 del 20/09/2024. https://intranet.idt.gov.co/es/procesos-estrategicos-docs?section=19 / Registros 2024. | F55: 3 | G55: 1 | H55: En el marco del los comites llevados a cabo en el primer semestre de la vigencia 2025, se expusieron los resultados del informe de seguimiento a los riesgos tanto de gestión como de corrupción y en donde se presentan las recomendaciones. | I55: N/A | J55: 3 | K55: =+IF(OR(ISBLANK(F55),ISBLANK(J55)),"",IF(OR(AND(F55=1,J55=1),AND(F55=1,J55=2),AND(F55=1,J55=3)),"Deficiencia de control mayor (diseño y ejecución)",IF(OR(AND(F55=2,J55=2),AND(F55=3,J55=1),AND(F55=3,J55=2),AND(F55=2,J55=1)),"Deficiencia de control (diseño o ejecución)",IF(AND(F55=2,J55=3),"Oportunidad de mejora","Mantenimiento del control")))) -> Mantenimiento del control | L55: =+IF(K55="",75,IF(K55="Deficiencia de control mayor (diseño y ejecución)",80,IF(K55="Deficiencia de control (diseño o ejecución)",100,IF(K55="Oportunidad de mejora",120,140)))) -> 140 | M55: 2.2365 | N55: =+L55+M55 -> 142.24
G56: 2 | H56: Para lo descrito por el proceso se logra identificar su cumplimiento, de acuerdo a los soportes suministrados (documento, link, correo, etc que soporte la explicación).
G57: 3
B58: =+LEFT(C58,3) -> 7.4 | C58: 7.4 Cuando se detectan materializaciones de riesgo, se definen los cursos de acción en relación con la revisión y actualización del mapa de riesgos correspondiente. | D58: Dimension de Direccionamiento Estratetegico y Planeacion. Politica de Planeacion Institucional Dimension Control Interno Lineas de Defensa | E58: Se implementó la política administración del riesgo, la cual establece el marco general para la administración de los riesgos a los que puede enfrentarse el Instituto, en el numeral 11 establece posibles competencias e impactos ante la posible materializacion de un riesgo Evidencias: SIG-P01 Política de Administración del Riesgo https://intranet.idt.gov.co/sites/default/files/2023-12/SIG-P01%20Politica%20de%20Administración%20del%20Riesgo%20V5%2014122023.pdf | F58: 3 | G58: 1 | H58: En el marco del los comites llevados a cabo en el primer semestre de la vigencia 2025, se expusieron los resultados del informe de seguimiento a los riesgos tanto de gestión como de corrupción y en donde se presentan las recomendaciones. | I58: N/A | J58: 3 | K58: =+IF(OR(ISBLANK(F58),ISBLANK(J58)),"",IF(OR(AND(F58=1,J58=1),AND(F58=1,J58=2),AND(F58=1,J58=3)),"Deficiencia de control mayor (diseño y ejecución)",IF(OR(AND(F58=2,J58=2),AND(F58=3,J58=1),AND(F58=3,J58=2),AND(F58=2,J58=1)),"Deficiencia de control (diseño o ejecución)",IF(AND(F58=2,J58=3),"Oportunidad de mejora","Mantenimiento del control")))) -> Mantenimiento del control | L58: =+IF(K58="",75,IF(K58="Deficiencia de control mayor (diseño y ejecución)",80,IF(K58="Deficiencia de control (diseño o ejecución)",100,IF(K58="Oportunidad de mejora",120,140)))) -> 140 | M58: 2.3896 | N58: =+L58+M58 -> 142.39
G59: 2 | H59: Para lo descrito por el proceso se logra identificar su cumplimiento, de acuerdo a los soportes suministrados (documento, link, correo, etc que soporte la explicación).
G60: 3
G61: 4
G62: 5
G63: 6
G64: 7
G65: 8
B66: =+LEFT(C66,3) -> 7.5 | C66: 7.5 Se llevan a cabo seguimientos a las acciones definidas para resolver materializaciones de riesgos detectadas. | D66: Dimension de Evaluacion de Resultados Politica de Seguimiento y evaluacion al Desempeño Institucional. Dimension Control Interno Lineas de Defensa | E66: En el caso de presentarse alguna materializaron, a raíz de los monitoreos, seguimientos y evaluaciones realizadas a los procesos por parte de la Asesoría de Control Interno, se solicita, la suscripción de planes de mejoramiento para realizar las correspondientes correcciones y/o acciones correctivas y generar o actualizar los controles, dentro de la matriz de riesgos para la adecuada mitigación de los mismos. | F66: 3 | G66: 1 | H66: En el marco del los comites llevados a cabo en el primer semestre de la vigencia 2025, se expusieron los resultados del informe de seguimiento a los riesgos tanto de gestión como de corrupción y en donde se presentan las recomendaciones. | I66: Se realizan los seguimientos a los planes de mejoramiento suscritos a raiz de las materializaciones de los riesgos planteados para la vigencia 2025. | J66: 3 | K66: =+IF(OR(ISBLANK(F66),ISBLANK(J66)),"",IF(OR(AND(F66=1,J66=1),AND(F66=1,J66=2),AND(F66=1,J66=3)),"Deficiencia de control mayor (diseño y ejecución)",IF(OR(AND(F66=2,J66=2),AND(F66=3,J66=1),AND(F66=3,J66=2),AND(F66=2,J66=1)),"Deficiencia de control (diseño o ejecución)",IF(AND(F66=2,J66=3),"Oportunidad de mejora","Mantenimiento del control")))) -> Mantenimiento del control | L66: =+IF(K66="",75,IF(K66="Deficiencia de control mayor (diseño y ejecución)",80,IF(K66="Deficiencia de control (diseño o ejecución)",100,IF(K66="Oportunidad de mejora",120,140)))) -> 140 | M66: 2.4563 | N66: =+L66+M66 -> 142.46
G67: 2
G68: 3
G69: 4
G70: 5
G71: 6
G72: 7
G73: 8
C74: Lineamiento 8: Evaluación del riesgo de fraude o corrupción. Cumplimiento artículo 73 de la Ley 1474 de 2011, relacionado con la prevención de los riesgos de corrupción. | D74: DIMENSIÓN O POLÍTICA DEL MIPG ASOCIADA AL REQUERIMIENTO | E74: Explicación de cómo la Entidad evidencia que está dando respuesta al requerimiento Referencia a Procesos, Manuales/Políticas de Operación/Procedimientos/Instructivos u otros desarrollos que den cuente de su aplicación | F74: Presente (1/2/3) | G74: EVIDENCIA DEL CONTROL | J74: Funcionando (1/2/3) | K74: Evaluación
G75: No. | H75: Referencia a Análisis y verificaciones en el marco del Comité Institucional de Coordinación de Control Interno | I75: Observaciones de la evaluacion independiente (tener encuenta papel de líneas de defensa)
B77: =+LEFT(C77,3) -> 8.1 | C77: 8.1 La Alta Dirección acorde con el análisis del entorno interno y externo, define los procesos, programas o proyectos (según aplique), susceptibles de posibles actos de corrupción. | D77: Dimension de Direccionamiento Estratetegico y Planeacion. Politica de Planeacion Institucional | E77: Con el acompañamiento de la Subdirección de Planeación, cada uno de los procesos realiza el analisis en donde se puedan presentar posibles actos de corrución - Mapa de riesgo de corrupcion. Evidencias: Matriz de riesgos: https://www.idt.gov.co/index.php/es/transparencia-y-acceso-la-informacion 4.3.3.1. Matriz de riesgos de gestión y Corrupción4.3.3.1. Matriz de riesgos de gestión y Corrupción | F77: 3 | G77: 1 | H77: En el marco del los comites llevados a cabo en el primer semestre de la vigencia 2025, se expusieron los resultados del informe de seguimiento a los riesgos tanto de gestión como de corrupción y en donde se presentan las recomendaciones. | I77: NA | J77: 3 | K77: =+IF(OR(ISBLANK(F77),ISBLANK(J77)),"",IF(OR(AND(F77=1,J77=1),AND(F77=1,J77=2),AND(F77=1,J77=3)),"Deficiencia de control mayor (diseño y ejecución)",IF(OR(AND(F77=2,J77=2),AND(F77=3,J77=1),AND(F77=3,J77=2),AND(F77=2,J77=1)),"Deficiencia de control (diseño o ejecución)",IF(AND(F77=2,J77=3),"Oportunidad de mejora","Mantenimiento del control")))) -> Mantenimiento del control | L77: =+IF(K77="",75,IF(K77="Deficiencia de control mayor (diseño y ejecución)",80,IF(K77="Deficiencia de control (diseño o ejecución)",100,IF(K77="Oportunidad de mejora",120,140)))) -> 140 | M77: 2.5458 | N77: =+L77+M77 -> 142.55
G78: 2 | H78: Para lo descrito por el proceso se logra identificar su cumplimiento, de acuerdo a los soportes suministrados (documento, link, correo, etc que soporte la explicación).
G79: 3
G80: 8
B81: =+LEFT(C81,3) -> 8.2 | C81: 8.2 La Alta Dirección monitorea los riesgos de corrupción con la periodicidad establecida en la Política de Administración del Riesgo. | D81: Dimension de Control Interno Linea Estrategica | E81: Dentro del documento política de Administración de Riesgos, se establece la periodicidad en la que la que los riesgos de corrupción deben ser monitoreados por la OAP. Por parte de la asesoría de Control Interno se realizan los seguimientos correspondientes, los cuales son publicados y remitidos a la alta dirección para su conocimiento y fines pertinentes; así mismo se evidencia dentro del Comités Institucionales de Control Interno la presentación de los seguimientos respectivos a los riesgos de corrupción así como los tratamientos para su mitigación. Evidencia: Informe seguimiento riesgos de gestión y corrupción https://www.idt.gov.co/seguimientos | F81: 3 | G81: 1 | H81: En el marco del los comites llevados a cabo en el primer semestre de la vigencia 2025, se expusieron los resultados del informe de seguimiento a los riesgos tanto de gestión como de corrupción y en donde se presentan las recomendaciones. | I81: Las observaciones y recomendaciones referentes a la gestión de los riesgos se encuentran en los informes de seguimiento cuatrimestrales publicados en la pagina Web de la Entidad. | J81: 3 | K81: =+IF(OR(ISBLANK(F81),ISBLANK(J81)),"",IF(OR(AND(F81=1,J81=1),AND(F81=1,J81=2),AND(F81=1,J81=3)),"Deficiencia de control mayor (diseño y ejecución)",IF(OR(AND(F81=2,J81=2),AND(F81=3,J81=1),AND(F81=3,J81=2),AND(F81=2,J81=1)),"Deficiencia de control (diseño o ejecución)",IF(AND(F81=2,J81=3),"Oportunidad de mejora","Mantenimiento del control")))) -> Mantenimiento del control | L81: =+IF(K81="",75,IF(K81="Deficiencia de control mayor (diseño y ejecución)",80,IF(K81="Deficiencia de control (diseño o ejecución)",100,IF(K81="Oportunidad de mejora",120,140)))) -> 140 | M81: 2.6321 | N81: =+L81+M81 -> 142.63
G82: 2 | H82: Para lo descrito por el proceso se logra identificar su cumplimiento, de acuerdo a los soportes suministrados (documento, link, correo, etc que soporte la explicación).
G83: 3
G84: 4
G85: 5
G86: 6
G87: 7
G88: 8
B89: =+LEFT(C89,3) -> 8.3 | C89: 8.3 Para el desarrollo de las actividades de control, la entidad considera la adecuada división de las funciones y que éstas se encuentren segregadas en diferentes personas para reducir el riesgo de acciones fraudulentas. | D89: Dimension de Contro Interno Lineas de Defensa | E89: Con el acompañamiento de la Subdirección de Planeación, cada uno de los procesos realiza el analisis en donde se puedan presentar posibles actos de corrución - Mapa de riesgo de corrupcion. Evidencias: Matriz de riesgos: https://www.idt.gov.co/index.php/es/transparencia-y-acceso-la-informacion 4.3.3.1. Matriz de riesgos de gestión y Corrupción4.3.3.1. Matriz de riesgos de gestión y Corrupción | F89: 3 | G89: 1 | H89: En el marco del los comites llevados a cabo en el primer semestre de la vigencia 2025, se expusieron los resultados del informe de seguimiento a los riesgos tanto de gestión como de corrupción y en donde se presentan las recomendaciones. | I89: Dentro del informe de seguimiento a los riesgos, se especifican las recomendaciones para cada una de las lineas de defensa. | J89: 3 | K89: =+IF(OR(ISBLANK(F89),ISBLANK(J89)),"",IF(OR(AND(F89=1,J89=1),AND(F89=1,J89=2),AND(F89=1,J89=3)),"Deficiencia de control mayor (diseño y ejecución)",IF(OR(AND(F89=2,J89=2),AND(F89=3,J89=1),AND(F89=3,J89=2),AND(F89=2,J89=1)),"Deficiencia de control (diseño o ejecución)",IF(AND(F89=2,J89=3),"Oportunidad de mejora","Mantenimiento del control")))) -> Mantenimiento del control | L89: =+IF(K89="",75,IF(K89="Deficiencia de control mayor (diseño y ejecución)",80,IF(K89="Deficiencia de control (diseño o ejecución)",100,IF(K89="Oportunidad de mejora",120,140)))) -> 140 | M89: 2.7456 | N89: =+L89+M89 -> 142.75
G90: 2 | H90: Para lo descrito por el proceso se logra identificar su cumplimiento, de acuerdo a los soportes suministrados (documento, link, correo, etc que soporte la explicación).
G91: 3
G92: 4
G93: 8
B94: =+LEFT(C94,3) -> 8.4 | C94: 8.4 La Alta Dirección evalúa fallas en los controles (diseño y ejecución) para definir cursos de acción apropiados para su mejora. | D94: Dimension de Control Interno Linea Estrategica | E94: Se realiza seguimiento cuatrimestral a los Mapas de Riesgos de Corrupción y de Gestión del IDT por parte de la Subidreccion de Planeacion (Actas mesas de trabajo en las que se revisó y actualizó los riegos de gestión y corrupción). En el espacio del Comité Institucional de Gestión y Desempeño se lleva el reporte del mapa de riesgos institucional presentando si hubo o no materialización de alguno de ellos. Evidencias: Actas de seguimiento a riesgos primer cuatrimestre 2025, se adjuntan en el correo Comité No. 6., del 20/09/2024. https://intranet.idt.gov.co/es/procesos-estrategicos-docs?section=19 / Registros 2024. Para la vigencia 2025 no se ha realizado el comité correspondiente, el espacio se programa en el mes de septiembre. | F94: 3 | G94: 1 | H94: En el marco del los comites llevados a cabo en el primer semestre de la vigencia 2025, se expusieron los resultados del informe de seguimiento a los riesgos tanto de gestión como de corrupción y en donde se presentan las recomendaciones. | I94: Dentro del informe de seguimiento a los riesgos de gestión y corrupción se especifican las observaciones y recomendaciones para cada uno de lo procesos referentes al diseño y ejecución de controles | J94: 3 | K94: =+IF(OR(ISBLANK(F94),ISBLANK(J94)),"",IF(OR(AND(F94=1,J94=1),AND(F94=1,J94=2),AND(F94=1,J94=3)),"Deficiencia de control mayor (diseño y ejecución)",IF(OR(AND(F94=2,J94=2),AND(F94=3,J94=1),AND(F94=3,J94=2),AND(F94=2,J94=1)),"Deficiencia de control (diseño o ejecución)",IF(AND(F94=2,J94=3),"Oportunidad de mejora","Mantenimiento del control")))) -> Mantenimiento del control | L94: =+IF(K94="",75,IF(K94="Deficiencia de control mayor (diseño y ejecución)",80,IF(K94="Deficiencia de control (diseño o ejecución)",100,IF(K94="Oportunidad de mejora",120,140)))) -> 140 | M94: 2.8745 | N94: =+L94+M94 -> 142.87
G95: 2 | H95: Para lo descrito por el proceso se logra identificar su cumplimiento, de acuerdo a los soportes suministrados (documento, link, correo, etc que soporte la explicación).
G96: 3
G97: 4
G98: 8
C99: Lineamiento 9: Identificación y análisis de cambios significativos | D99: DIMENSIÓN O POLÍTICA DEL MIPG ASOCIADA AL REQUERIMIENTO | E99: Explicación de cómo la Entidad evidencia que está dando respuesta al requerimiento Referencia a Procesos, Manuales/Políticas de Operación/Procedimientos/Instructivos u otros desarrollos que den cuente de su aplicación | F99: Presente (1/2/3) | G99: EVIDENCIA DEL CONTROL | J99: Funcionando (1/2/3) | K99: Evaluación
G100: No. | H100: Referencia a Análisis y verificaciones en el marco del Comité Institucional de Coordinación de Control Interno | I100: Observaciones de la evaluacion independiente (tener encuenta papel de líneas de defensa)
B102: =+LEFT(C102,3) -> 9.1 | C102: 9.1 Acorde con lo establecido en la política de Administración del Riesgo, se monitorean los factores internos y externos definidos para la entidad, a fin de establecer cambios en el entorno que determinen nuevos riesgos o ajustes a los existentes. | D102: Dimension de Direccionamiento Estrategico Politica de Planeacion Institucional | E102: Se realiza seguimientro cuatrimestral a los Mapas de Riesgos de Corrupción y de Gestión del IDT por parte de la Subidreccion de Planeacion (Actas mesas de trabajo en las que se revisó y actualizó los riegos de gestión y corrupción) Evidencias: Actas de seguimiento a riesgos primer cuatrimestre 2025, se adjuntan en el correo | F102: 3 | G102: 1 | H102: En el marco del los comites llevados a cabo en el primer semestre de la vigencia 2025, se expusieron los resultados del informe de seguimiento a los riesgos tanto de gestión como de corrupción y en donde se presentan las recomendaciones. | I102: NA | J102: 3 | K102: =+IF(OR(ISBLANK(F102),ISBLANK(J102)),"",IF(OR(AND(F102=1,J102=1),AND(F102=1,J102=2),AND(F102=1,J102=3)),"Deficiencia de control mayor (diseño y ejecución)",IF(OR(AND(F102=2,J102=2),AND(F102=3,J102=1),AND(F102=3,J102=2),AND(F102=2,J102=1)),"Deficiencia de control (diseño o ejecución)",IF(AND(F102=2,J102=3),"Oportunidad de mejora","Mantenimiento del control")))) -> Mantenimiento del control | L102: =+IF(K102="",75,IF(K102="Deficiencia de control mayor (diseño y ejecución)",80,IF(K102="Deficiencia de control (diseño o ejecución)",100,IF(K102="Oportunidad de mejora",120,140)))) -> 140 | M102: 2.9635 | N102: =+L102+M102 -> 142.96
G103: 2 | H103: Para lo descrito por el proceso se logra identificar su cumplimiento, de acuerdo a los soportes suministrados (documento, link, correo, etc que soporte la explicación)
G104: 3
G105: 8
B106: =+LEFT(C106,3) -> 9.2 | C106: 9.2 La Alta Dirección analiza los riesgos asociados a actividades tercerizadas, regionales u otras figuras externas que afecten la prestación del servicio a los usuarios, basados en los informes de la segunda y tercera linea de defensa. | D106: Dimension de Control Interno Lineas de Defensa | E106: Por cada uno de los procesos del Instituto Distrital de Turismo se realizó la identificación, análisis, valoración, control, prevención, acciones de mitigación, tratamiento y autoevaluación de los riesgos de gestión como de corrupción, en cuanto a los riesgos asociados a actividades tercerizadas se identificaron en los procesos de: mercadeo turístico y desarrollo y competitividad a traves del contrato de la BTL. En el espacio del Comité Institucional de Gestión y Desempeño se lleva el reporte del mapa de riesgos institucional presentando si hubo o no materialización de alguno de ellos. Evidencias: Matriz de riesgos: https://www.idt.gov.co/index.php/es/transparencia-y-acceso-la-informacion 4.3.3.1. Matriz de riesgos de gestión y Corrupción Comité No. 6, del 20/09/2024. https://intranet.idt.gov.co/es/procesos-estrategicos-docs?section=19 / Registros 2024. Para la vigencia 2025 no se ha realizado el comité correspondiente, el espacio se programara en el mes de septiembre. | F106: 3 | G106: 1 | H106: En el marco del los comites llevados a cabo en el primer semestre de la vigencia 2025, se expusieron los resultados del informe de seguimiento a los riesgos tanto de gestión como de corrupción y en donde se presentan las recomendaciones. | I106: Dentro del informe de seguimiento a los riesgos de gestión y corrupción se especifican las recomendaciones para cada una de las lineas de defensa relacionado a la afectación de servicios en toda la Entidad | J106: 3 | K106: =+IF(OR(ISBLANK(F106),ISBLANK(J106)),"",IF(OR(AND(F106=1,J106=1),AND(F106=1,J106=2),AND(F106=1,J106=3)),"Deficiencia de control mayor (diseño y ejecución)",IF(OR(AND(F106=2,J106=2),AND(F106=3,J106=1),AND(F106=3,J106=2),AND(F106=2,J106=1)),"Deficiencia de control (diseño o ejecución)",IF(AND(F106=2,J106=3),"Oportunidad de mejora","Mantenimiento del control")))) -> Mantenimiento del control | L106: =+IF(K106="",75,IF(K106="Deficiencia de control mayor (diseño y ejecución)",80,IF(K106="Deficiencia de control (diseño o ejecución)",100,IF(K106="Oportunidad de mejora",120,140)))) -> 140 | M106: 3.0125 | N106: =+L106+M106 -> 143.01
G107: 2 | H107: Para lo descrito por el proceso se logra identificar su cumplimiento, de acuerdo a los soportes suministrados (documento, link, correo, etc que soporte la explicación).
G108: 3
G109: 4
G110: 5
G111: 6
G112: 7
G113: 8
B114: =+LEFT(C114,3) -> 9.3 | C114: 9.3 La Alta Dirección monitorea los riesgos aceptados revisando que sus condiciones no hayan cambiado y definir su pertinencia para sostenerlos o ajustarlos. | D114: Dimension de Control Interno Linea Estrategica | E114: En el espacio del Comité Institucional de Gestión y Desempeño se lleva el reporte del mapa de riesgos institucional presentando si hubo o no materialización de alguno de ellos. Evidencias: Comité No. 6, del 20/09/2024. https://intranet.idt.gov.co/es/procesos-estrategicos-docs?section=19 / Registros 2024. Para la vigencia 2025 no se ha realizado el comité correspondiente, el espacio se programara en el mes de septiembre. | F114: 3 | G114: 1 | H114: En el marco de las sesiones del Comité Institucional de Coordinación de Control Interno, llevadas a cabo en el primer semestre de la vigencia 2025, se presentaron los resultados del seguimiento trimestral en donde se reflejan los cambios presentados a los riesgos de cada uno de los procesos de la entidad. | I114: Dentro del informe de seguimiento a los riesgos de gestión y corrupción se especifican las recomendaciones para cada uno de los procesos. | J114: 3 | K114: =+IF(OR(ISBLANK(F114),ISBLANK(J114)),"",IF(OR(AND(F114=1,J114=1),AND(F114=1,J114=2),AND(F114=1,J114=3)),"Deficiencia de control mayor (diseño y ejecución)",IF(OR(AND(F114=2,J114=2),AND(F114=3,J114=1),AND(F114=3,J114=2),AND(F114=2,J114=1)),"Deficiencia de control (diseño o ejecución)",IF(AND(F114=2,J114=3),"Oportunidad de mejora","Mantenimiento del control")))) -> Mantenimiento del control | L114: =+IF(K114="",75,IF(K114="Deficiencia de control mayor (diseño y ejecución)",80,IF(K114="Deficiencia de control (diseño o ejecución)",100,IF(K114="Oportunidad de mejora",120,140)))) -> 140 | M114: 3.1236 | N114: =+L114+M114 -> 143.12
G115: 2
G116: 3
B117: =+LEFT(C117,3) -> 9.4 | C117: 9.4 La Alta Dirección evalúa fallas en los controles (diseño y ejecución) para definir cursos de acción apropiados para su mejora, basados en los informes de la segunda y tercera linea de defensa. | D117: Dimension de Control Interno Lineas de Defensa | E117: En el espacio del Comité Institucional de Gestión y Desempeño se lleva el reporte del mapa de riesgos institucional presentando si hubo o no materialización de alguno de ellos. Informes de monitores de la Asesorìa de Control Interno Evidencias: Comité No. 6, del 20/09/2024. https://intranet.idt.gov.co/es/procesos-estrategicos-docs?section=19 / Registros 2024. Para la vigencia 2025 no se ha realizado el comité correspondiente, el espacio se programara en el mes de septiembre. https://www.idt.gov.co/seguimientos | F117: 3 | G117: 1 | H117: En el marco de las sesiones del Comité Institucional de Coordinación de Control Interno, llevadas a cabo en el primer semestre de la vigencia 2025, se presentaron los resultados del seguimiento trimestral en donde se reflejan los cambios presentados a los riesgos de cada uno de los procesos de la entidad. | I117: NA | J117: 3 | K117: =+IF(OR(ISBLANK(F117),ISBLANK(J117)),"",IF(OR(AND(F117=1,J117=1),AND(F117=1,J117=2),AND(F117=1,J117=3)),"Deficiencia de control mayor (diseño y ejecución)",IF(OR(AND(F117=2,J117=2),AND(F117=3,J117=1),AND(F117=3,J117=2),AND(F117=2,J117=1)),"Deficiencia de control (diseño o ejecución)",IF(AND(F117=2,J117=3),"Oportunidad de mejora","Mantenimiento del control")))) -> Mantenimiento del control | L117: =+IF(K117="",75,IF(K117="Deficiencia de control mayor (diseño y ejecución)",80,IF(K117="Deficiencia de control (diseño o ejecución)",100,IF(K117="Oportunidad de mejora",120,140)))) -> 140 | M117: 3.2456 | N117: =+L117+M117 -> 143.25
G118: 2 | H118: Para lo descrito por el proceso se logra identificar su cumplimiento, de acuerdo a los soportes suministrados (documento, link, correo, etc que soporte la explicación).
G119: 3
G120: 4
G121: 5
G122: 6
G123: 7
G124: 8
B125: =+LEFT(C125,3) -> 9.5 | C125: 9.5 La entidad analiza el impacto sobre el control interno por cambios en los diferentes niveles organizacionales. | D125: Dimension de Direccionamiento Estrategico y Planeacion Politica de Planeacion Institucional Dimension de Control Interno Linea Estrategica | E125: En el espacio del Comité Institucional de Gestión y Desempeño se lleva el reporte del mapa de riesgos institucional presentando si hubo o no materialización de alguno de ellos. Igualmente con la revisión cuatrimestral por parte de la Subdirección de Planeación se revisan los controles de cada uno de los riesgos y si es necesario se hace su ajuste. Evidencias: Comité No. 6, del 20/09/2024. https://intranet.idt.gov.co/es/procesos-estrategicos-docs?section=19 / Registros 2024. Para la vigencia 2025 no se ha realizado el comité correspondiente, el espacio se programara en el mes de septiembre. Actas de seguimiento a riesgos primer cuatrimestre 2025, se adjuntan en el correo | F125: 3 | G125: 1 | H125: En el marco de las sesiones del Comité Institucional de Coordinación de Control Interno, llevadas a cabo en el primer semestre de la vigencia 2025, se presentaron los resultados del seguimiento trimestral en donde se reflejan los cambios presentados a los riesgos de cada uno de los procesos de la entidad. | J125: 3 | K125: =+IF(OR(ISBLANK(F125),ISBLANK(J125)),"",IF(OR(AND(F125=1,J125=1),AND(F125=1,J125=2),AND(F125=1,J125=3)),"Deficiencia de control mayor (diseño y ejecución)",IF(OR(AND(F125=2,J125=2),AND(F125=3,J125=1),AND(F125=3,J125=2),AND(F125=2,J125=1)),"Deficiencia de control (diseño o ejecución)",IF(AND(F125=2,J125=3),"Oportunidad de mejora","Mantenimiento del control")))) -> Mantenimiento del control | L125: =+IF(K125="",75,IF(K125="Deficiencia de control mayor (diseño y ejecución)",80,IF(K125="Deficiencia de control (diseño o ejecución)",100,IF(K125="Oportunidad de mejora",120,140)))) -> 140 | M125: 3.3654 | N125: =+L125+M125 -> 143.37
G126: 2 | H126: Para lo descrito por el proceso se logra identificar su cumplimiento, de acuerdo a los soportes suministrados (documento, link, correo, etc que soporte la explicación).
G127: 3
G128: 4
G129: 5
G130: 6
G131: 7
G132: 8

Sheet Actividades de control
C15: ACTIVIDADES DE CONTROL
C16: La entidad define y desarrolla actividades de control que contribuyen a la mitigación de los riesgos hasta niveles aceptables para la consecución de los objetivos estratégicos y de proceso. Implementa políticas de operación mediante procedimientos u otros mecanismos que den cuenta de su aplicación en el día a día de las operaciones.
B18: ID | C18: Lineamiento 10: Diseño y desarrollo de actividades de control (Integra el desarrollo de controles con la evaluación de riesgos; tiene en cuenta a qué nivel se aplican las actividades; facilita la segregación de funciones). | D18: DIMENSIÓN O POLÍTICA DEL MIPG ASOCIADA AL REQUERIMIENTO | E18: Explicación de cómo la Entidad evidencia que está dando respuesta al requerimiento Referencia a Procesos, Manuales/Políticas de Operación/Procedimientos/Instructivos u otros desarrollos que den cuente de su aplicación | F18: Presente (1/2/3) | G18: EVIDENCIA DEL CONTROL | J18: Funcionando (1/2/3) | K18: Evaluación
G19: No. | H19: Referencia a Análisis y verificaciones en el marco del Comité Institucional de Coordinación de Control Interno | I19: Observaciones de la evaluacion independiente (tener encuenta papel de líneas de defensa)
B21: =+LEFT(C21,4) -> 10.1 | C21: 10.1 Para el desarrollo de las actividades de control, la entidad considera la adecuada división de las funciones y que éstas se encuentren segregadas en diferentes personas para reducir el riesgo de error o de incumplimientos de alto impacto en la operación. | D21: Dimension de Control Interno Lineas de Defensa | E21: Desde la politica para la Administracion del Riesgo del IDT se definen los roles y lineas de defensa Numeral 5.3.1 y el numeral 11 en el cual se evidencian los posibles impactos que puede acarrear la materializacion de los riesgos. Evidencias: SIG-P01 Política de Administración del Riesgo https://intranet.idt.gov.co/sites/default/files/2023-12/SIG-P01%20Politica%20de%20Administración%20del%20Riesgo%20V5%2014122023.pdf | F21: 3 | G21: 1 | H21: El informe de seguimientode riesgos, fue socializado dentro de los comites llevados a cabo en el primer semestre de la vigencia 2025, dentro de los temas a revisar se encuentra la política de administración de riesgos. | I21: NA | J21: 3 | K21: =+IF(OR(ISBLANK(F21),ISBLANK(J21)),"",IF(OR(AND(F21=1,J21=1),AND(F21=1,J21=2),AND(F21=1,J21=3)),"Deficiencia de control mayor (diseño y ejecución)",IF(OR(AND(F21=2,J21=2),AND(F21=3,J21=1),AND(F21=3,J21=2),AND(F21=2,J21=1)),"Deficiencia de control (diseño o ejecución)",IF(AND(F21=2,J21=3),"Oportunidad de mejora","Mantenimiento del control")))) -> Mantenimiento del control | L21: =+IF(K21="",152,IF(K21="Deficiencia de control mayor (diseño y ejecución)",160,IF(K21="Deficiencia de control (diseño o ejecución)",180,IF(K21="Oportunidad de mejora",200,220)))) -> 220 | M21: 3.4569 | N21: =+L21+M21 -> 223.4569
G22: 2 | H22: Para lo descrito por el proceso se logra identificar su cumplimiento, de acuerdo a los soportes suministrados (documento, link, correo, etc que soporte la explicación).
G23: 3
G24: 4
G25: 5
G26: 6
G27: 7
G28: 8
B29: =+LEFT(C29,4) -> 10.2 | C29: 10.2 Se han idenfificado y documentado las situaciones específicas en donde no es posible segregar adecuadamente las funciones (ej: falta de personal, presupuesto), con el fin de definir actividades de control alternativas para cubrir los riesgos identificados. | D29: Dimension de Control Interno Lineas de Defensa | E29: Dentro de la formulacion de la Planeación Estratégica 2024-2027 de acuerdo con el Plan de Desarrollo "Bogotá Camina Segura",se realizo el diagnostico y el analisis del contexto. Evidencias: Plan estrategico 2024 -2027 https://www.idt.gov.co/sites/default/files/2025-05/PEI%20IDT%202024%20-%202027%20-%20FINAL%2030042025.pdf | F29: 3 | G29: 1 | H29: El informe de seguimientode riesgos, fue socializado dentro de los comites llevados a cabo en el primer semestre de la vigencia 2025, se presentaron los resultados a los seguimientos , evaluaciones y monitoreos realzados por la ACI | I29: Todos los resultado se encuentrtan en cada uno de los informes se auditoria , seguimiento y monitoreo que realiza la Asesoria de Control Interno. | J29: 3 | K29: =+IF(OR(ISBLANK(F29),ISBLANK(J29)),"",IF(OR(AND(F29=1,J29=1),AND(F29=1,J29=2),AND(F29=1,J29=3)),"Deficiencia de control mayor (diseño y ejecución)",IF(OR(AND(F29=2,J29=2),AND(F29=3,J29=1),AND(F29=3,J29=2),AND(F29=2,J29=1)),"Deficiencia de control (diseño o ejecución)",IF(AND(F29=2,J29=3),"Oportunidad de mejora","Mantenimiento del control")))) -> Mantenimiento del control | L29: =+IF(K29="",152,IF(K29="Deficiencia de control mayor (diseño y ejecución)",160,IF(K29="Deficiencia de control (diseño o ejecución)",180,IF(K29="Oportunidad de mejora",200,220)))) -> 220 | M29: 3.5478 | N29: =+L29+M29 -> 223.5478
G30: 2 | H30: Para lo descrito por el proceso se logra identificar su cumplimiento, de acuerdo a los soportes suministrados (documento, link, correo, etc que soporte la explicación).
G31: 3
G32: 4
B33: =+LEFT(C33,4) -> 10.3 | C33: 10.3 El diseño de otros sistemas de gestión (bajo normas o estándares internacionales como la ISO), se intregan de forma adecuada a la estructura de control de la entidad. | D33: Dimension de Gestion con Valores para Resultados Dimension de Control Interno Lineas de Defensa | E33: Se cuenta con el manual DE-M01 Manual del Sistema Integrado de Gestión que define y compone el Sistema Integrado de Gestión del Instituto Distrital de Turismo. Se cuenta con el manual SIG-M07 Manual del Sistema de Administración de Riesgos LA/FT, en el cual se definen los criterios, etapas, instrumentos y metodologías para la implementación del sistema de administración de riesgo de Lavado de Activos y Financiación del Terrorismo -LA/FT. Dentro de los procedimiento de manera paulatina se ha venido incluyendo la relacion con el modelo MIPG Evidencias: DE-M01 Manual del Sistema Integrado de Gestión https://intranet.idt.gov.co/sites/default/files/2023-07/DE-M01%20Manual%20SIG%20V24%2030062023_0.pdf SIG-M07 Manual del Sistema de Administración de Riesgos LA/FT https://intranet.idt.gov.co/sites/default/files/2023-09/SIG-M07%20Manual%20SARLAFT%20V1%2025092023.pdf | F33: 3 | G33: 1 | H33: En la sesion del comité institucional de control interno llevada a cabo en el mes de mayo se presentan los resultado de las auditorias realizadas. | I33: N/A | J33: 3 | K33: =+IF(OR(ISBLANK(F33),ISBLANK(J33)),"",IF(OR(AND(F33=1,J33=1),AND(F33=1,J33=2),AND(F33=1,J33=3)),"Deficiencia de control mayor (diseño y ejecución)",IF(OR(AND(F33=2,J33=2),AND(F33=3,J33=1),AND(F33=3,J33=2),AND(F33=2,J33=1)),"Deficiencia de control (diseño o ejecución)",IF(AND(F33=2,J33=3),"Oportunidad de mejora","Mantenimiento del control")))) -> Mantenimiento del control | L33: =+IF(K33="",152,IF(K33="Deficiencia de control mayor (diseño y ejecución)",160,IF(K33="Deficiencia de control (diseño o ejecución)",180,IF(K33="Oportunidad de mejora",200,220)))) -> 220 | M33: 3.6458 | N33: =+L33+M33 -> 223.6458
G34: 2 | H34: Para lo descrito por el proceso se logra identificar su cumplimiento, de acuerdo a los soportes suministrados (documento, link, correo, etc que soporte la explicación).
G35: 3
G36: 4
G37: 5
G38: 6
G39: 7
G40: 8
C41: Lineamiento 11: Seleccionar y Desarrolla controles generales sobre TI para apoyar la consecución de los objetivos . | D41: DIMENSIÓN O POLÍTICA DEL MIPG ASOCIADA AL REQUERIMIENTO | E41: Explicación de cómo la Entidad evidencia que está dando respuesta al requerimiento Referencia a Procesos, Manuales/Políticas de Operación/Procedimientos/Instructivos u otros desarrollos que den cuente de su aplicación | F41: Presente (1/2/3) | G41: Ap | J41: Funcionando (1/2/3) | K41: Evaluación
G42: No. | H42: Referencia a Análisis y verificaciones en el marco del Comité Institucional de Coordinación de Control Interno | I42: Observaciones de la evaluacion independiente (tener encuenta papel de líneas de defensa)
B44: =+LEFT(C44,4) -> 11.1 | C44: 11.1 La entidad establece actividades de control relevantes sobre las infraestructuras tecnológicas; los procesos de gestión de la seguridad y sobre los procesos de adquisición, desarrollo y mantenimiento de tecnologías. | D44: Dimension de Gestion con Valores para el Resultado Politica de Gobierno Digital Politica de Seguridad Digital | E44: En desarrollo de los procesos de infraestructuras tecnológicas; los procesos de gestión de la seguridad y sobre los procesos de adquisición, desarrollo y mantenimiento de tecnologías, desde la Subdirección de Inteligencia y Gestión de Tecnologías de la Información- proceso Gestión Tecnológica se han elaborado y actualizado los siguientes documentos y los cuales se encuentran en implementación: GT-M04 Manual de Políticas de Seguridad y Privacidad de la Información V6 GT-M03 Manual de Políticas para la Administración y uso de las Tecnologías de la Información y la Comunicación (TIC) V7 GT-P17 Procedimiento Gestión de Cambios V1 GT-F23 Formato de solicitud Gestión de Cambios V1 y Evidencias: https://drive.google.com/drive/u/0/folders/1-MAqkV_IS4B28vBX3UsWcxBJCxOzyDYr | F44: 3 | G44: 1 | H44: Para lo descrito por el proceso se logra identificar su cumplimiento, de acuerdo a los soportes suministrados (documento, link, correo, etc que soporte la explicación). | I44: Para el segundo semestre de la vigencia 2025 se tiene previsto la realizacion de la auditoría al Modelo de Seguridad y privacidad de la información. | J44: 3 | K44: =+IF(OR(ISBLANK(F44),ISBLANK(J44)),"",IF(OR(AND(F44=1,J44=1),AND(F44=1,J44=2),AND(F44=1,J44=3)),"Deficiencia de control mayor (diseño y ejecución)",IF(OR(AND(F44=2,J44=2),AND(F44=3,J44=1),AND(F44=3,J44=2),AND(F44=2,J44=1)),"Deficiencia de control (diseño o ejecución)",IF(AND(F44=2,J44=3),"Oportunidad de mejora","Mantenimiento del control")))) -> Mantenimiento del control | L44: =+IF(K44="",152,IF(K44="Deficiencia de control mayor (diseño y ejecución)",160,IF(K44="Deficiencia de control (diseño o ejecución)",180,IF(K44="Oportunidad de mejora",200,220)))) -> 220 | M44: 3.7896 | N44: =+L44+M44 -> 223.7896
G45: 2
G46: 3
G47: 4
G48: 5
G49: 6
G50: 7
G51: 8
B52: =+LEFT(C52,4) -> 11.2 | C52: 11.2 Para los proveedores de tecnología selecciona y desarrolla actividades de control internas sobre las actividades realizadas por el proveedor de servicios. | D52: Dimension de Gestion con Valores para el Resultado Politica de Gobierno Digital Politica de Seguridad Digital | E52: El proceso de contratación para la Gestión Tecnológica de l IDT se realiza en un gran porcentaje a través de ordenes de compra, por lo cual no se requiere contar con un informe de seguimiento especifico o de manera periodica. Para el proceso de contratación con ETB se cuenta con un informe de disponibilidad de los servicios prestados por parte del proveedor como control de la gestión contractual desarrollada. Por último para la contratación del Licenciamiento del antivirus se realizó el informe de seguimiento y supervisión correspondiente. Evidencias: https://drive.google.com/drive/u/0/folders/1-MAqkV_IS4B28vBX3UsWcxBJCxOzyDYr | F52: 3 | G52: 1 | H52: Para el segundo semestre de la vigencia 2025 se tiene previsto la realizacion de la audiitoría al Modelo de Seguridad y Privacidad de la información MSPI. | I52: NA | J52: 3 | K52: =+IF(OR(ISBLANK(F52),ISBLANK(J52)),"",IF(OR(AND(F52=1,J52=1),AND(F52=1,J52=2),AND(F52=1,J52=3)),"Deficiencia de control mayor (diseño y ejecución)",IF(OR(AND(F52=2,J52=2),AND(F52=3,J52=1),AND(F52=3,J52=2),AND(F52=2,J52=1)),"Deficiencia de control (diseño o ejecución)",IF(AND(F52=2,J52=3),"Oportunidad de mejora","Mantenimiento del control")))) -> Mantenimiento del control | L52: =+IF(K52="",152,IF(K52="Deficiencia de control mayor (diseño y ejecución)",160,IF(K52="Deficiencia de control (diseño o ejecución)",180,IF(K52="Oportunidad de mejora",200,220)))) -> 220 | M52: 3.8456 | N52: =+L52+M52 -> 223.8456
G53: 2 | H53: Para lo descrito por el proceso se logra identificar su cumplimiento, de acuerdo a los soportes suministrados (documento, link, correo, etc que soporte la explicación).
G54: 3
G55: 4
G56: 5
G57: 6
G58: 7
G59: 8
B60: =+LEFT(C60,4) -> 11.3 | C60: 11.3 Se cuenta con matrices de roles y usuarios siguiendo los principios de segregación de funciones. | D60: Dimension de Gestion con Valores para el Resultado Politica de Fortalecimiento Organizacional y Simplificacion de Procesos. | E60: La entidad actualmente cuenta con el manual de funciones para cada funcionario https://www.alcaldiabogota.gov.co/sisjur/normas/Norma1.jsp?dt=S&i=138477 | F60: 3 | G60: 1 | H60: Para lo descrito por el proceso se logra identificar su cumplimiento, de acuerdo a los soportes suministrados (documento, link, correo, etc que soporte la explicación). | J60: 3 | K60: =+IF(OR(ISBLANK(F60),ISBLANK(J60)),"",IF(OR(AND(F60=1,J60=1),AND(F60=1,J60=2),AND(F60=1,J60=3)),"Deficiencia de control mayor (diseño y ejecución)",IF(OR(AND(F60=2,J60=2),AND(F60=3,J60=1),AND(F60=3,J60=2),AND(F60=2,J60=1)),"Deficiencia de control (diseño o ejecución)",IF(AND(F60=2,J60=3),"Oportunidad de mejora","Mantenimiento del control")))) -> Mantenimiento del control | L60: =+IF(K60="",152,IF(K60="Deficiencia de control mayor (diseño y ejecución)",160,IF(K60="Deficiencia de control (diseño o ejecución)",180,IF(K60="Oportunidad de mejora",200,220)))) -> 220 | M60: 3.9654 | N60: =+L60+M60 -> 223.9654
G61: 2
G62: 3
G63: 4
G64: 5
G65: 6
G66: 7
G67: 8
B68: =+LEFT(C68,4) -> 11.4 | C68: 11.4 Se cuenta con información de la 3a línea de defensa, como evaluador independiente en relación con los controles implementados por el proveedor de servicios, para asegurar que los riesgos relacionados se mitigan. | D68: Dimension Control Interno Tercera Linea de Defensa | E68: Dentro de los seguimientos cuatrimestrales realizados a los riesgos tanto de Gestión como de corrupción, se establecieron observaciones las cuales se ven reflejadas en los informes. Evidencias: Informe seguimiento riesgos de gestión y corrupción https://www.idt.gov.co/seguimientos | F68: 3 | G68: 1 | H68: Dentro de los comites llevados a cabo en el primer semestre de la vigencia 2025, se realizó socialización del informe de seguimiento a los riesgos. | I68: En los informes de evaluación generados por la Asesoria de Control Interno,se presentan las observaciones frente al criterio | J68: 3 | K68: =+IF(OR(ISBLANK(F68),ISBLANK(J68)),"",IF(OR(AND(F68=1,J68=1),AND(F68=1,J68=2),AND(F68=1,J68=3)),"Deficiencia de control mayor (diseño y ejecución)",IF(OR(AND(F68=2,J68=2),AND(F68=3,J68=1),AND(F68=3,J68=2),AND(F68=2,J68=1)),"Deficiencia de control (diseño o ejecución)",IF(AND(F68=2,J68=3),"Oportunidad de mejora","Mantenimiento del control")))) -> Mantenimiento del control | L68: =+IF(K68="",152,IF(K68="Deficiencia de control mayor (diseño y ejecución)",160,IF(K68="Deficiencia de control (diseño o ejecución)",180,IF(K68="Oportunidad de mejora",200,220)))) -> 220 | M68: 4.0123 | N68: =+L68+M68 -> 224.0123
G69: 2
G70: 3
G71: 4
G72: 5
G73: 6
G74: 7
G75: 8
C76: Lineamiento 12: Despliegue de políticas y procedimientos (Establece responsabilidades sobre la ejecución de las políticas y procedimientos; Adopta medidas correctivas; Revisa las políticas y procedimientos). | D76: DIMENSIÓN O POLÍTICA DEL MIPG ASOCIADA AL REQUERIMIENTO | E76: Explicación de cómo la Entidad evidencia que está dando respuesta al requerimiento Referencia a Procesos, Manuales/Políticas de Operación/Procedimientos/Instructivos u otros desarrollos que den cuente de su aplicación | F76: Presente (1/2/3) | G76: EVIDENCIA DEL CONTROL | J76: Funcionando (1/2/3) | K76: Evaluación
G77: No. | H77: Referencia a Análisis y verificaciones en el marco del Comité Institucional de Coordinación de Control Interno | I77: Observaciones de la evaluacion independiente (tener encuenta papel de líneas de defensa)
B79: =+LEFT(C79,4) -> 12.1 | C79: 12.1 Se evalúa la actualización de procesos, procedimientos, políticas de operación, instructivos, manuales u otras herramientas para garantizar la aplicación adecuada de las principales actividades de control. | D79: Dimension de Gestion con Valores para el Resultado Politica de Fortalecimiento Organizacional y Simplificacion de Procesos. | E79: La Asesoría de Control Interno, dentro de las actividades de Auditoria, seguimientos y monitoreo, evalúa la actualización de procesos, procedimientos, políticas de operación instructivas, manuales entre otros. Como resultados de estas evaluaciones se identifican No conformidades, observaciones y recomendaciones Evidencias: Informes de auditoría, seguimiento y evaluación publicados en la página web de IDT https://www.idt.gov.co/Informes-Auditorias | F79: 3 | G79: 1 | H79: En los comités se presentan los resultados de las auditorias, seguimientos, evaluaciones y monitoreos realizados a cada uno de los proceso del Instituto Distrital de Turismo y en donde se evalúa la actualización de procesos, procedimientos, políticas de operación instructivos, manuales entre otros. | I79: las observaiones se encuentran en cada uno los informes, estos generados a criterio de la Asesoría de Control Interno. | J79: 3 | K79: =+IF(OR(ISBLANK(F79),ISBLANK(J79)),"",IF(OR(AND(F79=1,J79=1),AND(F79=1,J79=2),AND(F79=1,J79=3)),"Deficiencia de control mayor (diseño y ejecución)",IF(OR(AND(F79=2,J79=2),AND(F79=3,J79=1),AND(F79=3,J79=2),AND(F79=2,J79=1)),"Deficiencia de control (diseño o ejecución)",IF(AND(F79=2,J79=3),"Oportunidad de mejora","Mantenimiento del control")))) -> Mantenimiento del control | L79: =+IF(K79="",152,IF(K79="Deficiencia de control mayor (diseño y ejecución)",160,IF(K79="Deficiencia de control (diseño o ejecución)",180,IF(K79="Oportunidad de mejora",200,220)))) -> 220 | M79: 4.1236 | N79: =+L79+M79 -> 224.1236
G80: 2
G81: 3
G82: 4
G83: 5
G84: 6
G85: 7
G86: 8
B87: =+LEFT(C87,4) -> 12.2 | C87: 12.2 El diseño de controles se evalúa frente a la gestión del riesgo. | D87: Todas las Dimensiones de MIPG | E87: La Asesoría de Control Interno realiza seguimiento de la gestión de riesgos de corrupción y de gestión en donde evalúa el desarrollo y cumplimiento de los controles y las acciones de tratamiento descritas en los riesgos de cada uno de los procesos de la entidad. Evidencias: Informe seguimiento riesgos de gestión y corrupción - Seguimiento y Evaluación a los Mapas de Riesgo - https://www.idt.gov.co/seguimientos | F87: 3 | G87: 1 | H87: Dentro de los comites llevados a cabo en el primer semestre de la vigencia 2025, se realizó socialización del informe de seguimiento a los riesgos. | J87: 3 | K87: =+IF(OR(ISBLANK(F87),ISBLANK(J87)),"",IF(OR(AND(F87=1,J87=1),AND(F87=1,J87=2),AND(F87=1,J87=3)),"Deficiencia de control mayor (diseño y ejecución)",IF(OR(AND(F87=2,J87=2),AND(F87=3,J87=1),AND(F87=3,J87=2),AND(F87=2,J87=1)),"Deficiencia de control (diseño o ejecución)",IF(AND(F87=2,J87=3),"Oportunidad de mejora","Mantenimiento del control")))) -> Mantenimiento del control | L87: =+IF(K87="",152,IF(K87="Deficiencia de control mayor (diseño y ejecución)",160,IF(K87="Deficiencia de control (diseño o ejecución)",180,IF(K87="Oportunidad de mejora",200,220)))) -> 220 | M87: 4.2365 | N87: =+L87+M87 -> 224.236500
G88: 2
G89: 3
G90: 4
G91: 5
G92: 6
G93: 7
G94: 8
B95: =+LEFT(C95,4) -> 12.3 | C95: 12.3 Monitoreo a los riesgos acorde con la política de administración de riesgo establecida para la entidad. | D95: Dimension de Direccionamiento Estrategico y Planeacion Politica de Planeacion Institucional. | E95: Seguimientro cuatrimestral a los Mapas de Riesgos de Corrupción y de Gestión del IDT por parte de la Subidreccion de Planeacion (Actas mesas de trabajo en las que se revisó y actualizó los riegos de gestión y corrupción) Evidencias: Matriz de riesgos: https://www.idt.gov.co/index.php/es/transparencia-y-acceso-la-informacion 4.3.3.1. Matriz de riesgos de gestión y Corrupción | F95: 3 | G95: 1 | H95: Dentro de los comites llevados a cabo en el primer semestre de la vigencia 2025, se realizó socialización del informe de seguimiento a los riesgos. | I95: N/A | J95: 3 | K95: =+IF(OR(ISBLANK(F95),ISBLANK(J95)),"",IF(OR(AND(F95=1,J95=1),AND(F95=1,J95=2),AND(F95=1,J95=3)),"Deficiencia de control mayor (diseño y ejecución)",IF(OR(AND(F95=2,J95=2),AND(F95=3,J95=1),AND(F95=3,J95=2),AND(F95=2,J95=1)),"Deficiencia de control (diseño o ejecución)",IF(AND(F95=2,J95=3),"Oportunidad de mejora","Mantenimiento del control")))) -> Mantenimiento del control | L95: =+IF(K95="",152,IF(K95="Deficiencia de control mayor (diseño y ejecución)",160,IF(K95="Deficiencia de control (diseño o ejecución)",180,IF(K95="Oportunidad de mejora",200,220)))) -> 220 | M95: 4.23656 | N95: =+L95+M95 -> 224.236560
G96: 2
G97: 3
G98: 4
G99: 5
G100: 6
G101: 7
G102: 8
B103: =+LEFT(C103,4) -> 12.4 | C103: 12.4 Verificación de que los responsables estén ejecutando los controles tal como han sido diseñados. | D103: Dimension Control Interno Segunda Linea de Defensa | E103: La Asesoría de Control Interno realiza seguimiento cuatrimestral de la gestión de riesgos de corrupción y de gestión en donde evalúa la ejecución de controles por parte de los responsables en cada proceso. Evidencias: Informe seguimiento riesgos de gestión y corrupción Seguimiento y Evaluación a los Mapas de Riesgo - https://www.idt.gov.co/seguimientos | F103: 3 | G103: 1 | H103: Dentro de los comites llevados a cabo en el primer semestre de la vigencia 2025, se realizó socialización del informe de seguimiento a los riesgos. | I103: La Asesoría de Control Interno realiza seguimiento de la gestión de riesgos de corrupción y de gestión en donde evalúa la ejecución de controles por parte de los responsables, dejando plasmadas observaciones y/o recomendaciones a criterio de la ACI. | J103: 3 | K103: =+IF(OR(ISBLANK(F103),ISBLANK(J103)),"",IF(OR(AND(F103=1,J103=1),AND(F103=1,J103=2),AND(F103=1,J103=3)),"Deficiencia de control mayor (diseño y ejecución)",IF(OR(AND(F103=2,J103=2),AND(F103=3,J103=1),AND(F103=3,J103=2),AND(F103=2,J103=1)),"Deficiencia de control (diseño o ejecución)",IF(AND(F103=2,J103=3),"Oportunidad de mejora","Mantenimiento del control")))) -> Mantenimiento del control | L103: =+IF(K103="",152,IF(K103="Deficiencia de control mayor (diseño y ejecución)",160,IF(K103="Deficiencia de control (diseño o ejecución)",180,IF(K103="Oportunidad de mejora",200,220)))) -> 220 | M103: 4.236568 | N103: =+L103+M103 -> 224.236568
G104: 2
G105: 3
G106: 4
G107: 5
G108: 6
G109: 7
G110: 8
B111: =+LEFT(C111,4) -> 12.5 | C111: 12.5 Se evalúa la adecuación de los controles a las especificidades de cada proceso, considerando cambios en regulaciones, estructuras internas u otros aspectos que determinen cambios en su diseño. | D111: Dimension Control Interno Lineas de Defensa | E111: La Asesoría de Control Interno, realiza seguimiento cuatrimestral de la gestión de riesgos de corrupción y de gestión en donde evalúa la adecuación de controles. De igual manera la Asesoría de Control Interno lleva a cabo ejercicios de evaluación en donde revisa a través de los criterios definidos para cada ejercicio evaluado, los puntos de control establecidos dentro de sus procedimientos. Soportes Matriz de riesgos https://www.idt.gov.co/index.php/es/transparencia-y-acceso-la-informacion 4.3.2.2 Matriz de riesgos de gestión y Corrupción Informe seguimiento riesgos de gestión y corrupción Seguimiento y Evaluación a los Mapas de Riesgo - https://www.idt.gov.co/seguimientos | F111: 3 | G111: 1 | H111: Dentro de los comites llevados a cabo en el primer semestre de la vigencia 2025, se realizó socialización del informe de seguimiento a los riesgos. | I111: N/A | J111: 3 | K111: =+IF(OR(ISBLANK(F111),ISBLANK(J111)),"",IF(OR(AND(F111=1,J111=1),AND(F111=1,J111=2),AND(F111=1,J111=3)),"Deficiencia de control mayor (diseño y ejecución)",IF(OR(AND(F111=2,J111=2),AND(F111=3,J111=1),AND(F111=3,J111=2),AND(F111=2,J111=1)),"Deficiencia de control (diseño o ejecución)",IF(AND(F111=2,J111=3),"Oportunidad de mejora","Mantenimiento del control")))) -> Mantenimiento del control | L111: =+IF(K111="",152,IF(K111="Deficiencia de control mayor (diseño y ejecución)",160,IF(K111="Deficiencia de control (diseño o ejecución)",180,IF(K111="Oportunidad de mejora",200,220)))) -> 220 | M111: 4.3569 | N111: =+L111+M111 -> 224.3569
G112: 2
G113: 3
G114: 4
G115: 5
G116: 6
G117: 7
G118: 8

Sheet Info y Comunicación
C12: INFORMACIÓN Y COMUNICACIÓN
C13: Este componente verifica que las políticas, directrices y mecanismos de consecución, captura, procesamiento y generación de datos dentro y en el entorno de cada entidad, satisfagan la necesidad de divulgar los resultados, de mostrar mejoras en la gestión administrativa y procurar que la información y la comunicación de la entidad y de cada proceso sea adecuada a las necesidades específicas de los grupos de valor y grupos de interés. Se requiere que todos los servidores de la entidad reciban un claro mensaje de la Alta Dirección sobre las responsabilidades de control. Deben comprender su función frente al Sistema de Control Interno.
B15: ID | C15: Lineamiento 13: Utilización de información relevante (Identifica requisitos de información; Capta fuentes de datos internas y externas; Procesa datos relevantes y los transforma en información). | D15: DIMENSIÓN O POLÍTICA DEL MIPG ASOCIADA AL REQUERIMIENTO | E15: Explicación de cómo la Entidad evidencia que está dando respuesta al requerimiento Referencia a Procesos, Manuales/Políticas de Operación/Procedimientos/Instructivos u otros desarrollos que den cuente de su aplicación | F15: Presente (1/2/3) | G15: EVIDENCIA DEL CONTROL | J15: Funcionando (1/2/3) | K15: Evaluación
G17: No. | H17: Referencia a Análisis y verificaciones en el marco del Comité Institucional de Coordinación de Control Interno | I17: Observaciones de la evaluación independiente (tener en cuenta papel de líneas de defensa)
B19: =+LEFT(C19,4) -> 13.1 | C19: 13.1 La entidad ha diseñado Sistemas de Información para capturar y procesar datos y transformarlos en información para alcanzar los requerimientos definidos. | D19: Dimensión de Información y Comunicación | E19: Desde el equipo de Observatorio de Turismo se realizan ejercicios de captura y procesamiento de información haciendo uso de herramientas como Arcgis y Survey generando diferentes productos para el sector turistico tales como informes, investigaciones, estudios, indicadores del sector y boletines, asi mismo, se han venido desarrollando acciones de mejora en el sitio WEB del Observatorio de Turismo, estableciendo nuevas herramientas que permiten el acceso a la información estratégica, técnica y de análisis sobre el comportamiento del turismo en la ciudad. La Entidad cuenta con el sistema de información SICAPITAL que captura la información que permite generar los certificados SISCO para los pagos de proveedores y personas naturales. Evidencias: https://intranet.idt.gov.co/es/aplicativo-si-capital https://observatorio.idt.gov.co/ | F19: 3 | G19: 1 | H19: Para lo descrito por el proceso se logra identificar su cumplimiento, de acuerdo a los soportes suministrados (documento, link, correo, etc que soporte la explicación). | I19: Para el segundo semestre de la vigencia 2025 se tiene previsto la realizacion de la auditoría al Modelo de Seguridad y privacidad de la información. | J19: 3 | K19: =+IF(OR(ISBLANK(F19),ISBLANK(J19)),"",IF(OR(AND(F19=1,J19=1),AND(F19=1,J19=2),AND(F19=1,J19=3)),"Deficiencia de control mayor (diseño y ejecución)",IF(OR(AND(F19=2,J19=2),AND(F19=3,J19=1),AND(F19=3,J19=2),AND(F19=2,J19=1)),"Deficiencia de control (diseño o ejecución)",IF(AND(F19=2,J19=3),"Oportunidad de mejora","Mantenimiento del control")))) -> Mantenimiento del control | L19: =+IF(K19="",231,IF(K19="Deficiencia de control mayor (diseño y ejecución)",240,IF(K19="Deficiencia de control (diseño o ejecución)",260,IF(K19="Oportunidad de mejora",280,300)))) -> 300 | M19: 4.4569 | N19: =+L19+M19 -> 304.4569
G20: 2
G21: 3
G22: 4
G23: 5
G24: 6
G25: 7
G26: 8
B27: =+LEFT(C27,4) -> 13.2 | C27: 13.2 La Entidad cuenta con el inventario de información relevante (interno/externa) y cuenta con un mecanismo que permita su actualización. | D27: Dimensión de Información y Comunicación Política de Transparencia y Acceso a la Información Pública | E27: Se continúa bajo lo definido en el procedimiento Organización documental con base en la Tabla de Retención Documental, cuyo objetivo es fijar los lineamientos para la organización de los archivos de gestión, mediante la aplicación de las normas vigentes y de acuerdo a las Tablas de Retención Documental - TRD con el fin de que se conserve y pueda ser consultada para el uso oportuno de la Administración. De igual forma el proceso de Gestión Documental realiza la verificación de los inventarios documentales con relación a los documentos físicos entregados por cada dependencia. En la sede electrònica del Instituto se cuenta con el Esquema de Informaciòn, el cual permite poner a disposiciòn de la ciudadanìa el inventario de informaciòn externa con que cuenta el IDT, atendiendo lo dispuesto en la Resolución 1519 de 2019. Evidencias: GD-P07 Organización documental con base en la Tabla de Retención Documental https://intranet.idt.gov.co/sites/default/files/2023-09/GD-P07%20Procedimiento%20Organizacion%20Documental%20TRD%20V7%2005092023.pdf GD-I05 Instructivo Aplicación de las Tablas de Retención Documental TRD https://intranet.idt.gov.co/sites/default/files/2023-11/GD-I05%20Guia%20de%20Aplicacion%20TRD%20V6%2031082023_0.pdf https://www.idt.gov.co/index.php/es/transparencia-y-acceso-la-informacion 7.1.4. Programa de gestión documental GD-M01 Manual Reglamento Interno de Archivo https://intranet.idt.gov.co/sites/default/files/2023-11/GD-M01%20Reglamento%20Interno%20de%20Archivo%20V4%2031052023.pdf https://www.idt.gov.co/index.php/es/transparencia-y-acceso-la-informacion 7.1.3. Esquema de publicación de la información | F27: 3 | G27: 1 | H27: Dentro de los Comités llevados a cabo en el primer semestre de la vigencia 2025 se presentan los resultados de las Auditorias, Seguimientos y Monitoreos relacionados con la verificación de este criterio. | J27: 3 | K27: =+IF(OR(ISBLANK(F27),ISBLANK(J27)),"",IF(OR(AND(F27=1,J27=1),AND(F27=1,J27=2),AND(F27=1,J27=3)),"Deficiencia de control mayor (diseño y ejecución)",IF(OR(AND(F27=2,J27=2),AND(F27=3,J27=1),AND(F27=3,J27=2),AND(F27=2,J27=1)),"Deficiencia de control (diseño o ejecución)",IF(AND(F27=2,J27=3),"Oportunidad de mejora","Mantenimiento del control")))) -> Mantenimiento del control | L27: =+IF(K27="",231,IF(K27="Deficiencia de control mayor (diseño y ejecución)",240,IF(K27="Deficiencia de control (diseño o ejecución)",260,IF(K27="Oportunidad de mejora",280,300)))) -> 300 | M27: 4.5632 | N27: =+L27+M27 -> 304.5632
G28: 2 | H28: Cada uno de los Informes generados por la Asesoría de Control Interno, son socializados a cada uno de los miembros del Comité Institucional de Coordinación de Control Interno.
G29: 3
G30: 4
G31: 5
G32: 6
G33: 7
G34: 8
B35: =+LEFT(C35,4) -> 13.3 | C35: 13.3 La Entidad considera un ámbito amplio de fuentes de datos (internas y externas), para la captura y procesamiento posterior de información clave para la consecución de metas y objetivos. | D35: Dimensión de Información y Comunicación Política de Transparencia y Acceso a la Información Pública | E35: A travès del proceso de Gestiòn de Inteligencia y DTI se lleva a cabo la captura y procesamiento de informaciòn clave para la toma de decisiones y para aportar en la ejecuciòn de de planes, programas y proyectos definidos en el Plan Estratègico del Instituto. Ademàs se desarrolla, se produce y analizan las operaciones estadísticas y no estadísticas que se requieran del sector turismo de Bogotá, a través de la sistematización, investigación y divulgación de la información; velando por la confiabilidad, coherencia y oportunidad de los resultados obtenidos, para la planeación y toma de decisiones, lo que conlleva a que con la articulación de los demás procesos misionales se entreguen productos desde lo turístico para la ciudadanía. Cabe mencionar tambièn que el Instituto realiza ejercicios de rendición de cuentas que cuentan con la partipación de la ciudadanía, buscando retroalimentación del mismo; las memorias relacionadas con esta actividad se encuentran publicadas en la página de la entidad. De manera interna se puede mencionar el Manual Estratègico de Comunicaciones, el cual es liderado por la Oficina Asesora de Comunicaciones y el cual desarrolla diferentes actividades de comunicación dirigidas a quienes conforman sus públicos, tanto internos como externos. Evidencias: https://www.idt.gov.co/es/sitbog https://www.idt.gov.co/es/rendicion-de-cuentas https://intranet.idt.gov.co/sites/default/files/2023-06/CO-M01%20Manual%20Estrategico%20de%20Comunicaciones%20V8%2030052023.pdf | F35: 3 | G35: 1 | H35: Dentro de los comités llevados a cabo en el primer semestre de la vigencia 2025 se presentan los resultados de las auditorias, seguimientos y monitoreos relacionados con la verificación de este criterio | J35: 3 | K35: =+IF(OR(ISBLANK(F35),ISBLANK(J35)),"",IF(OR(AND(F35=1,J35=1),AND(F35=1,J35=2),AND(F35=1,J35=3)),"Deficiencia de control mayor (diseño y ejecución)",IF(OR(AND(F35=2,J35=2),AND(F35=3,J35=1),AND(F35=3,J35=2),AND(F35=2,J35=1)),"Deficiencia de control (diseño o ejecución)",IF(AND(F35=2,J35=3),"Oportunidad de mejora","Mantenimiento del control")))) -> Mantenimiento del control | L35: =+IF(K35="",231,IF(K35="Deficiencia de control mayor (diseño y ejecución)",240,IF(K35="Deficiencia de control (diseño o ejecución)",260,IF(K35="Oportunidad de mejora",280,300)))) -> 300 | M35: 4.6321 | N35: =+L35+M35 -> 304.6321
G36: 2 | H36: Cada uno de los Informes generados por la Asesoría de Control Interno, son socializados a cada uno de los miembros del Comité Institucional de Coordinación de Control Interno.
G37: 3
G38: 4
G39: 5
G40: 6
G41: 7
G42: 8
B43: =+LEFT(C43,4) -> 13.4 | C43: 13.4 La Entidad ha desarrollado e implementado actividades de control sobre la integridad, confidencialidad y disponibilidad de los datos e información definidos como relevantes. | D43: Dimensión de Información y Comunicación Política de Transparencia y Acceso a la Información Pública | E43: Se ha implementado la Política de Protección de Datos Personales cuyo objetivo es dar a conocer las políticas de seguridad y protección de datos personales. Adicionalmente se cuenta con el Instructivo para la Protección y Custodia de datos de los denunciantes de posibles actos de corrupción y/o existencia de inhabilidades, incompatibilidades o conflicto de intereses. De otra parte desde el proceso de Gestión Tecnológica se actualizaron los Activos de Información, lo que permite identificar la integridad, confidencialidad y disponibilidad de la información del Instituto. Cabe mencionar que el Instituto ha realizado la contratación de un Profesional para llevar a cabo la actualización de la Política de Datos Personales, por tal razón para la próxima vigencia se podrá contar este documento debidamente formalizado. Evidencias: DE-P02 Política de Tratamiento de Datos Personales https://intranet.idt.gov.co/sites/default/files/2025-04/DE-PO2%20Política%20de%20Tratamiento%20de%20Datos%20Personales%20V2%2031032025.pdf AC-I01 Instructivo para la Protección y Custodia de datos de los denunciantes de posibles actos de corrupción y/o existencia de inhabilidades, incompatibilidades o conflicto de intereses. https://intranet.idt.gov.co/sites/default/files/2022-12/AC-I01%20Instructivo%20protocolo%20de%20denuncias%20de%20corrupción%20y%20protección%20al%20denunciante%20v1%2021122022.pdf https://drive.google.com/drive/u/0/folders/1ZlzmCeYdZ0TrCE5aZT3CPsTrDqHo6y2H (activos de información actualizados). | F43: 3 | G43: 1 | H43: Para lo descrito por el proceso se logra identificar su cumplimiento, de acuerdo a los soportes suministrados (documento, link, correo, etc que soporte la explicación). | I43: Para el segundo semestre de la vigencia 2025 se tiene previsto la realizacion de la auditoría al Modelo de Seguridad y privacidad de la información. | J43: 3 | K43: =+IF(OR(ISBLANK(F43),ISBLANK(J43)),"",IF(OR(AND(F43=1,J43=1),AND(F43=1,J43=2),AND(F43=1,J43=3)),"Deficiencia de control mayor (diseño y ejecución)",IF(OR(AND(F43=2,J43=2),AND(F43=3,J43=1),AND(F43=3,J43=2),AND(F43=2,J43=1)),"Deficiencia de control (diseño o ejecución)",IF(AND(F43=2,J43=3),"Oportunidad de mejora","Mantenimiento del control")))) -> Mantenimiento del control | L43: =+IF(K43="",231,IF(K43="Deficiencia de control mayor (diseño y ejecución)",240,IF(K43="Deficiencia de control (diseño o ejecución)",260,IF(K43="Oportunidad de mejora",280,300)))) -> 300 | M43: 4.7896 | N43: =+L43+M43 -> 304.7896
G44: 2
G45: 3
G46: 4
G47: 5
G48: 6
C49: Lineamiento 14: Comunicación Interna (Se comunica con el Comité Institucional de Coordinación de Control Interno o su equivalente; Facilita líneas de comunicación en todos los niveles; Selecciona el método de comunicación pertinente). | D49: DIMENSIÓN O POLÍTICA DEL MIPG ASOCIADA AL REQUERIMIENTO | E49: Explicación de cómo la Entidad evidencia que está dando respuesta al requerimiento Referencia a Procesos, Manuales/Políticas de Operación/Procedimientos/Instructivos u otros desarrollos que den cuente de su aplicación | F49: Presente (1/2/3) | G49: EVIDENCIA DEL CONTROL | J49: Funcionando (1/2/3) | K49: Evaluación
G51: No. | H51: Referencia a Análisis y verificaciones en el marco del Comité Institucional de Coordinación de Control Interno | I51: Observaciones de la evaluación independiente (tener en cuenta papel de líneas de defensa)
B53: =+LEFT(C53,4) -> 14.1 | C53: 14.1 Para la Comunicación Interna la Alta Dirección tiene mecanismos que permiten dar a conocer los objetivos y metas estratégicas, de manera tal que todo el personal entiende su papel en su consecución. (Considera los canales más apropiados y evalúa su efectividad). | D53: Dimensión de Información y Comunicación | E53: Se realizan Comites Directivos de manera mensual, como tambièn los Comitès Institucionales de Gestiòn y Desempeño. Se puede mencionar tambièn el Manual Estratègico de Comunicaciones, el cual es liderado por la Oficina Asesora de Comunicaciones y el cual desarrolla diferentes actividades de comunicación dirigidas a quienes conforman sus públicos, tanto internos como externos. De manera interna se creó un whatsapp llamado "Comunicaciiones Internas", lo que permite mantener a los funcionarios y contratistas actualizados en los diferentes eventos y espacios en que participa el Instituto. Se utilizan correos electrónicos para dar a conocer diferente información, igualmente a través de los televisores que se encuentran en los dos pisos. Evidencias: Las actas de los comités directivos reposan en la Dirección General. Actas Comitè MIPG: https://intranet.idt.gov.co/es/procesos-estrategicos-docs?section=19 - Registros 2025 CO-M01 Manual Estratégico de Comunicaciones V8 https://intranet.idt.gov.co/es/procesos-estrategicos-docs?section=35 Whatsapp "Comunicaciones Internas". Mailling "Info al dia" | F53: 3 | G53: 1 | H53: Para lo descrito por el proceso se logra identificar su cumplimiento, de acuerdo a los soportes suministrados (documento, link, correo, etc que soporte la explicación). | I53: N/A | J53: 3 | K53: =+IF(OR(ISBLANK(F53),ISBLANK(J53)),"",IF(OR(AND(F53=1,J53=1),AND(F53=1,J53=2),AND(F53=1,J53=3)),"Deficiencia de control mayor (diseño y ejecución)",IF(OR(AND(F53=2,J53=2),AND(F53=3,J53=1),AND(F53=3,J53=2),AND(F53=2,J53=1)),"Deficiencia de control (diseño o ejecución)",IF(AND(F53=2,J53=3),"Oportunidad de mejora","Mantenimiento del control")))) -> Mantenimiento del control | L53: =+IF(K53="",231,IF(K53="Deficiencia de control mayor (diseño y ejecución)",240,IF(K53="Deficiencia de control (diseño o ejecución)",260,IF(K53="Oportunidad de mejora",280,300)))) -> 300 | M53: 4.8965 | N53: =+L53+M53 -> 304.8965
G54: 2
G55: 3
G56: 4
G57: 5
G58: 6
G59: 7
G60: 8
B61: =+LEFT(C61,4) -> 14.2 | C61: 14.2 La Entidad cuenta con Políticas de Operación relacionadas con la administración de la información (niveles de autoridad y responsabilidad). | D61: Dimensión de Información y Comunicación | E61: A través de la Resolución No.015 de enero 2023 "Por la cual se compilan, actualizan y modifican las disposiciones sobre el Comité Institucional de Gestión y Desempeño", se identifica claramente el papel que tienen cada uno de los responsables dentro de la implementaciòn del Modelo Integrado de Planeaciòn y Gestiòn. De igual forma se cuenta con los espacios de Comités Directivos los cuales se reunen de manera mensual. Evidencias: Resolucion 015 de 2023 https://intranet.idt.gov.co/sites/default/files/2023-06/Res.%20015%2030-01-2023%20Por%20la%20cual%20se%20compilan%2C%20actualizan%20y%20modifican%20disposiciones%20sobre%20el%20comite%20institucional%20de%20gestio%CC%81n%20y%20desempen%CC%83o_compressed.pdf | F61: 3 | G61: 1 | H61: Se logra identificar la Resolución No.015 del 2023. mediante la cual se actualizan las disposiciones sobre el Comité Institucional de Gestión y Desempeño. | I61: NA | J61: 3 | K61: =+IF(OR(ISBLANK(F61),ISBLANK(J61)),"",IF(OR(AND(F61=1,J61=1),AND(F61=1,J61=2),AND(F61=1,J61=3)),"Deficiencia de control mayor (diseño y ejecución)",IF(OR(AND(F61=2,J61=2),AND(F61=3,J61=1),AND(F61=3,J61=2),AND(F61=2,J61=1)),"Deficiencia de control (diseño o ejecución)",IF(AND(F61=2,J61=3),"Oportunidad de mejora","Mantenimiento del control")))) -> Mantenimiento del control | L61: =+IF(K61="",231,IF(K61="Deficiencia de control mayor (diseño y ejecución)",240,IF(K61="Deficiencia de control (diseño o ejecución)",260,IF(K61="Oportunidad de mejora",280,300)))) -> 300 | M61: 4.9854 | N61: =+L61+M61 -> 304.9854
G62: 2
G63: 3
G64: 4
G65: 5
G66: 6
G67: 7
G68: 8
B69: =+LEFT(C69,4) -> 14.3 | C69: 14.3 La Entidad cuenta con canales de información internos para la denuncia anónima o confidencial de posibles situaciones irregulares y se cuenta con mecanismos específicos para su manejo, de manera tal que generen la confianza para utilizarlos. | D69: Dimensión de Información y Comunicación | E69: Se cuenta con un equipo de gestores de integridad, quienes fomentan la transparencia, buenas prácticas y promueven los valores de nuestro Código de Integridad. En el espacio de la intranet encontramos información acerca de la gestión de este grupo. Para denunciar de manera reservada y oportuna cualquier acto de corrupción la entidad cuenta con el siguiente correo eléctronico: codigointegridad@idt.gov.co. De otra parte contamos con el botón "Denuncie Actos de Corrupción", donde se pueden reportar situaciones irregulares o incumplimientos al Código de Integridad. Evidencias: Micrositio en la intranet: https://intranet.idt.gov.co/gestores-de-integridad https://www.idt.gov.co/ botón Denuncie Actos de Corrupción. https://bogota.gov.co/sdqs/denuncias-por-actos-de-corrupcion | F69: 3 | G69: 1 | H69: Para lo descrito por el proceso se logra identificar su cumplimiento, de acuerdo a los soportes suministrados (documento, link, correo, etc que soporte la explicación). | I69: NA | J69: 3 | K69: =+IF(OR(ISBLANK(F69),ISBLANK(J69)),"",IF(OR(AND(F69=1,J69=1),AND(F69=1,J69=2),AND(F69=1,J69=3)),"Deficiencia de control mayor (diseño y ejecución)",IF(OR(AND(F69=2,J69=2),AND(F69=3,J69=1),AND(F69=3,J69=2),AND(F69=2,J69=1)),"Deficiencia de control (diseño o ejecución)",IF(AND(F69=2,J69=3),"Oportunidad de mejora","Mantenimiento del control")))) -> Mantenimiento del control | L69: =+IF(K69="",231,IF(K69="Deficiencia de control mayor (diseño y ejecución)",240,IF(K69="Deficiencia de control (diseño o ejecución)",260,IF(K69="Oportunidad de mejora",280,300)))) -> 300 | M69: 5.0123 | N69: =+L69+M69 -> 305.0123
G70: 2
G71: 3
G72: 4
G73: 5
G74: 6
G75: 7
G76: 8
B77: =+LEFT(C77,4) -> 14.4 | C77: 14.4 La Entidad establece e implementa políticas y procedimientos para facilitar una comunicación interna efectiva. | D77: Dimensión de Información y Comunicación | E77: El Instituto Distrital de Turismo (IDT), a través de la Oficina Asesora de Comunicaciones (OAC), ha establecido e implementado un conjunto robusto de políticas, procedimientos y herramientas que garantizan una comunicación interna efectiva, alineada con los principios de transparencia, participación y articulación institucional. 1. Documentos que establecen las políticas y lineamientos Para garantizar una comunicación interna efectiva en el IDT, la entidad ha desarrollado los siguientes instrumentos normativos y operativos: • Manual Estratégico de Comunicaciones (CO-M01 V8): Define los lineamientos, políticas y componentes estratégicos que guían la gestión de las comunicaciones internas. Establece claramente los objetivos, responsabilidades, canales y estrategias comunicativas, brindando un marco técnico y estratégico para la gestión de la información al interior de la entidad. • Caracterización del proceso de comunicaciones (DE-F15 V4): Describe las características, objetivos, responsables y alcance del proceso, lo cual proporciona claridad en su implementación y seguimiento. • Procedimiento CO-P06 V6 – Elaboración de contenidos, diseño y publicación en Canales de Comunicación Externa y Interna: Regula el proceso de la creación, validación y difusión de contenidos internos y externos, garantizando calidad, pertinencia, consistencia y alineación con los mensajes institucionales. • Formato CO-F05 V3 – Control de Solicitudes de Comunicaciones: Establece un mecanismo para recibir, organizar, priorizar y dar respuesta a las solicitudes de apoyo comunicacional por parte de las diferentes dependencias del IDT, asegurando trazabilidad y eficiencia en la atención. 2. Canales y herramientas implementadas La OAC utiliza una amplia gama de canales dirigidos a los públicos internos, considerando sus diversas necesidades e intereses: • Boletines digitales temáticos: Mailing, Conecta Distrito y Ambiental, diseñados con enfoques temáticos diferenciados que mantienen informados a los funcionarios sobre acciones institucionales y temas estratégicos. • Correos electrónicos institucionales (mailings): Utilizados para la difusión oportuna de información relevante. • Intranet institucional: Plataforma de acceso constante para los funcionarios, donde se alojan contenidos de interés como noticias, eventos, recursos y documentos clave. • Material visual: Wallpapers, carteleras digitales y piezas gráficas que refuerzan campañas y mensajes clave de manera llamativa. 3. Seguimiento, evaluación y talento humano • Se lleva el formato CO- F05 Control de solicitudes Comunicaciones, donde lleva el control de las solicitudes que llegan al correo solicitudescomunicaciones@idt.gov.co • Se aplica una encuesta de percepción interna dos veces al año, como mecanismo de medición de efectividad de los canales y contenidos. • El equipo humano de la OAC está compuesto por profesionales con experiencia y competencias en comunicación pública, lo que permite una gestión técnica y oportuna de los mensajes institucionales. 4. Articulación con la gestión estratégica • La gestión de comunicación interna se articula con el Plan Estratégico de Comunicaciones (PEC), el Plan de Acción MIPG, y el Plan de transparencia y atención al Ciudadano, asegurando que los mensajes estén alineados con los objetivos estratégicos y de transparencia institucional. 5. Cultura organizacional y participación • La OAC promueve una cultura de comunicación abierta y transparente, donde los funcionarios se sienten cómodos para expresar sus ideas y preocupaciones. • Se han designado enlaces de comunicación en los diferentes procesos, que permiten una comunicación directa y los funcionarios puedan enviar inquietudes de manera directa y confidencial, con sus respectivos enlaces. Evidencias: Documentos soporte-Referencia documental Manual Estratégico de Comunicaciones (CO-M01 V8) • Caracterización del Proceso de Comunicaciones (DE-F15 v4) • Procedimiento CO-F06 V3 – Procedimiento Elaboración de contenidos, diseño y publicación en Canales de Comunicación Externa V6 https://intranet.idt.gov.co/es/procesos-estrategicos-docs?section=35 • Plan Estratégico de Comunicaciones (PEC) https://drive.google.com/drive/u/0/folders/1LdUQg8pCdE0EwV8N4HcWaWExKnKqqoZz Actividades establecidas en el PEC- Interna (canales) https://drive.google.com/drive/u/0/folders/11o1Dpw2Qg1GGHKNpbFJTW5gBErJzkTJJ • Encuestas de percepción interna https://drive.google.com/drive/u/0/folders/1KIn01aeqqMLrrI5fXtCYL1RaEdM5sF7H • Boletines digitales, material visual e Intranet https://drive.google.com/drive/u/0/folders/117H10kRoQ1O5BX0ZRyuH9PIWrYBKZPgA Plan de acción MIPG https://drive.google.com/drive/u/0/folders/1K-Ir8e0WXG_DLiLuTQuK9LZwsRilmDc2 Equipo de trabajo: https://drive.google.com/drive/u/0/folders/1MYXtiq9797b6pnY7mzBy5SQ-Q-Gu4f7J Seguimiento a solicitudes: https://drive.google.com/drive/u/0/folders/1rE6AnUIgyDiTJG-EK-pIucRpCtFBqCJy | F77: 3 | G77: 1 | H77: El proceso realiza la actualizacion de sus lineamientos, politicas y procedimientos. | I77: NA | J77: 3 | K77: Mantenimiento del control | L77: =+IF(K77="",231,IF(K77="Deficiencia de control mayor (diseño y ejecución)",240,IF(K77="Deficiencia de control (diseño o ejecución)",260,IF(K77="Oportunidad de mejora",280,300)))) -> 300 | M77: 5.1236 | N77: =+L77+M77 -> 305.1236
G78: 2 | H78: El proceso cumple con las actividades descritas dentro del Plan de Acción MIPG.
G79: 3 | H79: Para lo descrito por el proceso se logra identificar su cumplimiento, de acuerdo a los soportes suministrados (documento, link, correo, etc que soporte la explicación).
G80: 4
G81: 5
G82: 6
G83: 7
G84: 8
C85: Lineamiento 15: Comunicación con el exterior (Se comunica con los grupos de valor y con terceros externos interesados; Facilita líneas de comunicación). | D85: DIMENSIÓN O POLÍTICA DEL MIPG ASOCIADA AL REQUERIMIENTO | E85: Explicación de cómo la Entidad evidencia que está dando respuesta al requerimiento Referencia a Procesos, Manuales/Políticas de Operación/Procedimientos/Instructivos u otros desarrollos que den cuente de su aplicación | F85: Presente (1/2/3) | G85: EVIDENCIA DEL CONTROL | J85: Funcionando (1/2/3) | K85: Evaluación
G87: No. | H87: Referencia a Análisis y verificaciones en el marco del Comité Institucional de Coordinación de Control Interno | I87: Observaciones de la evaluación independiente (tener en cuenta papel de líneas de defensa)
B89: =+LEFT(C89,4) -> 15.1 | C89: 15.1 La Entidad desarrolla e implementa controles que facilitan la comunicación externa, la cual incluye políticas y procedimientos. Incluye contratistas y proveedores de servicios tercerizados (cuando aplique). | D89: Dimensión de Información y Comunicación Dimensión de Control Interno Primera Línea de Defensa | E89: El Instituto Distrital de Turismo (IDT), a través de la Oficina Asesora de Comunicaciones (OAC), ha establecido e implementado un sistema integral de gestión de la comunicación externa que incluye políticas, procedimientos, manuales técnicos, canales establecidos y controles permanentes, los cuales permiten garantizar la calidad, coherencia y oportunidad de los mensajes emitidos hacia la ciudadanía, medios de comunicación, actores del sector turismo y otras partes interesadas. 1. Políticas y procedimientos establecidos para la comunicación externa Para garantizar una comunicación externa efectiva en el IDT, se han definido y puesto en marcha los siguientes instrumentos: • Manual Estratégico de Comunicaciones (CO-M01 V8): Documento rector que define los lineamientos, políticas y procedimientos para la gestión comunicacional interna y externa. Establece objetivos, responsabilidades, canales y estrategias clave. • Manual de Gestión de la Comunicación en Redes Sociales (CO-M03 V3): Establece directrices y acciones específicas para el uso institucional de redes sociales, visibilizando la gestión y fortaleciendo el posicionamiento digital. • Manual para el uso y realización de fotos, video y transmisiones (CO-M04 V4): Regula las condiciones técnicas, éticas y legales para la producción y uso de material audiovisual en espacios institucionales. • Procedimiento de Diseño y Publicación de Contenidos para Comunicaciones Externas (CO-P06): Define las etapas, responsables y controles de calidad para la creación y difusión de contenidos. • Caracterización del proceso de comunicaciones (DE-F15 V4): Documento que define el propósito, alcance, entradas, salidas, responsables y controles aplicables al proceso. • Formatos asociados: o CO-F05: Control de Solicitudes Comunicaciones o CO-F07: Solicitud Apoyo de Comunicaciones 2. Canales institucionales de comunicación externa Con base en lo establecido en el Manual Estratégico de Comunicaciones, el IDT utiliza los siguientes canales para su comunicación externa: 1. Correo institucional: idtcomunicaciones@idt.gov.co 2. Gestión free press 3. Página web oficial: www.idt.gov.co 4. Redes sociales institucionales: o Facebook: IDT Instituto Distrital de Turismo de BogotáX (antes Twitter): @IDTBogota o X(Twitter): @Bogota_Turismo o TIKTOK: @bogota_turismo o Instagram: Bogota_turismo o YouTube: Instituto Distrital de Turismo 5. Invitaciones a eventos institucionales 6. Grupo de WhatsApp para interlocución con periodistas 7. Comunicados de prensa 8. Nuevos formatos digitales (reels, cápsulas informativas, etc.) 3. Gestión del talento y control del proceso La Oficina de Comunicaciones cuenta con un equipo conformado por: • 3 funcionarios de planta provisional • Contratistas especializados en periodismo, realización audiovisual y comunicación digital, quienes desarrollan acciones conforme a los manuales y planes vigentes. 4. Controles implementados y evaluación del proceso • La ejecución de las actividades se realiza conforme al Plan Estratégico de Comunicaciones (PEC), con énfasis en las líneas externa y digital. • Se realiza seguimiento periódico a los indicadores del proceso y se verifica el cumplimiento de los objetivos del PEC. • Se mantiene actualizado un monitoreo semanal de medios, así como bases de datos de periodistas y aliados estratégicos, esenciales para la cobertura y distribución de contenidos. • Los productos comunicativos (fotografías, videos, notas) son registrados y archivados como evidencia de cumplimiento y trazabilidad. • Contratistas y proveedores vinculados a actividades comunicacionales deben acogerse a los lineamientos técnicos de los manuales y procedimientos mencionados, siendo estos incluidos como cláusulas en los términos de referencia o documentos contractuales. Evidencias: Documentos soporte • CO-M01 Manual Estratégico de Comunicaciones • CO-M03 Manual Gestión de la Comunicación en Redes Sociales • CO-M04 Manual para el uso y realización de fotos, video y transmisiones • CO-C01 Caracterización del proceso • CO-P06 Procedimiento Diseño y Publicación de Contenidos para comunicaciones Externa https://intranet.idt.gov.co/es/procesos-estrategicos-docs?section=35 • CO-F05 Control de Solicitudes Comunicaciones https://drive.google.com/drive/u/0/folders/1rE6AnUIgyDiTJG-EK-pIucRpCtFBqCJy • CO-F07 Solicitud Apoyo de Comunicaciones https://drive.google.com/drive/u/0/folders/1ToiJ2PBW1yuAqdkQaxE86W43wwkmPj8A • Seguimiento a indicadores del proceso https://drive.google.com/drive/u/0/folders/1bQE2pgCIBlkyOQJQCt-af3xgS1v96Z3I Actividades establecidas en el PEC- Externo https://drive.google.com/drive/u/0/folders/1Z3RB4Nh-uYCRoAiwWRCC6fuFxSkrpYCT Actividades establecidas en el PEC - Digital https://drive.google.com/drive/u/0/folders/1WobJv3UUOLjhc2VwBZ28b4eD2QizEj6P PEC-2025, seguimiento: https://drive.google.com/drive/u/0/folders/1cFD1rLaHBoBo2bW92SItEgef5EkAe2dr Plan de acción MIPG https://drive.google.com/drive/u/0/folders/1K-Ir8e0WXG_DLiLuTQuK9LZwsRilmDc2 Base de datos medios de comunicación https://docs.google.com/spreadsheets/d/1wVf035AIV3j_dCjg8rrAq0t27SEzMusz/edit?gid=1761717108#gid=1761717108 Encuesta externa https://docs.google.com/forms/d/e/1FAIpQLSe73GJWAdUAPBvgZTtFZdmaEMk8Y9vwxsgxA2iTSmVG5NfTIw/viewform?usp=header Reporte de monitoreo de prensa semanal https://drive.google.com/drive/u/0/folders/1H92KIDKDwWG9GSTdWgBPxWWKZ7Zy9SBR Registros- material SAF Seguimiento periódico a la matriz de riesgos del proceso de comunicaciones para verificar el cumplimiento de controles y las acciones de tratamiento que eviten la materialización de los riesgos identificados | F89: 3 | G89: 1 | H89: El Informe de sobre el Seguimiento a la Ley de Transparencia se tiene previsto realizar en el segundo semestre de la vigencia. | I89: El Informe de sobre el Seguimiento a la Ley de Transparencia se tiene previsto realizar en el segundo semestre de la vigencia. | J89: 3 | K89: =+IF(OR(ISBLANK(F89),ISBLANK(J89)),"",IF(OR(AND(F89=1,J89=1),AND(F89=1,J89=2),AND(F89=1,J89=3)),"Deficiencia de control mayor (diseño y ejecución)",IF(OR(AND(F89=2,J89=2),AND(F89=3,J89=1),AND(F89=3,J89=2),AND(F89=2,J89=1)),"Deficiencia de control (diseño o ejecución)",IF(AND(F89=2,J89=3),"Oportunidad de mejora","Mantenimiento del control")))) -> Mantenimiento del control | L89: =+IF(K89="",231,IF(K89="Deficiencia de control mayor (diseño y ejecución)",240,IF(K89="Deficiencia de control (diseño o ejecución)",260,IF(K89="Oportunidad de mejora",280,300)))) -> 300 | M89: 5.2369 | N89: =+L89+M89 -> 305.2369
G90: 2 | H90: El proceso realiza la actualizacion de sus lineamientos, politicas y procedimientos.
G91: 3 | H91: Para lo descrito por el proceso se logra identificar su cumplimiento, de acuerdo a los soportes suministrados (documento, link, correo, etc que soporte la explicación).
G92: 4
G93: 5
G94: 6
G95: 7
G96: 8
B97: =+LEFT(C97,4) -> 15.2 | C97: 15.2 La entidad cuenta con canales externos definidos de comunicación, asociados con el tipo de información a divulgar, y éstos son reconocidos a todo nivel de la organización. | D97: Dimensión de Información y Comunicación Política de Transparencia, acceso a la información pública y lucha contra la corrupción | E97: El IDT tiene cuentas en distintas redes sociales como Twitter, facebook e Instagram, las cuales son canales de divulgación alternativos y son conocidos a nivel organizacional. Evidencias: https://www.idt.gov.co/ Facebook: @IDTBogota Twitter: @IDTBogota Instagram: @bogota_turismo YouTube: Instituto Distrital de Turismo TikTok: @bogota_idt | F97: 3 | G97: 1 | H97: Para lo descrito por el proceso se logra identificar su cumplimiento, de acuerdo a los soportes suministrados (documento, link, correo, etc que soporte la explicación). | J97: 3 | K97: =+IF(OR(ISBLANK(F97),ISBLANK(J97)),"",IF(OR(AND(F97=1,J97=1),AND(F97=1,J97=2),AND(F97=1,J97=3)),"Deficiencia de control mayor (diseño y ejecución)",IF(OR(AND(F97=2,J97=2),AND(F97=3,J97=1),AND(F97=3,J97=2),AND(F97=2,J97=1)),"Deficiencia de control (diseño o ejecución)",IF(AND(F97=2,J97=3),"Oportunidad de mejora","Mantenimiento del control")))) -> Mantenimiento del control | L97: =+IF(K97="",231,IF(K97="Deficiencia de control mayor (diseño y ejecución)",240,IF(K97="Deficiencia de control (diseño o ejecución)",260,IF(K97="Oportunidad de mejora",280,300)))) -> 300 | M97: 5.3654 | N97: =+L97+M97 -> 305.3654
G98: 2
G99: 3
G100: 4
B101: =+LEFT(C101,4) -> 15.3 | C101: 15.3 La Entidad cuenta con procesos o procedimientos para el manejo de la información entrante (quién la recibe, quién la clasifica, quién la analiza), y a la respuesta requerida (quién la canaliza y la responde). | D101: Dimensión de Información y Comunicación Política de Gestión Documental Política de Transparencia, acceso a la información pública y lucha contra la corrupción | E101: Se cuenta con la Polìtica de Gestiòn Documental, la cual tiene como objetivo: Establecer los lineamientos y directrices institucionales para cumplir con la normatividad y los procesos archivísticos de planeación, producción, gestión y trámite, organización, transferencia, disposición, conservación, preservación a largo plazo y valoración de los documentos tanto físicos como electrónicos que conforman el acervo documental de la entidad. Se cuenta con el procedimiento para dar respuesta a peticiones, quejas, reclamos, sugerencias y denuncias, con el objetivo de Recepcionar, clasificar, gestionar y dar respuesta a las peticiones, quejas, reclamos, sugerencias y denuncias allegadas a la entidad, a través de los diferentes canales definidos por la entidad de acuerdo a la normatividad vigente con oportunidad y calidad. Evidencias: Politica de gestion documental: https://intranet.idt.gov.co/sites/default/files/2023-05/GD-PO1%20Politica%20Gestion%20Documental%20V2%2028042023.pdf Procedimiento atencion a PQRSD https://intranet.idt.gov.co/sites/default/files/2023-06/Actualizacion%20Procedimiento%20Atencion%20al%20Ciudadano%20V9%2031052023.pdf | F101: 3 | G101: 1 | H101: Para lo descrito por el proceso se logra identificar su cumplimiento, de acuerdo a los soportes suministrados (documento, link, correo, etc que soporte la explicación) | I101: N/A | J101: 3 | K101: =+IF(OR(ISBLANK(F101),ISBLANK(J101)),"",IF(OR(AND(F101=1,J101=1),AND(F101=1,J101=2),AND(F101=1,J101=3)),"Deficiencia de control mayor (diseño y ejecución)",IF(OR(AND(F101=2,J101=2),AND(F101=3,J101=1),AND(F101=3,J101=2),AND(F101=2,J101=1)),"Deficiencia de control (diseño o ejecución)",IF(AND(F101=2,J101=3),"Oportunidad de mejora","Mantenimiento del control")))) -> Mantenimiento del control | L101: =+IF(K101="",231,IF(K101="Deficiencia de control mayor (diseño y ejecución)",240,IF(K101="Deficiencia de control (diseño o ejecución)",260,IF(K101="Oportunidad de mejora",280,300)))) -> 300 | M101: 5.4563 | N101: =+L101+M101 -> 305.4563
G102: 2
G103: 3
G104: 4
G105: 5
G106: 6
G107: 7
G108: 8
B109: =+LEFT(C109,4) -> 15.4 | C109: 15.4 La Entidad cuenta con procesos o procedimientos encaminados a evaluar periódicamente la efectividad de los canales de comunicación con partes externas, así como sus contenidos, de tal forma que se puedan mejorar. | D109: Dimensión de Información y Comunicación Política de Control Interno Líneas de Defensa | E109: El Instituto Distrital de Turismo (IDT), a través de su Oficina Asesora de Comunicaciones (OAC), cuenta con procesos y mecanismos establecidos para evaluar de manera periódica la efectividad de los canales de comunicación externa y la calidad de sus contenidos. Estas acciones permiten realizar ajustes estratégicos y operativos, garantizando la mejora continua en la relación con ciudadanos, turistas, medios de comunicación, aliados estratégicos y otros grupos de interés. 1..Aplicación semestral de encuestas de satisfacción a clientes internos, que incluyen ítems sobre percepción de la comunicación institucional y canales de información utilizados. 2. Encuentros informativos, de inducción o capacitación, presenciales o virtuales, orientados al fortalecimiento de la comunicación organizacional 3.Análisis permanente de indicadores de comunicación externa, tales como: *Crecimiento en redes sociales *Gestión free press 4.Interlocución constante con periodistas y medios de comunicación, a través de llamadas, grupos de WhatsApp, reuniones y gestión de vocerías, que permiten levantar requerimientos y conocer niveles de satisfacción con la entidad. 5. Monitoreo diario de medios (prensa escrita, audiovisual y digital) de lunes a viernes, con el fin de identificar contenidos relacionados con el sector y rastrear publicaciones institucionales generadas desde el IDT. 6.Comunicación diaria entre equipos de trabajo, tanto internos (directivos, equipos de planta, procesos) como externos (Red Distrital de Jefes de Prensa, de Comunicaciones Internas y de Community Managers), por medio de WhatsApp, reuniones periódicas e informes de circulación de contenidos. 7.Seguimiento al cumplimiento del Plan Estratégico de Comunicaciones (PEC), incluyendo la evaluación de actividades previstas en el componente externo y el ajuste de estrategias según resultados. 8 Gestión y seguimiento de peticiones, quejas y felicitaciones recibidas por canales digitales, especialmente redes sociales, asegurando atención oportuna a los públicos externos. 9. Apoyo a ejercicios de participación ciudadana institucional, mediante piezas, formatos y canales comunicativos diseñados de acuerdo con el Plan de Acción MIPG y el Plan Institucional de Participación Ciudadana. 10.Tráficos semanales con procesos misionales, donde se identifican oportunidades de mejora en los productos comunicacionales, campañas o contenidos dirigidos a públicos externos. Uso de resultados para la mejora continua -La información obtenida a través de estos mecanismos permite: Rediseñar campañas de comunicación. Priorizar formatos y canales de mayor impacto. Ajustar mensajes institucionales. Fortalecer la atención a públicos externos y medios de comunicación. Reforzar contenidos pedagógicos, promocionales y de posicionamiento turístico. Evidencias: Documentos soporte PEC-2025, seguimiento: https://drive.google.com/drive/u/0/folders/1cFD1rLaHBoBo2bW92SItEgef5EkAe2dr Plan de acción MIPG https://drive.google.com/drive/u/0/folders/1K-Ir8e0WXG_DLiLuTQuK9LZwsRilmDc2 Base de datos medios de comunicación https://docs.google.com/spreadsheets/d/1wVf035AIV3j_dCjg8rrAq0t27SEzMusz/edit?gid=1761717108#gid=1761717108 Encuesta externa https://docs.google.com/forms/d/e/1FAIpQLSe73GJWAdUAPBvgZTtFZdmaEMk8Y9vwxsgxA2iTSmVG5NfTIw/viewform?usp=header Reporte de monitoreo de prensa semanal https://drive.google.com/drive/u/0/folders/1H92KIDKDwWG9GSTdWgBPxWWKZ7Zy9SBR Seguimiento PQRS-Redes sociales https://drive.google.com/drive/u/0/folders/1QPWe3ZJI89__uc3FxerqGF-Kk67B0WgF Informes de Redes Sociales https://drive.google.com/drive/u/0/folders/1THCiwruhTDorAatdmL4u0aSrsdduKe2E Seguimiento a indicadores del proceso https://drive.google.com/drive/u/0/folders/1bQE2pgCIBlkyOQJQCt-af3xgS1v96Z3I Actividades establecidas en el PEC- Externo https://drive.google.com/drive/u/0/folders/1Z3RB4Nh-uYCRoAiwWRCC6fuFxSkrpYCT Actividades establecidas en el PEC - Digital https://drive.google.com/drive/u/0/folders/1WobJv3UUOLjhc2VwBZ28b4eD2QizEj6P | F109: 3 | G109: 1 | H109: El Informe de sobre el Seguimiento a la Ley de Transparencia se tiene previsto realizar en el segundo semestre de la vigencia. | I109: N/A | J109: 3 | K109: =+IF(OR(ISBLANK(F109),ISBLANK(J109)),"",IF(OR(AND(F109=1,J109=1),AND(F109=1,J109=2),AND(F109=1,J109=3)),"Deficiencia de control mayor (diseño y ejecución)",IF(OR(AND(F109=2,J109=2),AND(F109=3,J109=1),AND(F109=3,J109=2),AND(F109=2,J109=1)),"Deficiencia de control (diseño o ejecución)",IF(AND(F109=2,J109=3),"Oportunidad de mejora","Mantenimiento del control")))) -> Mantenimiento del control | L109: =+IF(K109="",231,IF(K109="Deficiencia de control mayor (diseño y ejecución)",240,IF(K109="Deficiencia de control (diseño o ejecución)",260,IF(K109="Oportunidad de mejora",280,300)))) -> 300 | M109: 5.5632 | N109: =+L109+M109 -> 305.5632
G110: 2 | H110: Para lo descrito por el proceso se logra identificar su cumplimiento, de acuerdo a los soportes suministrados (documento, link, correo, etc que soporte la explicación).
G111: 3
G112: 4
G113: 5
G114: 6
G115: 7
G116: 8
B117: =+LEFT(C117,4) -> 15.5 | C117: 15.5 La Entidad analiza periódicamente su caracterización de usuarios o grupos de valor, a fin de actualizarla cuando sea pertinente. | D117: Dimensión de Direccionamiento Estratégico y Planeación Política de Planeación Institucional | E117: Se tiene establecido el documento "Caracterización de Usuarios y Grupos de Valor del IDT" donde caracteriza a los usuarios y grupos de valor del Instituto Distrital de Turismo, se despliega a partir de la identificación de los grupos de valor identificados, sus necesidades y los principales temas de interés que atiende cada dependencia, junto los principales canales de atención. Documento que se actualizará con el ejercicio de la nueva Planeación Estratégica. Evidencias: Caracterización de Usuarios y Grupos de Valor del IDT https://intranet.idt.gov.co/sites/default/files/CARACTERIZACION-DE-USUARIOS-GRUPOS-DE-VALOR-27052022.pdf | F117: 3 | G117: 1 | H117: Para lo descrito por el proceso se logra identificar su cumplimiento, de acuerdo a los soportes suministrados (documento, link, correo, etc que soporte la explicación). | I117: NA | J117: 3 | K117: =+IF(OR(ISBLANK(F117),ISBLANK(J117)),"",IF(OR(AND(F117=1,J117=1),AND(F117=1,J117=2),AND(F117=1,J117=3)),"Deficiencia de control mayor (diseño y ejecución)",IF(OR(AND(F117=2,J117=2),AND(F117=3,J117=1),AND(F117=3,J117=2),AND(F117=2,J117=1)),"Deficiencia de control (diseño o ejecución)",IF(AND(F117=2,J117=3),"Oportunidad de mejora","Mantenimiento del control")))) -> Mantenimiento del control | L117: =+IF(K117="",231,IF(K117="Deficiencia de control mayor (diseño y ejecución)",240,IF(K117="Deficiencia de control (diseño o ejecución)",260,IF(K117="Oportunidad de mejora",280,300)))) -> 300 | M117: 5.6321 | N117: =+L117+M117 -> 305.6321
G118: 2
G119: 3
G120: 4
G121: 5
G122: 6
G123: 7
G124: 8
B125: =+LEFT(C125,4) -> 15.6 | C125: 15.6 La Entidad analiza periódicamente los resultados frente a la evaluación de percepción por parte de los usuarios o grupos de valor para la incorporación de las mejoras correspondientes. | D125: Dimensión de Direccionamiento Estratégico y Planeación Política de Planeación Institucional | E125: La entidad realiza la medición a los ejercicios de rendición de cuentas que cuentan con la paricipación de la ciudadanía, buscando retroalimentación del mismo; las memorias relacionadas con esta actividad se encuentran publicadas en la página de la entidad. Desde el Comité Instituciional de Gestión y Desempeño realizado en el mes de noviembre se llevó el tema de Presentacion resultados encuestas de satisfaccion", donde se exponen tanto las evaluaciones de percepción de nuestros usuarios desde la parte misional como desde el proceso de Atención al Ciudadano. Para la vigencia 2025 no se ha realizado la programacion para este tema Evidencias: https://www.idt.gov.co/es/rendicion-de-cuentas https://intranet.idt.gov.co/es/procesos-estrategicos-docs?section=19 /Registro 2024 | F125: 3 | G125: 1 | H125: Para lo descrito por el proceso se logra identificar su cumplimiento, de acuerdo a los soportes suministrados (documento, link, correo, etc que soporte la explicación). | I125: NA | J125: 3 | K125: =+IF(OR(ISBLANK(F125),ISBLANK(J125)),"",IF(OR(AND(F125=1,J125=1),AND(F125=1,J125=2),AND(F125=1,J125=3)),"Deficiencia de control mayor (diseño y ejecución)",IF(OR(AND(F125=2,J125=2),AND(F125=3,J125=1),AND(F125=3,J125=2),AND(F125=2,J125=1)),"Deficiencia de control (diseño o ejecución)",IF(AND(F125=2,J125=3),"Oportunidad de mejora","Mantenimiento del control")))) -> Mantenimiento del control | L125: =+IF(K125="",231,IF(K125="Deficiencia de control mayor (diseño y ejecución)",240,IF(K125="Deficiencia de control (diseño o ejecución)",260,IF(K125="Oportunidad de mejora",280,300)))) -> 300 | M125: 5.7896 | N125: =+L125+M125 -> 305.7896
G126: 2
G127: 3
G128: 4
G129: 5
G130: 6
G131: 7
G132: 8

Sheet Actividades de Monitoreo
C14: ACTIVIDADES DE MONITOREO
C15: Este componente considera actividades en el día a día de la gestión institucional, así como a través de evaluaciones periódicas (autoevaluación, auditorías). Su propósito es valorar: (i) la efectividad del control interno de la entidad pública; (ii) la eficiencia, eficacia y efectividad de los procesos; (iii) el nivel de ejecución de los planes, programas y proyectos; (iv) los resultados de la gestión, con el propósito de detectar desviaciones, establecer tendencias, y generar recomendaciones para orientar las acciones de mejoramiento de la entidad pública.
B17: ID | C17: Lineamiento 16. Evaluaciones continuas y/o separadas (autoevaluación, auditorías) para determinar si los componentes del Sistema de Control Interno están presentes y funcionando. | D17: DIMENSIÓN O POLÍTICA DEL MIPG ASOCIADA AL REQUERIMIENTO | E17: Explicación de cómo la Entidad evidencia que está dando respuesta al requerimiento Referencia a Procesos, Manuales/Políticas de Operación/Procedimientos/Instructivos u otros desarrollos que den cuente de su aplicación | F17: Presente (1/2/3) | G17: EVIDENCIA DEL CONTROL | J17: Funcionando (1/2/3) | K17: Evaluación
G18: No. | H18: Referencia a Análisis y verificaciones en el marco del Comité Institucional de Coordinación de Control Interno | I18: Observaciones de la evaluación independiente (tener en cuenta papel de líneas de defensa) *Nota:Únicamente diligenciar las observaciones que van vinculadas al desarrollo de actividades de las demás Líneas de Defensa
B20: =+LEFT(C20,4) -> 16.1 | C20: 16.1 El Comité Institucional de Coordinación de Control Interno aprueba anualmente el Plan Anual de Auditoría presentado por parte del Jefe de Control Interno o quien haga sus veces y hace el correspondiente seguimiento a su ejecución. | E20: Dentro de las sesiones realizadas en el primer semestre de la vigencia 202r5 se realizaron los seguimientos respectivos a cada una de las actividades ejecutadas y por ejecutar del PAA. Además, la Asesoría de Control Interno, lleva a cabo reuniones mensuales en las que realiza seguimiento a la ejecución de las acciones programadas dentro del Plan Anual de Auditoria. | F20: 3 | G20: 1 | H20: Dentro de las sesiones llevadas a cabo durante el primer semestre de la vigencia, se realizó el seguimiento respectivo a cada una de las actividades ejecutadas y por ejecutar del Plan Anual de Auditoria. | I20: De acuerdo a lo suministrado por el proceso se identifica lo descrito en las actas del Comité Institucional de Coordinación de Control Interno y en las actas de seguimiento mensual a las acciones del PAA. | J20: 3 | K20: =+IF(OR(ISBLANK(F20),ISBLANK(J20)),"",IF(OR(AND(F20=1,J20=1),AND(F20=1,J20=2),AND(F20=1,J20=3)),"Deficiencia de control mayor (diseño y ejecución)",IF(OR(AND(F20=2,J20=2),AND(F20=3,J20=1),AND(F20=3,J20=2),AND(F20=2,J20=1)),"Deficiencia de control (diseño o ejecución)",IF(AND(F20=2,J20=3),"Oportunidad de mejora","Mantenimiento del control")))) -> Mantenimiento del control | L20: =+IF(K20="",312,IF(K20="Deficiencia de control mayor (diseño y ejecución)",320,IF(K20="Deficiencia de control (diseño o ejecución)",340,IF(K20="Oportunidad de mejora",360,380)))) -> 380 | M20: 5.8745 | N20: =+L20+M20 -> 385.87450
G21: 2
G22: 3
G23: 4
G24: 5
G25: 6
G26: 7
G27: 8
B28: =+LEFT(C28,4) -> 16.2 | C28: 16.2 La Alta Dirección periódicamente evalúa los resultados de las evaluaciones (contínuas e independientes) para concluir acerca de la efectividad del Sistema de Control Interno. | D28: Dimensión de Control Interno Líneas Estratégicas | E28: La Dirección del IDT, evalúa dentro del marco del Comité Institucional de Coordinación de Control Interno, los resultados presentados por la Asesoría de Control Interno, los cuales hacen referencia a los hallazgos de las auditorías, seguimientos y monitoreos desarrollados. De igual forma la Dirección toma decisiones respecto a estos resultados para la efectividad del Sistema de Control Interno. | F28: 3 | G28: 1 | H28: La Dirección del IDT, evalúa dentro del marco del Comité Institucional de Coordinación de Control Interno, los resultados presentados por la Asesora de Control Interno, los cuales hacen referencia a los hallazgos de las auditorías, seguimientos y monitoreos desarrollados. | I28: Dentro de cada Comité Institucional de Coordinación de Control Interno, se dejan observaciones y/o recomendaciones con el fin definir soluciones a los hallazgos presentados. | J28: 3 | K28: =+IF(OR(ISBLANK(F28),ISBLANK(J28)),"",IF(OR(AND(F28=1,J28=1),AND(F28=1,J28=2),AND(F28=1,J28=3)),"Deficiencia de control mayor (diseño y ejecución)",IF(OR(AND(F28=2,J28=2),AND(F28=3,J28=1),AND(F28=3,J28=2),AND(F28=2,J28=1)),"Deficiencia de control (diseño o ejecución)",IF(AND(F28=2,J28=3),"Oportunidad de mejora","Mantenimiento del control")))) -> Mantenimiento del control | L28: =+IF(K28="",312,IF(K28="Deficiencia de control mayor (diseño y ejecución)",320,IF(K28="Deficiencia de control (diseño o ejecución)",340,IF(K28="Oportunidad de mejora",360,380)))) -> 380 | M28: 5.9654 | N28: =+L28+M28 -> 385.96540
G29: 2 | H29: La Dirección toma decisiones respecto a resultados de Auditoría, solicitando a los procesos involucrados, tomar acciones sobre los resultados.
G30: 3
G31: 4
G32: 5
G33: 6
G34: 7
G35: 8
B36: =+LEFT(C36,4) -> 16.3 | C36: 16.3 La Oficina de Control Interno o quien haga sus veces realiza evaluaciones independientes periódicas (con una frecuencia definida con base en el análisis de riesgo), que le permite evaluar el diseño y operación de los controles establecidos y definir su efectividad para evitar la materialización de riesgos. | D36: Dimensión de Control Interno Tercera Línea de Defensa | E36: La Asesoría de Control Interno realiza els seguimiento a la Gestión de Riesgos donde se evalúa principalmente el diseño y operación de los controles dentro la matriz de riesgos. Evidencia: Informes de Auditoría http://www.idt.gov.co/Informes-Auditorias | F36: 3 | G36: 1 | H36: La Dirección del IDT, evalúa dentro del marco del Comité Institucional de Coordinación de Control Interno, los resultados presentados por la Asesoría de Control Interno, los cuales hacen referencia a los hallazgos de las Auditorías, seguimientos y monitoreos desarrollados dentro de los que se incluyen la Gestión de Riesgos. | I36: N/A | J36: 3 | K36: =+IF(OR(ISBLANK(F36),ISBLANK(J36)),"",IF(OR(AND(F36=1,J36=1),AND(F36=1,J36=2),AND(F36=1,J36=3)),"Deficiencia de control mayor (diseño y ejecución)",IF(OR(AND(F36=2,J36=2),AND(F36=3,J36=1),AND(F36=3,J36=2),AND(F36=2,J36=1)),"Deficiencia de control (diseño o ejecución)",IF(AND(F36=2,J36=3),"Oportunidad de mejora","Mantenimiento del control")))) -> Mantenimiento del control | L36: =+IF(K36="",312,IF(K36="Deficiencia de control mayor (diseño y ejecución)",320,IF(K36="Deficiencia de control (diseño o ejecución)",340,IF(K36="Oportunidad de mejora",360,380)))) -> 380 | M36: 6.0123 | N36: =+L36+M36 -> 386.01230
G37: 2
G38: 3
G39: 4
G40: 5
G41: 6
G42: 7
G43: 8
B44: =+LEFT(C44,4) -> 16.4 | C44: 16.4 Acorde con el Esquema de Líneas de Defensa se han implementado procedimientos de monitoreo continuo como parte de las actividades de la 2a Línea de Defensa, a fin de contar con información clave para la toma de decisiones. | D44: Dimensión de Control Interno Segunda Línea de Defensa | E44: Se tiene implementado el procedimiento DE-P17 el cual establece las actividades requeridas para la formulación y seguimiento a los proyectos de inversión. Se tiene implementado el procedimiento para la medición de la gestión del IDT, con el objetivo de consolidar, medir y analizar la gestión de la entidad por medio de indicadores definidos por cada uno de los procesos. Con el fin de mejorar la gestión integral de riesgos, se implemento el procedimiento Procedimiento para la administración de riesgos en el IDT, basada en la metodología para la administración del Riesgos del Departamento Administrativo de la Función Pública. En la actualidad se cuenta con la herramienta dashboard la cual brinda información en línea tanto de proyectos de inversión, indicadores y el plan de acción de MIPG. Ademàs se cuenta con la Resolución 266 del 17 de diciembre de 2024 "Por la cual se designan los gerentes de proyectos de inversión del IDT, se establecen responsabilidades y mesas de seguimiento, se derogan Resoluciones 184 de 2020, 93 de 2021, 221 de 2021 y 171 de 2023" Evidencias: https://intranet.idt.gov.co/sites/default/files/2023-10/DE-P17%20Proc_form_yseguimiento_ejecProyectosInv%20V2%2025082023.pdf https://intranet.idt.gov.co/sites/default/files/2025-06/SIG-P05_Procedimiento%20para%20la%20Medicion%20de%20la%20Gestion%20del%20IDT_V11_10062025.pdf https://intranet.idt.gov.co/sites/default/files/2025-01/Res.%20266%2016-12-24%20Por%20la%20cual%20se%20da%20seguimiento%20a%20Proyectos.pdf | F44: 3 | G44: 1 | H44: se presentó el resultado de informes relacionados con éste criterio, como los son: El Informe del Seguimiento a las Metas Plan de Desarrollo, Seguimiento a la Gestión de Riesgos. | I44: Dentro de cada uno de los Informes se describen las observaciones, y recomendaciones del seguimiento realizado por parte de la Asesoría de Control Interno. | J44: 3 | K44: =+IF(OR(ISBLANK(F44),ISBLANK(J44)),"",IF(OR(AND(F44=1,J44=1),AND(F44=1,J44=2),AND(F44=1,J44=3)),"Deficiencia de control mayor (diseño y ejecución)",IF(OR(AND(F44=2,J44=2),AND(F44=3,J44=1),AND(F44=3,J44=2),AND(F44=2,J44=1)),"Deficiencia de control (diseño o ejecución)",IF(AND(F44=2,J44=3),"Oportunidad de mejora","Mantenimiento del control")))) -> Mantenimiento del control | L44: =+IF(K44="",312,IF(K44="Deficiencia de control mayor (diseño y ejecución)",320,IF(K44="Deficiencia de control (diseño o ejecución)",340,IF(K44="Oportunidad de mejora",360,380)))) -> 380 | M44: 6.1236 | N44: =+L44+M44 -> 386.12360
G45: 2 | H45: Para lo descrito por el proceso se logra identificar su cumplimiento, de acuerdo a los soportes suministrados (documento, link, correo, etc que soporte la explicación).
G46: 3
G47: 4
G48: 5
G49: 6
G50: 7
G51: 8
B52: =+LEFT(C52,4) -> 16.5 | C52: 16.5 Frente a las evaluaciones independientes, la Entidad considera evaluaciones externas de Organismos de Control, de Vigilancia, Certificadores, ONG´s u otros que permitan tener una mirada independiente de las operaciones. | D52: Dimensión de Control Interno Líneas de Defensa | E52: Dentro de las funciones de la Asesoría de Control Interno, está la de servir como canal de comunicación entre los Entes de Control, tales como: la Contraloría Distrital, en donde a partir de su gestión, genera Informes de Auditoría y en consecuencia se suscriben Planes de Mejoramiento. Así mismo las demás Entidades de Control, realizan visitas y evaluaciones periódicas en la que la Asesoría de Control Interno, está presta a atender cada solicitud y servir de enlace para dar respuestas por parte de la Entidad. Evidencias: Informes de Auditorías Externas. Planes de Mejoramiento Institucional (Contraloría) | F52: 3 | G52: 1 | H52: En el marco de los Comités llevados a cabo en el primer semestre de la vigencia, se expusieron los resultados frente al Seguimiento al Plan de Mejoramiento Institucional PMI (Contraloría). | I52: La Asesoría de Control Interno para el primer semestre de la vigencia 2025, realizó seguimiento periódico al Plan de Mejoramiento Institucional PMI, este originado a partir de las visitas y/o reportes generados por los Entes de Control. | J52: 3 | K52: =+IF(OR(ISBLANK(F52),ISBLANK(J52)),"",IF(OR(AND(F52=1,J52=1),AND(F52=1,J52=2),AND(F52=1,J52=3)),"Deficiencia de control mayor (diseño y ejecución)",IF(OR(AND(F52=2,J52=2),AND(F52=3,J52=1),AND(F52=3,J52=2),AND(F52=2,J52=1)),"Deficiencia de control (diseño o ejecución)",IF(AND(F52=2,J52=3),"Oportunidad de mejora","Mantenimiento del control")))) -> Mantenimiento del control | L52: =+IF(K52="",312,IF(K52="Deficiencia de control mayor (diseño y ejecución)",320,IF(K52="Deficiencia de control (diseño o ejecución)",340,IF(K52="Oportunidad de mejora",360,380)))) -> 380 | M52: 6.2136 | N52: =+L52+M52 -> 386.21360
G53: 2
G54: 3
G55: 4
G56: 5
G57: 6
G58: 7
G59: 8
C60: Lineamiento 17. Evaluación y comunicación de deficiencias oportunamente (Evalúa los resultados, Comunica las deficiencias y Monitorea las medidas correctivas). | D60: DIMENSIÓN O POLÍTICA DEL MIPG ASOCIADA AL REQUERIMIENTO | E60: Explicación de cómo la Entidad evidencia que está dando respuesta al requerimiento Referencia a Procesos, Manuales/Políticas de Operación/Procedimientos/Instructivos u otros desarrollos que den cuente de su aplicación | F60: Presente (1/2/3) | G60: EVIDENCIA DEL CONTROL | J60: Funcionando (1/2/3) | K60: Evaluación
G61: No. | H61: Referencia a Análisis y verificaciones en el marco del Comité Institucional de Coordinación de Control Interno | I61: Observaciones de la evaluación independiente (tener en cuenta papel de Líneas de Defensa) *Nota: Únicamente diligenciar las observaciones que van vinculadas al desarrollo de actividades de las demás Líneas de Defensa
B63: =+LEFT(C63,5) -> 17.1 | C63: 17.1 A partir de la información de las evaluaciones independientes, se evalúan para determinar su efecto en el Sistema de Control Interno de la entidad y su impacto en el logro de los objetivos, a fin de determinar cursos de acción para su mejora. | D63: Dimensión de Control Interno Líneas de Defensa | E63: En el marco de los Comités de Coordinación de Control Interno, la Alta Dirección evalúa los resultados de los ejercicios de evaluación llevados a cabo tanto por la Asesoría de Control Interno, como por parte de los Entes de Control, con el fin de definir acciones en pro de la consecución de los objetivos Institucionales. | F63: 3 | G63: 1 | H63: En el marco de los Comités Institucionales de Coordinación de Control Interno que se llevaron a cabo en el primer semestre de la vigencia 2025 se expusieron los Informes de Evaluación realizados por la Asesoría de Control Interno. | I63: Dentro de cada Comité, se socializan y si es el caso se dejan observaciones y/o recomendaciones con el fin definir soluciones a los hallazgos presentados. | J63: 3 | K63: =+IF(OR(ISBLANK(F63),ISBLANK(J63)),"",IF(OR(AND(F63=1,J63=1),AND(F63=1,J63=2),AND(F63=1,J63=3)),"Deficiencia de control mayor (diseño y ejecución)",IF(OR(AND(F63=2,J63=2),AND(F63=3,J63=1),AND(F63=3,J63=2),AND(F63=2,J63=1)),"Deficiencia de control (diseño o ejecución)",IF(AND(F63=2,J63=3),"Oportunidad de mejora","Mantenimiento del control")))) -> Mantenimiento del control | L63: =+IF(K63="",312,IF(K63="Deficiencia de control mayor (diseño y ejecución)",320,IF(K63="Deficiencia de control (diseño o ejecución)",340,IF(K63="Oportunidad de mejora",360,380)))) -> 380 | M63: 6.3258 | N63: =+L63+M63 -> 386.32580
G64: 2
G65: 3
G66: 4
G67: 5
G68: 6
G69: 7
G70: 8
B71: =+LEFT(C71,5) -> 17.2 | C71: 17.2 Los informes recibidos de Entes Externos (Organismos de Control, Auditores Externos, Entidades de Vigilancia, entre otros) se consolidan y se concluye sobre el impacto en el Sistema de Control Interno, a fin de determinar los cursos de acción. | D71: Dimensión de Control Interno Líneas de Defensa | E71: Dentro de las funciones de la Asesoría de Control Interno, está la de servir como canal de comunicación entre los Entes de Control, tales como: la Contraloría Distrital, en donde a partir de su gestión, genera Informes de Auditoría y en consecuencia se suscriben Planes de Mejoramiento. Así mismo, las demás Entidades de Control, realizan visitas y evaluaciones periódicas en las que la Asesoría de Control Interno, está presta a atender cada solicitud y servir de enlace para dar respuestas por parte de la Entidad. | F71: 3 | G71: 1 | H71: Los resultados del Informe del Estado del Sistema de Control Interno (presente informe), se exponen en los Comites Institucionales de Coordinación de Control Interno. | I71: N/A | J71: 3 | K71: =+IF(OR(ISBLANK(F71),ISBLANK(J71)),"",IF(OR(AND(F71=1,J71=1),AND(F71=1,J71=2),AND(F71=1,J71=3)),"Deficiencia de control mayor (diseño y ejecución)",IF(OR(AND(F71=2,J71=2),AND(F71=3,J71=1),AND(F71=3,J71=2),AND(F71=2,J71=1)),"Deficiencia de control (diseño o ejecución)",IF(AND(F71=2,J71=3),"Oportunidad de mejora","Mantenimiento del control")))) -> Mantenimiento del control | L71: =+IF(K71="",312,IF(K71="Deficiencia de control mayor (diseño y ejecución)",320,IF(K71="Deficiencia de control (diseño o ejecución)",340,IF(K71="Oportunidad de mejora",360,380)))) -> 380 | M71: 6.4569 | N71: =+L71+M71 -> 386.45690
G72: 2
G73: 3
G74: 4
G75: 5
G76: 6
G77: 7
G78: 8
B79: =+LEFT(C79,5) -> 17.3 | C79: 17.3 La Entidad cuenta con Políticas donde se establezca a quién reportar las deficiencias de Control Interno como resultado del monitoreo continuo. | D79: Dimensión de Control Interno Líneas de Defensa | E79: La Asesoría de Control Interno, cuenta con los lineamientos como: Procedimientos de Auditoría Interna y Planes de Mejoramiento, en donde se describen las acciones a seguir cuando se presentan deficiencias del Sistema de Control Interno. De igual manera, se fomenta la Cultura del Autocontrol, y el Enfoque hacia la prevención en donde se socializa a la comunidad del IDT, la importancia de detectar desviaciones en el proceso, para una oportuna solución. | F79: 3 | G79: 1 | H79: Todos los resultados de los Informes generados por la Asesoría de Control Interno son presentados en el Comité Institucional de Coordinación de Control Interno. | I79: N/A | J79: 3 | K79: =+IF(OR(ISBLANK(F79),ISBLANK(J79)),"",IF(OR(AND(F79=1,J79=1),AND(F79=1,J79=2),AND(F79=1,J79=3)),"Deficiencia de control mayor (diseño y ejecución)",IF(OR(AND(F79=2,J79=2),AND(F79=3,J79=1),AND(F79=3,J79=2),AND(F79=2,J79=1)),"Deficiencia de control (diseño o ejecución)",IF(AND(F79=2,J79=3),"Oportunidad de mejora","Mantenimiento del control")))) -> Mantenimiento del control | L79: =+IF(K79="",312,IF(K79="Deficiencia de control mayor (diseño y ejecución)",320,IF(K79="Deficiencia de control (diseño o ejecución)",340,IF(K79="Oportunidad de mejora",360,380)))) -> 380 | M79: 6.5632 | N79: =+L79+M79 -> 386.56320
G80: 2
G81: 3
G82: 4
G83: 5
G84: 6
G85: 7
G86: 8
B87: =+LEFT(C87,5) -> 17.4 | C87: 17.4 La Alta Dirección hace seguimiento a las acciones correctivas relacionadas con las deficiencias comunicadas sobre el Sistema de Control Interno y si se han cumplido en el tiempo establecido. | D87: Dimensión de Control Interno Líneas de Defensa | E87: La Asesoría de Control Interno, realiza seguimiento trimestral al Plan de Mejoramiento por Procesos, el cual se origina a partir de los ejercicios de evaluación, sin embargo, dada la pertinencia y/o obligatoriedad, el seguimiento se puede presentar en cualquier momento: la anterior situación y originar por requerimiento de los Entes de Control y especialmente por la Contraloría de Bogotá. Así mismo, se cuenta con Indicadores Transversales que verifican el cumplimiento de acciones. | F87: 3 | G87: 1 | H87: En el marco de los Comités Institucionales de Coordinación de Control Interno que se llevaron a cabo en el primer semestre de la vigencia 2025, se presentaron los resultados referentes al Seguimiento de Acciones descritas en los Planes de Mejoramiento, así como el resultado de los Indicadores y demas seguimientos realizados por la Asesoría de Control Interno. | I87: N/A | J87: 3 | K87: =+IF(OR(ISBLANK(F87),ISBLANK(J87)),"",IF(OR(AND(F87=1,J87=1),AND(F87=1,J87=2),AND(F87=1,J87=3)),"Deficiencia de control mayor (diseño y ejecución)",IF(OR(AND(F87=2,J87=2),AND(F87=3,J87=1),AND(F87=3,J87=2),AND(F87=2,J87=1)),"Deficiencia de control (diseño o ejecución)",IF(AND(F87=2,J87=3),"Oportunidad de mejora","Mantenimiento del control")))) -> Mantenimiento del control | L87: =+IF(K87="",312,IF(K87="Deficiencia de control mayor (diseño y ejecución)",320,IF(K87="Deficiencia de control (diseño o ejecución)",340,IF(K87="Oportunidad de mejora",360,380)))) -> 380 | M87: 6.7854 | N87: =+L87+M87 -> 386.78540
G88: 2
G89: 3
G90: 4
G91: 5
G92: 6
G93: 7
G94: 8
B95: =+LEFT(C95,5) -> 17.5 | C95: 17.5 Los Procesos y/o Servicios tercerizados, son evaluados acorde con su nivel de riesgos. | D95: Dimensión de Control Interno Líneas de Defensa | E95: La Asesoría de Control Interno, ha llevado a cabo Auditorías Integrales a los Procesos Misionales en donde se verifican los procesos de Contratación, en los cuales se evalúa la gestión de sus actividades, revisando principalmente el Diseño y Ejecución de Controles. | F95: 3 | G95: 1 | H95: Dentro de los Comités llevados a cabo durante el primer semestre de la vigencia, se presentan los resultados referentes a las Auditorías Integrales, así como el resultado de los Indicadores. | I95: Los Procesos han suscrito los Planes de Mejoramiento correspondientes, con el fin de eliminar los hallazgos presentados en los informes y/o seguimientos realizados por la Asesoría de Control Interno. | J95: 3 | K95: =+IF(OR(ISBLANK(F95),ISBLANK(J95)),"",IF(OR(AND(F95=1,J95=1),AND(F95=1,J95=2),AND(F95=1,J95=3)),"Deficiencia de control mayor (diseño y ejecución)",IF(OR(AND(F95=2,J95=2),AND(F95=3,J95=1),AND(F95=3,J95=2),AND(F95=2,J95=1)),"Deficiencia de control (diseño o ejecución)",IF(AND(F95=2,J95=3),"Oportunidad de mejora","Mantenimiento del control")))) -> Mantenimiento del control | L95: =+IF(K95="",312,IF(K95="Deficiencia de control mayor (diseño y ejecución)",320,IF(K95="Deficiencia de control (diseño o ejecución)",340,IF(K95="Oportunidad de mejora",360,380)))) -> 380 | M95: 6.8745 | N95: =+L95+M95 -> 386.87450
G96: 2
G97: 3
G98: 4
G99: 5
G100: 6
G101: 7
G102: 8
B103: =+LEFT(C103,5) -> 17.6 | C103: 17.6 Se evalúa la información suministrada por los usuarios (Sistema PQRD), así como de otras partes interesadas para la mejora del Sistema de Control Interno de la Entidad. | D103: Dimensión de Información y Comunicación Dimensión de Control Interno Líneas de Defensa | E103: La Asesoría de Control Interno realiza seguimientos a la Gestión de la PQRS, dentro de los que se describen las situaciones encontradas con el fin de que se generen acciones de mejora. Dentro de los ejercicios de evaluación se realizan verificaciones a cada una de las actividades desarrolladas dentro de los procesos y actividades que involucran principalmente a las partes interesadas. Evidencias: Informes a las PQRS e Informes de Auditoría https://www.idt.gov.co/seguimientos | F103: 3 | G103: 1 | H103: Dentro de los Comités Institucionales de Coordinación de Control Interno llevados a cabo en el primer semestre de la vigencia 2025, se presentaron los resultados de los seguimientos realizados por la Asesoría de Control Interno en materia de PQRSD. | I103: N/A | J103: 3 | K103: =+IF(OR(ISBLANK(F103),ISBLANK(J103)),"",IF(OR(AND(F103=1,J103=1),AND(F103=1,J103=2),AND(F103=1,J103=3)),"Deficiencia de control mayor (diseño y ejecución)",IF(OR(AND(F103=2,J103=2),AND(F103=3,J103=1),AND(F103=3,J103=2),AND(F103=2,J103=1)),"Deficiencia de control (diseño o ejecución)",IF(AND(F103=2,J103=3),"Oportunidad de mejora","Mantenimiento del control")))) -> Mantenimiento del control | L103: =+IF(K103="",312,IF(K103="Deficiencia de control mayor (diseño y ejecución)",320,IF(K103="Deficiencia de control (diseño o ejecución)",340,IF(K103="Oportunidad de mejora",360,380)))) -> 380 | M103: 6.9874 | N103: =+L103+M103 -> 386.98740
G104: 2
G105: 3
G106: 4
G107: 5
G108: 6
G109: 7
G110: 8
B111: =+LEFT(C111,5) -> 17.7 | C111: 17.7 Verificación del avance y cumplimiento de las acciones incluidas en los Planes de Mejoramiento producto de las autoevaluaciones (2ª Línea). | D111: Dimensión de Control Interno Líneas de Defensa | E111: Dentro del formato de Planes de Mejoramiento se cuenta con un espacio, para que los Líderes de Proceso (1ra y 2da línea), diligencien los avances respecto a las acciones adelantadas por Autocontrol. Teniendo en cuenta la dinámica que tiene el IDT, la verificación del avance y el cumplimiento de las acciones están a cargo de la Tercera Línea de Defensa (Control Interno). | F111: 3 | G111: 1 | H111: Dentro de los Comités Institucionales de Coordinación de Control Interno llevados a cabo en el primer semestre de la vigencia 2025, se presentaron los resultados referentes al Seguimiento de Acciones descritas en los Planes de Mejoramiento por Procesos e Institucional. | I111: N/A | J111: 3 | K111: =+IF(OR(ISBLANK(F111),ISBLANK(J111)),"",IF(OR(AND(F111=1,J111=1),AND(F111=1,J111=2),AND(F111=1,J111=3)),"Deficiencia de control mayor (diseño y ejecución)",IF(OR(AND(F111=2,J111=2),AND(F111=3,J111=1),AND(F111=3,J111=2),AND(F111=2,J111=1)),"Deficiencia de control (diseño o ejecución)",IF(AND(F111=2,J111=3),"Oportunidad de mejora","Mantenimiento del control")))) -> Mantenimiento del control | L111: =+IF(K111="",312,IF(K111="Deficiencia de control mayor (diseño y ejecución)",320,IF(K111="Deficiencia de control (diseño o ejecución)",340,IF(K111="Oportunidad de mejora",360,380)))) -> 380 | M111: 6.98745 | N111: =+L111+M111 -> 386.98745
G112: 2
G113: 3
G114: 4
G115: 5
G116: 6
G117: 7
G118: 8
B119: =+LEFT(C119,5) -> 17.8 | C119: 17.8 Evaluación de la efectividad de las acciones incluidas en los Planes de Mejoramiento producto de las Auditorías Internas y de Entes Externos (3ª Línea). | D119: Dimensión de Control Interno Líneas de Defensa | E119: Durante los seguimientos que realiza la Asesoría de Control Interno a las acciones contempladas dentro de los Planes de Mejoramiento por Procesos e Institucional, se verifica la efectividad de las mismas. Una vez se verifica que la acción fue eficaz y efectiva, para asi mismo, proceder a darle el cierre a las acciones. Evidencia: Seguimientos a Planes de Mejoramiento. https://www.idt.gov.co/es/planes-de-mejoramiento-vigentes-exigidos-por-entes-de-control-internos-o-externos | F119: 3 | G119: 1 | H119: Dentro de los Comités Institucionales de Coordinación de Control Interno llevados a cabo en el primer semestre de la vigencia 2025, se presentaron los resultados referentes a la efectividad de las acciones contempladas en los Planes de Mejoramiento por Procesos e Institucionales. | I119: N/A | J119: 3 | K119: =+IF(OR(ISBLANK(F119),ISBLANK(J119)),"",IF(OR(AND(F119=1,J119=1),AND(F119=1,J119=2),AND(F119=1,J119=3)),"Deficiencia de control mayor (diseño y ejecución)",IF(OR(AND(F119=2,J119=2),AND(F119=3,J119=1),AND(F119=3,J119=2),AND(F119=2,J119=1)),"Deficiencia de control (diseño o ejecución)",IF(AND(F119=2,J119=3),"Oportunidad de mejora","Mantenimiento del control")))) -> Mantenimiento del control | L119: =+IF(K119="",312,IF(K119="Deficiencia de control mayor (diseño y ejecución)",320,IF(K119="Deficiencia de control (diseño o ejecución)",340,IF(K119="Oportunidad de mejora",360,380)))) -> 380 | M119: 6.987456 | N119: =+L119+M119 -> 386.98746
G120: 2
G121: 3
G122: 4
G123: 5
G124: 6
G125: 7
G126: 8
B127: =+LEFT(C127,5) -> 17.9 | C127: 17.9 Las deficiencias de Control Interno son reportadas a los responsables de nivel jerárquico superior, para tomar las acciones correspondientes. | D127: Dimensión de Control Interno Líneas de Defensa | E127: La Asesoría de Control Interno del IDT, detecta las deficiencias al Sistema de Control Interno mediante mecanismos como: Informes de Auditoría, Seguimientos a los Planes de Mejoramiento, Indicadores Transversales, Seguimiento a la Gestión de Riesgos, entre otros. Los anteriores mecanismos son reportados, tanto a los Líderes de Proceso, como a la Dirección del IDT, para su conocimiento y asi tomen las decisiones pertinentes. Evidencias: Informes de Auditorías, Seguimiento y Monitoreos https://www.idt.gov.co/organismos-de-inspeccion-vigilancia-y-control | F127: 3 | G127: 1 | H127: Dentro de los Comités Institucionales de Coordinación de Control Interno llevados a cabo en el primer semestre de la vigencia 2025, se presentaron los resultados referentes a Riesgos, Indicadores, Planes de Mejoramiento, entre otros, para los cuales el Comité toma las decisiones pertinentes dado el caso. | I127: N/A | J127: 3 | K127: =+IF(OR(ISBLANK(F127),ISBLANK(J127)),"",IF(OR(AND(F127=1,J127=1),AND(F127=1,J127=2),AND(F127=1,J127=3)),"Deficiencia de control mayor (diseño y ejecución)",IF(OR(AND(F127=2,J127=2),AND(F127=3,J127=1),AND(F127=3,J127=2),AND(F127=2,J127=1)),"Deficiencia de control (diseño o ejecución)",IF(AND(F127=2,J127=3),"Oportunidad de mejora","Mantenimiento del control")))) -> Mantenimiento del control | L127: =+IF(K127="",312,IF(K127="Deficiencia de control mayor (diseño y ejecución)",320,IF(K127="Deficiencia de control (diseño o ejecución)",340,IF(K127="Oportunidad de mejora",360,380)))) -> 380 | M127: 7.0123 | N127: =+L127+M127 -> 387.01230
G128: 2
G129: 3
G130: 4
G131: 5
G132: 6
G133: 7
G134: 8

Sheet Analisis de Resultados
B4: ANÁLISIS DE RESULTADOS PARA LA TOMA DE DECISIONES
B6: Clasificación | D6: Descripción | F6: Observaciones del Control
B7: Mantenimiento del Control | D7: Cuando en el análisis de los requerimientos en los diferentes componentes del MECI se cuente con aspectos evaluados en nivel 3 (presente) y 3 (funcionando). | F7: Se encuentra presente y funciona correctamente, por lo tanto se requiere acciones o actividades dirigidas a su mantenimiento dentro del marco de las lineas de defensa. | I7: 100%
B8: Oportunidad de Mejora | D8: Cuando en el análisis de los requerimientos en los diferentes componentes del MECI se cuente con aspectos evaluados en nivel 2 (presente) y 3 (funcionando). | F8: Se encuentra presente y funcionando, pero requiere mejoras frente a su diseño, ya que opera de manera efectiva | H8: Se encuentra presente y funcionando, pero requiere mejoras frente a su diseño, ya que opera de manera efectiva | I8: 75%
B9: Deficiencia de Control (Diseño o Ejecución) | D9: Cuando en el análisis de los requerimientos en los diferentes componentes del MECI se cuente con aspectos evaluados en nivel 2 (presente) y 2 (funcionando); 3 (presente) y 1 (funcionando); 3 (presente) y 2 (funcionando);2 (presente) y 1 (funcionando) | F9: Se encuentra presente y funcionando, pero requiere acciones dirigidas a fortalecer o mejorar su diseño y/o ejecucion. | I9: 50%
B10: Deficiencia de Control Mayor (Diseño y Ejecución) | D10: Cuando en el análisis de los requerimientos en los diferentes componentes del MECI se cuente con aspectos evaluados en nivel 1 (presente) y 1 (funcionando); ;1 (presente) y 2 (funcionando); 1(presente) y 3 (funcionando). | F10: No se encuentra presente por lo tanto no esta funcionando, lo que hace que se requieran acciones dirigidas a fortalecer su diseño y puesta en marcha | I10: 25%
B11: Registro de deficiencias
B13: RESULTADOS | C13: FUENTE DEL ANALISIS | G13: CONTROL PRESENTE | H13: CONTROL FUNCIONANDO | I13: OBSERVACIONES DEL CONTROL | J13: NIVEL DE CUMPLIMIENTO-ASPECTOS PARTICULARES POR COMPONENTE | K13: NIVEL DE CUMPLIMIENTO- DEL COMPONENTE | L13: RECOMENDACIONES DESDE LA MIRADA DE EVALUACION INDEPENDIENTE | M13: PLANES DE MEJORAMIENTO (Donde aplique)
C14: Id. Requerimiento | D14: Componente | E14: Descripción del Lineamiento | F14: Pregunta Indicativa | M14: Accion(es) de Mejora | N14: Fecha de Inicio | O14: Fecha Terminacion | P14: Responsable | Q14: Seguimiento | R14: % de avance
B15: 1 | C15: 4.1 | D15: =IFERROR(VLOOKUP(C15,Hoja1!$A$2:$H$82,4,0),"") -> Ambiente de Control | E15: =+IFERROR(VLOOKUP(C15,Hoja1!$A$1:$J$82,10,0),"") -> Compromiso con la competencia de todo el personal, por lo que la gestión del talento humano tiene un carácter estratégico con el despliegue de actividades clave para todo el ciclo de vida del servidor público –ingreso, permanencia y retiro. | F15: =+IFERROR(VLOOKUP(C15,Hoja1!$A$1:$I$82,3,0),"") -> Evaluación de la Planeación Estratégica del Talento Humano | G15: =+IFERROR(VLOOKUP(C15,Hoja1!$A$1:$K$82,11,0),"") -> 3 | H15: =+IFERROR(VLOOKUP(C15,Hoja1!$A$1:$L$82,12,0),"") -> 1 | I15: =+IF(OR(AND(G15=1,H15=1),AND(G15=1,H15=2),AND(G15=1,H15=3),G15="",H15=""),"No se encuentra presente por lo tanto no esta funcionando, lo que hace que se requieran acciones dirigidas a fortalecer su diseño y puesta en marcha",IF(OR(AND(G15=2,H15=2),AND(G15=3,H15=1),AND(G15=3,H15=2),AND(G15=2,H15=1)),"Se encuentra presente y funcionando, pero requiere acciones dirigidas a fortalecer o mejorar su diseño y/o ejecucion.",IF(AND(G15=2,H15=3),"Se encuentra presente y funcionando, pero requiere mejoras frente a su diseño, ya que opera de manera efectiva","Se encuentra presente y funciona correctamente, por lo tanto se requiere acciones o actividades dirigidas a su mantenimiento dentro del marco de las lineas de defensa."))) -> Se encuentra presente y funcionando, pero requiere acciones dirigidas a fortalecer o mejorar su diseño y/o ejecucion. | J15: =+VLOOKUP(C15,Hoja1!$A$1:$M$82,13,0) -> 50% | K15: =+AVERAGE(J15:J15) -> 50% | L15: Evaluar en la Auditoria a realizarse en el segundo semestre de la vigencia por parte de la Asesoría de Control Interno la implementación del Plan estrategico deTalento Humano.

Sheet Conclusiones
E3: Nombre de la Entidad: | F3: INSTITUTO DISTRITAL DE TURISMO
E5: Periodo Evaluado: | F5: Seguimiento - 2do semestre del 2024
I7: Estado del sistema de Control Interno de la entidad | M7: =+AVERAGE(G25,G27,G29,G31,G33) -> 99%
C17: Conclusión general sobre la evaluación del Sistema de Control Interno
C19: ¿Están todos los componentes operando juntos y de manera integrada? (Si / en proceso / No) (Justifique su respuesta): | E19: Si | F19: Se observa que todos los componentes del MECI, se encuentra operando de forma integrada, teniendo en cuenta que los porcentajes arrojados para los cinco componentes supera el 92%, lo anterior se puede explicar a la definición de lineamientos debidamente estructurados en la gestión del riesgo, la adecuada comunicación existente entre cada uno de los procesos y al elevar y presentar todos los resultados de auditorías, monitoreo y seguimientos realizados por parte de la Asesoría de Control Interno al Comité Institucional de Control Interno. Dentro de los comités se han expuesto los hallazgos, observaciones y recomendaciones a cada uno de las actividades identificadas dentro del Plan Anual de Auditorías, para las cuales se han tomado decisiones por parte de los miembros del comité, que han fortalecido el Sistema de Control Interno del IDT, y han contribuido en el ciclo de la mejora continua.
C20: ¿Es efectivo el sistema de control interno para los objetivos evaluados? (Si/No) (Justifique su respuesta): | E20: Si | F20: Se evidencia la efectividad del Sistema de Control Interno, lo anterior se soporta con la gestión realizada dentro de la implementación en la gestión de riesgos, el fortalecimiento de las líneas de defensa a través del mapa de aseguramiento, la incorporación de la mayoría de los temas referentes al sistema de control interno dentro del marco del Comité Institucional de Coordinación de Control Interno, los controles implementados dentro los actividades de cada uno de los procesos, el respaldo y confianza que han generado la documentación de los procedimientos o documentos soporte de actividades, a las acciones de mejoramiento que se han ejecutado para la gestión y en gran medida el interés que se ha evidenciado por parte de la Alta Dirección del IDT, para el mejoramiento del Sistema de Control Interno en la entidad.
C21: La entidad cuenta dentro de su Sistema de Control Interno, con una institucionalidad (Líneas de defensa) que le permita la toma de decisiones frente al control (Si/No) (Justifique su respuesta): | E21: Si | F21: Se observa la identificación de las líneas de defensa y su implementación en la secuencia de actividades desarrolladas en los procesos de auditoría, desde la formalización del Plan Anual de Auditoría, los respectivos seguimientos a las actividades identificadas en esta planificación y así como en el paso a paso de cada actividad, los cuales surten todas las etapas de dar a conocer el seguimiento, llevar a cabo el trabajo de campo de evaluación, dar a conocer los resultados a los líderes de procesos, quienes han generado los respectivos planes de mejoramiento para ser evaluados en su eficacia y efectividad por la Asesoría de Control Interno. De igual forma, se evidencia el fortalecimiento de las líneas de defensa al llevar a cabo el seguimiento del mapa de aseguramiento el cual tiene por objeto, establecer una adecuada coordinación de los diferentes actores internos y externos relacionados con la función de aseguramiento en el IDT, con el fin de minimizar la duplicidad de esfuerzos y dar una cobertura adecuada a las diferentes tareas relacionadas con el riesgo, control y auditoría.
C23: Componente | E23: ¿El componente está presente y funcionando? | G23: Nivel de Cumplimiento componente | I23: Estado actual: Explicación de las Debilidades y/o Fortalezas | K23: Nivel de Cumplimiento componente presentado en el informe anterior | M23: Estado del componente presentado en el informe anterior | O23: Avance final del componente
C25: Ambiente de control | E25: =+IF(Hoja1!$N$2>=0.5,"Si","No") -> Si | G25: =+Hoja1!N2 -> 96% | I25: DEBILIDADES • No se evidencia la evaluación a la implementación del Plan Estratégico de Talento Humano en el IDT y por ende la presentación de los resultados en las sesiones del Comité Institucional de Control Interno. • No se presentan los resultados de la evaluación del Plan Institucional de Capacitación PIC dentro de las sesiones del Comité Institucional de Coordinacón de Control Interno. (GTH -ACI) FORTALEZAS • Se retomó la evaluación de programas y actividades relacionadas con la ética e integridad en la entidad. • Se realizaron jornadas del fomento del control y enfoque hacia la prevención, por parte de la Asesoría de Control Interno que han permitido el fortalecimiento del Sistema de Control Interno. • Aumento el porcentaje de cumplimiento en el estado de Control Interno, teniendo en cuenta que se han cumplido con las acciones tendientes a mejorar la gestión y a las fortalezas descritas en cada una de los componentes del MECI. • Se realizan seguimientos completos y oportunos a las actividades contempladas dentro del Plan Anual de Auditorías y referentes a todos los componentes del MECI. • Se observa un fortalecimiento en la Gestión de Riesgos, teniendo en cuenta las acciones adelantadas por la segunda Línea de Defensa (Direccionamiento Estratégico) y los procesos del IDT, asociadas a la actualización del Aplicativo de Riesgos, la nueva Guía de Riesgos definida por el DAFP. • El IDT, cuenta con canales de información interna y externa que permiten generar confianza al utilizarlos. • El interés por parte de la Dirección del IDT, al tener en cuenta cada uno de los ejercicios de evaluación, seguimientos y monitoreos, llevados a cabo por la Asesoría de Control Interno, para la posterior evaluación del impacto y empoderamiento de la mejora continua. | K25: 94% | M25: DEBILIDADES * • No se evidencia la evaluación a la implementación del Plan Estratégico de Talento Humano en el IDT y por ende la presentación de los resultados en las sesiones del Comité Institucional de Control Interno. * No se presentan los resultados de la evaluación del Plan Institucional de Capacitación PIC dentro de las sesiones del Comité Institucional de Coordinacón de Control Interno. (GTH -ACI) *Realizar un análisis detallado, para determinar las razones por las cuales no se dio el cumplimiento físico a las siguientes metas para la vigencia 2023, y de acuerdo a lo anterior generar las acciones pertinentes para evitar incumplimientos en la finalización del plan de desarrollo. PROYECTO 7908 “ADMINISTRACIÓN DEL FONDO DE DESARROLLO TURISTICO DE BOGOTÁ – FONDETUR”. • Meta 4. Otorgar 1.050 estímulos o incentivos a los actores del sector turismo para mejorar su competitividad y promoción en el sector turístico. • Meta 6. Apoyar el desarrollo de 4 proyectos de innovación. FORTALEZAS: • Se retomó la evaluación de programas y actividades relacionadas con la ética e integridad en la entidad, la cual fue evaluada por parte de la Asesoría de Control Interno. • Se observa un fortalecimiento en la Gestión de Riesgos teniendo en cuenta las acciones adelantadas por la segunda línea de Defensa (Direccionamiento Estratégico) y los procesos del IDT, asociadas a la actualización del aplicativo de riesgos la nueva Guía de Riesgos definida por el DAFP. • Se reformulo el mapa de aseguramiento del Instituto Distrital de Turismo verificando las actividades de aseguramiento y complementarias, indicadas y que se ejecuten conforme a los tiempos establecidos. • Se realizan seguimientos completos y oportunos a las actividades contempladas dentro del Plan Anual de Auditorías y referentes al Componente de Ambiente de Control • La gran disposición e interés por parte de la Dirección del IDT, al tener en cuenta cada uno de los ejercicios de evaluación, seguimientos y monitores llevados a cabo por la Asesoría de Control Interno, para la posterior evaluación del impacto y empoderamiento de la mejora continua. • Se realizaron jornadas del fomento del control y enfoque hacia la prevención por parte de la Asesoría de Control Interno que han permitido fortalecer el Sistema de Control Interno • Se observa un alto porcentaje de cumplimiento de los compromisos generados dentro de las sesiones del Comité Institucional de Coordinación de Control Interno. | O25: =G25-K25 -> 2%
C27: Evaluación de riesgos | E27: =+IF(Hoja1!$N$26>=0.5,"Si","No") -> Si | G27: =+Hoja1!N26 -> 100% | I27: FORTALEZAS • Se realizó la revisión y seguimiento al mapa de riesgos del proceso conforme a la Guía para Administración del Riesgo. • Se registró la información correspondiente en el aplicativo y se realiza el seguimiento cuatrimestral por parte de la Subdirección de Planeación . • Se evidencia el seguimiento a la ejecución de controles. • Se registraron en el aplicativo de riesgos, las actualizaciones que permiten dar cumplimiento a lo establecido en la Guía. • El Comité Institucional de Coordinación de Control Interno, involucra activamente dentro de sus sesiones, los lineamientos relacionados con el componente de Evaluación de riesgos. • Se realizan seguimientos completos y oportunos a las actividades contempladas dentro del Plan Anual de Auditorías y referentes al componente de evaluación de riesgos. • Se realizaron jornadas del fomento del control y enfoque hacia la prevención, por parte de la Asesoría de Control Interno que han permitido el fortalecimiento del Sistema de Control Interno. • Aumento el porcentaje de cumplimiento en el estado de Control Interno, teniendo en cuenta que se han cumplido con las acciones tendientes a mejorar la gestión y a las fortalezas descritas en cada una de los componentes del MECI. • Se realizan seguimientos completos y oportunos a las actividades contempladas dentro del Plan Anual de Auditorías y referentes a todos los componentes del MECI. • Se observa un fortalecimiento en la Gestión de Riesgos, teniendo en cuenta las acciones adelantadas por la segunda Línea de Defensa (Direccionamiento Estratégico) y los procesos del IDT, asociadas a la actualización del Aplicativo de Riesgos, la nueva Guía de Riesgos definida por el DAFP. • El interés por parte de la Dirección del IDT, al tener en cuenta cada uno de los ejercicios de evaluación, seguimientos y monitoreos, llevados a cabo por la Asesoría de Control Interno, para la posterior evaluación del impacto y empoderamiento de la mejora continua. | K27: 97% | M27: DEBILIDADES *Realizar un análisis detallado, para determinar las razones por las cuales no se dio el cumplimiento físico a las siguientes metas para la vigencia 2023, y de acuerdo a lo anterior generar las acciones pertinentes para evitar incumplimientos en la finalización del plan de desarrollo. PROYECTO 7908 “ADMINISTRACIÓN DEL FONDO DE DESARROLLO TURISTICO DE BOGOTÁ – FONDETUR”. • Meta 4. Otorgar 1.050 estímulos o incentivos a los actores del sector turismo para mejorar su competitividad y promoción en el sector turístico. • Meta 6. Apoyar el desarrollo de 4 proyectos de innovación. FORTALEZAS • Se realizó la revisión y seguimiento al mapa de riesgos del proceso conforme a la Guía para Administración del Riesgo. • Se registró la información correspondiente en el aplicativo y se realiza el seguimiento cuatrimestral por parte de la Subdirección de Planeación . • Se evidencia el seguimiento a la ejecución de controles. • Se registraron en el aplicativo de riesgos, las actualizaciones que permiten dar cumplimiento a lo establecido en la Guía. • El Comité Institucional de Coordinación de Control Interno, involucra activamente dentro de sus sesiones, los lineamientos relacionados con el componente de Evaluación de riesgos. • La gran disposición e interés por parte de la Dirección del IDT, al tener en cuenta cada uno de los ejercicios de evaluación a la gestión de riesgos llevados a cabo por la Asesoría de Control Interno, para la posterior evaluación del impacto y empoderamiento de la mejora continua. • Se realizan seguimientos completos y oportunos a las actividades contempladas dentro del Plan Anual de Auditorías y referentes al componente de evaluación de riesgos. | O27: =G27-K27 -> 3%
C29: Actividades de control | E29: =+IF(Hoja1!$N$43>=0.5,"Si","No") -> Si | G29: =+Hoja1!N43 -> 100% | I29: FORTALEZAS • Se elaboró la reformulación al mapa de aseguramiento del Instituto Distrital de Turismo verificando las actividades de aseguramiento y complementarias. • Se realizaron jornadas del fomento del control y enfoque hacia la prevención que fortalecieron el Sistema de Control Interno en la Entidad. • El Comité Institucional de Coordinación de Control Interno, involucra activamente dentro de sus sesiones, los lineamientos relacionados con el componente de Actividades de Control • Se realizan seguimientos completos y oportunos a las actividades contempladas dentro del Plan Anual de Auditorías. • El interés por parte de la Dirección del IDT, al tener en cuenta cada uno de los ejercicios de evaluación, seguimientos y monitoreos, llevados a cabo por la Asesoría de Control Interno, para la posterior evaluación del impacto y empoderamiento de la mejora continua. • Se realizan seguimientos completos y oportunos a las actividades contempladas dentro del Plan Anual de Auditorías y referentes al componente de actividades de control. • Se observa un fortalecimiento en la Gestión de Riesgos, teniendo en cuenta las acciones adelantadas por la segunda Línea de Defensa (Direccionamiento Estratégico) y los procesos del IDT, asociadas a la actualización del Aplicativo de Riesgos, la nueva Guía de Riesgos definida por el DAFP. | K29: 92% | M29: DEBILIDADES * De acuerdo a la auditoría al Modelo de Seguridad y Privacidad de la Información MSPI. Llevada a cabo por la Asesoría de Control Interno. Se observa que éste presenta un porcentaje de implementación del 25% FORTALEZAS • Se elaboró la reformulación al mapa de aseguramiento del Instituto Distrital de Turismo verificando las actividades de aseguramiento y complementarias, • Se realizaron jornadas del fomento del control y enfoque hacia la prevención que fortalecieron el Sistema de Control Interno en la Entidad • El Comité Institucional de Coordinación de Control Interno, involucra activamente dentro de sus sesiones, los lineamientos relacionados con el componente de Actividades de Control • La gran disposición e interés por parte de la Dirección del IDT, al tener en cuenta cada uno de los ejercicios de evaluación, seguimiento y monitoreo llevados a cabo por la Asesoría de Control Interno, para la posterior evaluación del impacto y empoderamiento de la mejora continua. • Se realizan seguimientos completos y oportunos a las actividades contempladas dentro del Plan Anual de Auditorías y referentes al componente de actividades de control. | O29: =G29-K29 -> 8%
C31: Información y comunicación | E31: =+IF(Hoja1!$N$55>=0.5,"Si","No") -> Si | G31: =+Hoja1!N55 -> 100% | I31: DEBILIDADES FORTALEZAS • Se realizaron jornadas del fomento del control y enfoque hacia la prevención que fortalecieron el Sistema de Control Interno en la Entidad. • El Comité Institucional de Coordinación de Control Interno, involucra activamente dentro de sus sesiones, los lineamientos relacionados con el componente de Actividades de Control • El interés por parte de la Dirección del IDT, al tener en cuenta cada uno de los ejercicios de evaluación, seguimientos y monitoreos, llevados a cabo por la Asesoría de Control Interno, para la posterior evaluación del impacto y empoderamiento de la mejora continua. • Se realizan seguimientos completos y oportunos a las actividades contempladas dentro del Plan Anual de Auditorías y referentes al componente de actividades de control. • Se observa un fortalecimiento en la Gestión de Riesgos, teniendo en cuenta las acciones adelantadas por la segunda Línea de Defensa (Direccionamiento Estratégico) y los procesos del IDT, asociadas a la actualización del Aplicativo de Riesgos, la nueva Guía de Riesgos definida por el DAFP. | K31: 93% | M31: DEBILIDADES • De acuerdo a la auditoría al Modelo de Seguridad y Privacidad de la Información MSPI, Llevada a cabo por la Asesoría de Control Interno, se observa que éste presenta un porcentaje de implementación del 25% * LAS TRD no han sido convalidadas por el archivo Central * De acuerdo al ultimo informe de seguimeitno a las PQRS se identificói la siguiente observación : es recomendable que el área de Atención al Ciudadano realice una correcta clasificación de las PQRSD en el AC-F02 Cuadro de Control y Seguimiento a PQRS. toda vez que se evidenció su no clasificación o tipificación, por lo cual se pueden originar respuestas fuera del término, como se presentó en este periodo en seguimiento. FORTALEZAS • La gran disposición e interés por parte de la Dirección del IDT, al tener en cuenta cada uno de los ejercicios de evaluación llevados a cabo por la Asesoría de Control Interno, para la posterior evaluación del impacto y empoderamiento de la mejora continua. • Se realizan seguimientos completos y oportunos a las actividades contempladas dentro del Plan Anual de Auditorías y referentes al componente de información y comunicación. | O31: =G31-K31 -> 7%
C33: Monitoreo | E33: =+IF(Hoja1!$N$69>=0.5,"Si","No") -> Si | G33: =+Hoja1!N69 -> 100% | I33: FORTALEZAS • El Comité Institucional de Coordinación de Control Interno, involucra activamente dentro de sus sesiones los lineamientos relacionados con el monitoreo y supervisión de la gestión. • El interés por parte de la Dirección del IDT, al tener en cuenta cada uno de los ejercicios de evaluación, seguimientos y monitoreos, llevados a cabo por la Asesoría de Control Interno, para la posterior evaluación del impacto y empoderamiento de la mejora continua. • Se realizan seguimientos completos y oportunos a las actividades para verificar el cumplimiento y efectividad de las acciones contenidas dentro de los planes de mejoramiento tanto de procesos como institucionales. • Se reformuló el Mapa de Aseguramiento del Instituto Distrital de Turismo, verificando las actividades de aseguramiento y complementarias, indicadas, y que se ejecuten conforme a los tiempos establecidos. • Aumento el porcentaje de cumplimiento en el estado de Control Interno, teniendo en cuenta que se han cumplido con las acciones tendientes a mejorar la gestión y a las fortalezas descritas en cada una de los componentes del MECI. | K33: 100% | M33: FORTALEZAS • El Comité Institucional de Coordinación de Control Interno, involucra activamente dentro de sus sesiones los lineamientos relacionados con el monitoreo y supervisión de la gestión. • Disposición e interés por parte de la dirección del IDT, al tener en cuenta cada uno de los ejercicios de evaluación a la gestión de riesgos llevados a cabo por la Asesoría de Control Interno, para la posterior evaluación del impacto. • Se realizan seguimientos completos y oportunos a las actividades para verificar el cumplimiento y efectividad de las acciones contenidas dentro de los planes de mejoramiento tanto de procesos como institucionales. • Se reformuló el Mapa de Aseguramiento del Instituto Distrital de Turismo, verificando las actividades de aseguramiento y complementarias, indicadas, y que se ejecuten conforme a los tiempos establecidos. | O33: =G33-K33 -> 0%

Sheet Hoja1 (hidden)
A1: ID | B1: Lineamiento | C1: Pregunta | D1: Componente | E1: Dimensión o política del mipg asociada al requerimiento | F1: Evaluación | G1: Puntaje | H1: Orden | I1: Descripción del lineamiento | J1: Lineamiento | K1: Presente | L1: Funcionando | M1: Nivel de cumplimiento - aspectos particulares por componente
A2: 1.1 | B2: =+LEFT(A2,1) -> 1 | C2: =+MID(VLOOKUP(A2,'Ambiente de Control'!$B$21:$C$222,2,0),4,LEN(VLOOKUP(A2,'Ambiente de Control'!$B$21:$C$222,2,0))-4) -> Aplicación del Código de Integridad. (incluye análisis de desviaciones, convivencia laboral, temas disciplinarios internos, quejas o denuncias sobres los servidores de la entidad, u otros temas relacionados) | D2: Ambiente de Control | E2: =+VLOOKUP(A2,'Ambiente de Control'!$B$21:$D$222,3,0) -> Dimensión Talento Humano Política Integridad | F2: =+VLOOKUP(A2,'Ambiente de Control'!$B$21:$K$222,10,0) -> Mantenimiento del control | G2: =+VLOOKUP(A2,'Ambiente de Control'!$B$21:$O$39,13) -> 60.04587 | H2: =+_xlfn.RANK.EQ(G2,$G$2:$G$82,1) -> 5 | I2: =+IF(F2=$F$2,$P$4,IF(F2=$F$3,$P$2,$P$3)) -> Cuando en el análisis de los requerimientos en los diferenes componentes del MECI se cuente con aspectos evaluados en nivel 1 (presente) y 1 (funcionando); 2 (presente) y 1 (funcionando). | J2: La entidad demuestra el compromiso con la integridad (valores) y principios del servicio público | K2: =+IF(ISBLANK(VLOOKUP(A2,'Ambiente de Control'!$B$24:$F$222,5,0)),"",VLOOKUP(A2,'Ambiente de Control'!$B$24:$F$222,5,0)) -> 3 | L2: =+IF(ISBLANK(VLOOKUP(A2,'Ambiente de Control'!$B$24:$K$222,9,0)),"",VLOOKUP(A2,'Ambiente de Control'!$B$24:$K$222,9,0)) -> 3 | M2: =+IF(OR(AND(K2=1,L2=1),AND(ISBLANK(K2),ISBLANK(L2)),K2="",L2=""),0,IF(OR(AND(K2=1,L2=2),AND(K2=1,L2=3)),0.25,IF(OR(AND(K2=2,L2=2),AND(K2=3,L2=1),AND(K2=3,L2=2),AND(K2=2,L2=1)),0.5,IF(AND(K2=2,L2=3),0.75,1)))) -> 1 | N2: =+AVERAGEIF($D$2:$D$82,D2,$M$2:$M$82) -> 0.9583333333 | O2: Oportunidad de Mejora | P2: Cuando en el análisis de los requerimientos en los diferenes componentes del MECI se cuente con aspectos evaluados en nivel 2 (presente) y 3 (funcionando).
A3: 1.2 | B3: =+LEFT(A3,1) -> 1 | C3: =+MID(VLOOKUP(A3,'Ambiente de Control'!$B$21:$C$222,2,0),4,LEN(VLOOKUP(A3,'Ambiente de Control'!$B$21:$C$222,2,0))-4) -> Mecanismos para el manejo de conflictos de interés. | D3: Ambiente de Control | E3: =+VLOOKUP(A3,'Ambiente de Control'!$B$21:$D$222,3,0) -> Dimensión Talento Humano Política Integridad | F3: =+VLOOKUP(A3,'Ambiente de Control'!$B$21:$K$222,10,0) -> Mantenimiento del control | G3: =+VLOOKUP(A3,'Ambiente de Control'!$B$21:$O$222,13,0) -> 60.05569 | H3: =+_xlfn.RANK.EQ(G3,$G$2:$G$82,1) -> 6 | I3: Cuando en el análisis de los requerimientos en los diferenes componentes del MECI se cuente con aspectos evaluados en nivel 1 (presente) y 1 (funcionando); 2 (presente) y 1 (funcionando). | J3: La entidad demuestra el compromiso con la integridad (valores) y principios del servicio público | K3: =+IF(ISBLANK(VLOOKUP(A3,'Ambiente de Control'!$B$24:$F$222,5,0)),"",VLOOKUP(A3,'Ambiente de Control'!$B$24:$F$222,5,0)) -> 3 | L3: =+IF(ISBLANK(VLOOKUP(A3,'Ambiente de Control'!$B$24:$K$222,9,0)),"",VLOOKUP(A3,'Ambiente de Control'!$B$24:$K$222,9,0)) -> 3 | M3: =+IF(OR(AND(K3=1,L3=1),AND(ISBLANK(K3),ISBLANK(L3)),K3="",L3=""),0,IF(OR(AND(K3=1,L3=2),AND(K3=1,L3=3)),0.25,IF(OR(AND(K3=2,L3=2),AND(K3=3,L3=1),AND(K3=3,L3=2),AND(K3=2,L3=1)),0.5,IF(AND(K3=2,L3=3),0.75,1)))) -> 1 | N3: =+AVERAGEIF($D$2:$D$82,D3,$M$2:$M$82) -> 0.9583333333 | O3: Deficiencia de Control (Diseño o Ejecución) | P3: Cuando en el análisis de los requerimientos en los diferenes componentes del MECI se cuente con aspectos evaluados en nivel 2 (presente) y 2 (funcionando); 3 (presente) y 1 (funcionando); 3 (presente) y 2 (funcionando). | R3: Deficiencia de control mayor
A4: 1.3 | B4: 1 | C4: =+MID(VLOOKUP(A4,'Ambiente de Control'!$B$21:$C$222,2,0),4,LEN(VLOOKUP(A4,'Ambiente de Control'!$B$21:$C$222,2,0))-4) -> Mecanismos frente a la detección y prevención del uso inadecuado de información privilegiada u otras situaciones que puedan implicar riesgos para la entidad | D4: Ambiente de Control | E4: =+VLOOKUP(A4,'Ambiente de Control'!$B$21:$D$222,3,0) -> Dimensión Información y Comunicación Política Transparencia y Acceso a la Información Pública Política Gestión Documental | F4: =+VLOOKUP(A4,'Ambiente de Control'!$B$21:$K$222,10,0) -> Mantenimiento del control | G4: =+VLOOKUP(A4,'Ambiente de Control'!$B$21:$O$222,13,0) -> 60.066896 | H4: 7 | I4: Cuando en el análisis de los requerimientos en los diferenes componentes del MECI se cuente con aspectos evaluados en nivel 1 (presente) y 1 (funcionando); 2 (presente) y 1 (funcionando). | J4: La entidad demuestra el compromiso con la integridad (valores) y principios del servicio público | K4: =+IF(ISBLANK(VLOOKUP(A4,'Ambiente de Control'!$B$24:$F$222,5,0)),"",VLOOKUP(A4,'Ambiente de Control'!$B$24:$F$222,5,0)) -> 3 | L4: =+IF(ISBLANK(VLOOKUP(A4,'Ambiente de Control'!$B$24:$K$222,9,0)),"",VLOOKUP(A4,'Ambiente de Control'!$B$24:$K$222,9,0)) -> 3 | M4: =+IF(OR(AND(K4=1,L4=1),AND(ISBLANK(K4),ISBLANK(L4)),K4="",L4=""),0,IF(OR(AND(K4=1,L4=2),AND(K4=1,L4=3)),0.25,IF(OR(AND(K4=2,L4=2),AND(K4=3,L4=1),AND(K4=3,L4=2),AND(K4=2,L4=1)),0.5,IF(AND(K4=2,L4=3),0.75,1)))) -> 1 | N4: 0.9583333333 | O4: Deficiencia de Control Mayor (Diseño y Ejecución) | P4: Cuando en el análisis de los requerimientos en los diferenes componentes del MECI se cuente con aspectos evaluados en nivel 1 (presente) y 1 (funcionando); 2 (presente) y 1 (funcionando).
A5: 1.4 | B5: 1 | C5: =+MID(VLOOKUP(A5,'Ambiente de Control'!$B$21:$C$222,2,0),4,LEN(VLOOKUP(A5,'Ambiente de Control'!$B$21:$C$222,2,0))-4) -> La evaluación de las acciones transversales de integridad, mediante el monitoreo permanente de los riesgos de corrupción. | D5: Ambiente de Control | E5: =+VLOOKUP(A5,'Ambiente de Control'!$B$21:$D$222,3,0) -> Dimension Talento Humano Politica de Integridad | F5: =+VLOOKUP(A5,'Ambiente de Control'!$B$21:$K$222,10,0) -> Mantenimiento del control | G5: =+VLOOKUP(A5,'Ambiente de Control'!$B$21:$O$222,13,0) -> 60.06691 | H5: 8 | I5: Cuando en el análisis de los requerimientos en los diferenes componentes del MECI se cuente con aspectos evaluados en nivel 1 (presente) y 1 (funcionando); 2 (presente) y 1 (funcionando). | J5: La entidad demuestra el compromiso con la integridad (valores) y principios del servicio público | K5: =+IF(ISBLANK(VLOOKUP(A5,'Ambiente de Control'!$B$24:$F$222,5,0)),"",VLOOKUP(A5,'Ambiente de Control'!$B$24:$F$222,5,0)) -> 3 | L5: =+IF(ISBLANK(VLOOKUP(A5,'Ambiente de Control'!$B$24:$K$222,9,0)),"",VLOOKUP(A5,'Ambiente de Control'!$B$24:$K$222,9,0)) -> 3 | M5: 1 | N5: 0.9583333333
A6: 1.5 | B6: 1 | C6: =+MID(VLOOKUP(A6,'Ambiente de Control'!$B$21:$C$222,2,0),4,LEN(VLOOKUP(A6,'Ambiente de Control'!$B$21:$C$222,2,0))-4) -> Análisis sobre viabilidad para el establecimiento de una línea de denuncia interna sobre situaciones irregulares o posibles incumplimientos al código de integridad. NOTA: Si la entidad ya cuenta con esta línea en funcionamiento, establecezca si ha aportado para la mejora de los mapas de riesgos o bien en otros ámbitos organizacionales. | D6: Ambiente de Control | E6: =+VLOOKUP(A6,'Ambiente de Control'!$B$21:$D$222,3,0) -> Dimensión Direccionamiento Estratégico y Planeación Plan Anticorrupción y de Atención al Ciudadano | F6: =+VLOOKUP(A6,'Ambiente de Control'!$B$21:$K$222,10,0) -> Mantenimiento del control | G6: =+VLOOKUP(A6,'Ambiente de Control'!$B$21:$O$222,13,0) -> 60.073569 | H6: 9 | I6: Cuando en el análisis de los requerimientos en los diferenes componentes del MECI se cuente con aspectos evaluados en nivel 1 (presente) y 1 (funcionando); 2 (presente) y 1 (funcionando). | J6: La entidad demuestra el compromiso con la integridad (valores) y principios del servicio público | K6: =+IF(ISBLANK(VLOOKUP(A6,'Ambiente de Control'!$B$24:$F$222,5,0)),"",VLOOKUP(A6,'Ambiente de Control'!$B$24:$F$222,5,0)) -> 3 | L6: =+IF(ISBLANK(VLOOKUP(A6,'Ambiente de Control'!$B$24:$K$222,9,0)),"",VLOOKUP(A6,'Ambiente de Control'!$B$24:$K$222,9,0)) -> 3 | M6: 1 | N6: 0.9583333333
A7: 2.1 | B7: 2 | C7: =+MID(VLOOKUP(A7,'Ambiente de Control'!$B$21:$C$222,2,0),4,LEN(VLOOKUP(A7,'Ambiente de Control'!$B$21:$C$222,2,0))-4) -> Creación o actualización del Comité Institucional de Coordinación de Control Interno (incluye ajustes en periodicidad para reunión, articulación con el Comité Institucional de Gestión y Desempeño) | D7: Ambiente de Control | E7: =+VLOOKUP(A7,'Ambiente de Control'!$B$21:$D$222,3,0) -> Dimension Control Interno Politica de Control Interno | F7: =+VLOOKUP(A7,'Ambiente de Control'!$B$21:$K$222,10,0) -> Mantenimiento del control | G7: =+VLOOKUP(A7,'Ambiente de Control'!$B$21:$O$222,13,0) -> 60.0889653 | H7: 10 | I7: Cuando en el análisis de los requerimientos en los diferenes componentes del MECI se cuente con aspectos evaluados en nivel 1 (presente) y 1 (funcionando); 2 (presente) y 1 (funcionando). | J7: Aplicación de mecanismos para ejercer una adecuada supervisión del Sistema de Control Interno | K7: =+IF(ISBLANK(VLOOKUP(A7,'Ambiente de Control'!$B$24:$F$222,5,0)),"",VLOOKUP(A7,'Ambiente de Control'!$B$24:$F$222,5,0)) -> 3 | L7: =+IF(ISBLANK(VLOOKUP(A7,'Ambiente de Control'!$B$24:$K$222,9,0)),"",VLOOKUP(A7,'Ambiente de Control'!$B$24:$K$222,9,0)) -> 3 | M7: 1 | N7: 0.9583333333
A8: 2.2 | B8: 2 | C8: =+MID(VLOOKUP(A8,'Ambiente de Control'!$B$21:$C$222,2,0),4,LEN(VLOOKUP(A8,'Ambiente de Control'!$B$21:$C$222,2,0))-4) -> Definición y documentación del Esquema de Líneas de Defens | D8: Ambiente de Control | E8: =+VLOOKUP(A8,'Ambiente de Control'!$B$21:$D$222,3,0) -> Dimension Control Interno Politica de Control Interno Lineas de defensa | F8: =+VLOOKUP(A8,'Ambiente de Control'!$B$21:$K$222,10,0) -> Mantenimiento del control | G8: =+VLOOKUP(A8,'Ambiente de Control'!$B$21:$O$222,13,0) -> 60.0989653 | H8: 11 | I8: Cuando en el análisis de los requerimientos en los diferenes componentes del MECI se cuente con aspectos evaluados en nivel 1 (presente) y 1 (funcionando); 2 (presente) y 1 (funcionando). | J8: Aplicación de mecanismos para ejercer una adecuada supervisión del Sistema de Control Interno | K8: =+IF(ISBLANK(VLOOKUP(A8,'Ambiente de Control'!$B$24:$F$222,5,0)),"",VLOOKUP(A8,'Ambiente de Control'!$B$24:$F$222,5,0)) -> 3 | L8: =+IF(ISBLANK(VLOOKUP(A8,'Ambiente de Control'!$B$24:$K$222,9,0)),"",VLOOKUP(A8,'Ambiente de Control'!$B$24:$K$222,9,0)) -> 3 | M8: 1 | N8: 0.9583333333
A9: 2.3 | B9: 2 | C9: =+MID(VLOOKUP(A9,'Ambiente de Control'!$B$21:$C$222,2,0),4,LEN(VLOOKUP(A9,'Ambiente de Control'!$B$21:$C$222,2,0))-4) -> Definición de líneas de reporte en temas clave para la toma de decisiones, atendiendo el Esquema de Líneas de Defens | D9: Ambiente de Control | E9: =+VLOOKUP(A9,'Ambiente de Control'!$B$21:$D$222,3,0) -> Dimension Control Interno Politica de Control Interno Linea de Defensa Dimension de Informaciòn y Comunicaciòn | F9: =+VLOOKUP(A9,'Ambiente de Control'!$B$21:$K$222,10,0) -> Mantenimiento del control | G9: =+VLOOKUP(A9,'Ambiente de Control'!$B$21:$O$222,13,0) -> 60.15698 | H9: 12 | I9: Cuando en el análisis de los requerimientos en los diferenes componentes del MECI se cuente con aspectos evaluados en nivel 1 (presente) y 1 (funcionando); 2 (presente) y 1 (funcionando). | J9: Aplicación de mecanismos para ejercer una adecuada supervisión del Sistema de Control Interno | K9: =+IF(ISBLANK(VLOOKUP(A9,'Ambiente de Control'!$B$24:$F$222,5,0)),"",VLOOKUP(A9,'Ambiente de Control'!$B$24:$F$222,5,0)) -> 3 | L9: =+IF(ISBLANK(VLOOKUP(A9,'Ambiente de Control'!$B$24:$K$222,9,0)),"",VLOOKUP(A9,'Ambiente de Control'!$B$24:$K$222,9,0)) -> 3 | M9: 1 | N9: 0.9583333333
A10: 3.1 | B10: 3 | C10: =+MID(VLOOKUP(A10,'Ambiente de Control'!$B$21:$C$222,2,0),4,LEN(VLOOKUP(A10,'Ambiente de Control'!$B$21:$C$222,2,0))-4) -> Definición y evaluación de la Política de Administración del Riesgo (Acorde con lineamientos de la Guía para la Administración del Riesgo de Gestión y Corrupción y Diseño de Controles en Entidades Públicas). La evaluación debe considerar su aplicación en la entidad, cambios en el entorno que puedan defnir ajustes, dificultades para su desarrollo | D10: Ambiente de Control | E10: =+VLOOKUP(A10,'Ambiente de Control'!$B$21:$D$222,3,0) -> Dimension de Direccionamiento Estrategico y Planeaciòn Politica de Planeaciòn Institucional Dimension Control Interno | F10: =+VLOOKUP(A10,'Ambiente de Control'!$B$21:$K$222,10,0) -> Mantenimiento del control | G10: =+VLOOKUP(A10,'Ambiente de Control'!$B$21:$O$222,13,0) -> 60.28965 | H10: 13 | I10: Cuando en el análisis de los requerimientos en los diferenes componentes del MECI se cuente con aspectos evaluados en nivel 1 (presente) y 1 (funcionando); 2 (presente) y 1 (funcionando). | J10: Establece la planeación estratégica con responsables, metas, tiempos que faciliten el seguimiento y aplicación de controles que garanticen de forma razonable su cumplimiento. Así mismo a partir de la política de riesgo, establecer sistemas de gestión de riesgos y las responsabilidades para controlar riesgos específicos bajo la supervisión de la alta dirección. | K10: =+IF(ISBLANK(VLOOKUP(A10,'Ambiente de Control'!$B$24:$F$222,5,0)),"",VLOOKUP(A10,'Ambiente de Control'!$B$24:$F$222,5,0)) -> 3 | L10: =+IF(ISBLANK(VLOOKUP(A10,'Ambiente de Control'!$B$24:$K$222,9,0)),"",VLOOKUP(A10,'Ambiente de Control'!$B$24:$K$222,9,0)) -> 3 | M10: 1 | N10: 0.9583333333
A11: 3.3 | B11: 3 | C11: =+MID(VLOOKUP(A11,'Ambiente de Control'!$B$21:$C$222,2,0),4,LEN(VLOOKUP(A11,'Ambiente de Control'!$B$21:$C$222,2,0))-4) -> Evaluación de la planeación estratégica, considerando alertas frente a posibles incumplimientos, necesidades de recursos, cambios en el entorno que puedan afectar su desarrollo, entre otros aspectos que garanticen de forma razonable su cumplimiento | D11: Ambiente de Control | E11: =+VLOOKUP(A11,'Ambiente de Control'!$B$21:$D$222,3,0) -> Diimensiòn Evaluacion de Resultados Politica de Seguimiento y Evaluaciòn al Desemepeño Institucional Dimension Control Interno Lineas de defensa | F11: =+VLOOKUP(A11,'Ambiente de Control'!$B$21:$K$222,10,0) -> Mantenimiento del control | G11: =+VLOOKUP(A11,'Ambiente de Control'!$B$21:$O$222,13,0) -> 60.48965 | H11: 15 | I11: Cuando en el análisis de los requerimientos en los diferenes componentes del MECI se cuente con aspectos evaluados en nivel 1 (presente) y 1 (funcionando); 2 (presente) y 1 (funcionando). | J11: Establece la planeación estratégica con responsables, metas, tiempos que faciliten el seguimiento y aplicación de controles que garanticen de forma razonable su cumplimiento. Así mismo a partir de la política de riesgo, establecer sistemas de gestión de riesgos y las responsabilidades para controlar riesgos específicos bajo la supervisión de la alta dirección. | K11: =+IF(ISBLANK(VLOOKUP(A11,'Ambiente de Control'!$B$24:$F$222,5,0)),"",VLOOKUP(A11,'Ambiente de Control'!$B$24:$F$222,5,0)) -> 3 | L11: =+IF(ISBLANK(VLOOKUP(A11,'Ambiente de Control'!$B$24:$K$222,9,0)),"",VLOOKUP(A11,'Ambiente de Control'!$B$24:$K$222,9,0)) -> 3 | M11: 1 | N11: 0.9583333333
A12: 3.2 | B12: 3 | C12: =+MID(VLOOKUP(A12,'Ambiente de Control'!$B$21:$C$222,2,0),4,LEN(VLOOKUP(A12,'Ambiente de Control'!$B$21:$C$222,2,0))-4) -> La Alta Dirección frente a la política de Administración del Riesgo definen los niveles de aceptación del riesgo, teniendo en cuenta cada uno de los objetivos establecidos. | D12: Ambiente de Control | E12: =+VLOOKUP(A12,'Ambiente de Control'!$B$21:$D$222,3,0) -> Dimension Control Interno Politica de Control Interno Linea Estrategica | F12: =+VLOOKUP(A12,'Ambiente de Control'!$B$21:$K$222,10,0) -> Mantenimiento del control | G12: =+VLOOKUP(A12,'Ambiente de Control'!$B$21:$O$222,13,0) -> 60.389653 | H12: 14 | I12: Cuando en el análisis de los requerimientos en los diferenes componentes del MECI se cuente con aspectos evaluados en nivel 1 (presente) y 1 (funcionando); 2 (presente) y 1 (funcionando). | J12: Establece la planeación estratégica con responsables, metas, tiempos que faciliten el seguimiento y aplicación de controles que garanticen de forma razonable su cumplimiento. Así mismo a partir de la política de riesgo, establecer sistemas de gestión de riesgos y las responsabilidades para controlar riesgos específicos bajo la supervisión de la alta dirección. | K12: =+IF(ISBLANK(VLOOKUP(A12,'Ambiente de Control'!$B$24:$F$222,5,0)),"",VLOOKUP(A12,'Ambiente de Control'!$B$24:$F$222,5,0)) -> 3 | L12: =+IF(ISBLANK(VLOOKUP(A12,'Ambiente de Control'!$B$24:$K$222,9,0)),"",VLOOKUP(A12,'Ambiente de Control'!$B$24:$K$222,9,0)) -> 3 | M12: 1 | N12: 0.9583333333
A13: 4.1 | B13: 4 | C13: =+MID(VLOOKUP(A13,'Ambiente de Control'!$B$21:$C$222,2,0),4,LEN(VLOOKUP(A13,'Ambiente de Control'!$B$21:$C$222,2,0))-4) -> Evaluación de la Planeación Estratégica del Talento Humano | D13: Ambiente de Control | E13: =+VLOOKUP(A13,'Ambiente de Control'!$B$21:$D$222,3,0) -> Dimension de Talento Humano Politica Gestion Estrategica del Talento Humano Dimension de Control Interno Lineas de Defensa | F13: =+VLOOKUP(A13,'Ambiente de Control'!$B$21:$K$222,10,0) -> Deficiencia de control (diseño o ejecución) | G13: =+VLOOKUP(A13,'Ambiente de Control'!$B$21:$O$222,13,0) -> 0.58965 | H13: 1 | I13: Cuando en el análisis de los requerimientos en los diferenes componentes del MECI se cuente con aspectos evaluados en nivel 2 (presente) y 2 (funcionando); 3 (presente) y 1 (funcionando); 3 (presente) y 2 (funcionando). | J13: Compromiso con la competencia de todo el personal, por lo que la gestión del talento humano tiene un carácter estratégico con el despliegue de actividades clave para todo el ciclo de vida del servidor público –ingreso, permanencia y retiro. | K13: =+IF(ISBLANK(VLOOKUP(A13,'Ambiente de Control'!$B$24:$F$222,5,0)),"",VLOOKUP(A13,'Ambiente de Control'!$B$24:$F$222,5,0)) -> 3 | L13: =+IF(ISBLANK(VLOOKUP(A13,'Ambiente de Control'!$B$24:$K$222,9,0)),"",VLOOKUP(A13,'Ambiente de Control'!$B$24:$K$222,9,0)) -> 1 | M13: 0.5 | N13: 0.9583333333
A14: 4.2 | B14: 4 | C14: =+MID(VLOOKUP(A14,'Ambiente de Control'!$B$21:$C$222,2,0),4,LEN(VLOOKUP(A14,'Ambiente de Control'!$B$21:$C$222,2,0))-4) -> Evaluación de las actividades relacionadas con el Ingreso del personal | D14: Ambiente de Control | E14: =+VLOOKUP(A14,'Ambiente de Control'!$B$21:$D$222,3,0) -> Dimension de Talento Humano Politica Gestion Estrategica del Talento Humano Dimension de Control Interno Lineas de Defensa | F14: =+VLOOKUP(A14,'Ambiente de Control'!$B$21:$K$222,10,0) -> Mantenimiento del control | G14: =+VLOOKUP(A14,'Ambiente de Control'!$B$21:$O$222,13,0) -> 60.68965 | H14: 16 | I14: Cuando en el análisis de los requerimientos en los diferenes componentes del MECI se cuente con aspectos evaluados en nivel 1 (presente) y 1 (funcionando); 2 (presente) y 1 (funcionando). | J14: Compromiso con la competencia de todo el personal, por lo que la gestión del talento humano tiene un carácter estratégico con el despliegue de actividades clave para todo el ciclo de vida del servidor público –ingreso, permanencia y retiro. | K14: =+IF(ISBLANK(VLOOKUP(A14,'Ambiente de Control'!$B$24:$F$222,5,0)),"",VLOOKUP(A14,'Ambiente de Control'!$B$24:$F$222,5,0)) -> 3 | L14: =+IF(ISBLANK(VLOOKUP(A14,'Ambiente de Control'!$B$24:$K$222,9,0)),"",VLOOKUP(A14,'Ambiente de Control'!$B$24:$K$222,9,0)) -> 3 | M14: 1 | N14: 0.9583333333
A15: 4.3 | B15: 4 | C15: =+MID(VLOOKUP(A15,'Ambiente de Control'!$B$21:$C$222,2,0),4,LEN(VLOOKUP(A15,'Ambiente de Control'!$B$21:$C$222,2,0))-4) -> Evaluación de las actividades relacionadas con la permanencia del personal | D15: Ambiente de Control | E15: =+VLOOKUP(A15,'Ambiente de Control'!$B$21:$D$222,3,0) -> Dimension de Talento Humano Politica Gestion Estrategica del Talento Humano Dimension de Control Interno Lineas de Defensa | F15: =+VLOOKUP(A15,'Ambiente de Control'!$B$21:$K$222,10,0) -> Mantenimiento del control | G15: =+VLOOKUP(A15,'Ambiente de Control'!$B$21:$O$222,13,0) -> 0.78965 | H15: 2 | I15: Cuando en el análisis de los requerimientos en los diferenes componentes del MECI se cuente con aspectos evaluados en nivel 1 (presente) y 1 (funcionando); 2 (presente) y 1 (funcionando). | J15: Compromiso con la competencia de todo el personal, por lo que la gestión del talento humano tiene un carácter estratégico con el despliegue de actividades clave para todo el ciclo de vida del servidor público –ingreso, permanencia y retiro. | K15: =+IF(ISBLANK(VLOOKUP(A15,'Ambiente de Control'!$B$24:$F$222,5,0)),"",VLOOKUP(A15,'Ambiente de Control'!$B$24:$F$222,5,0)) -> 3 | L15: =+IF(ISBLANK(VLOOKUP(A15,'Ambiente de Control'!$B$24:$K$222,9,0)),"",VLOOKUP(A15,'Ambiente de Control'!$B$24:$K$222,9,0)) -> 3 | M15: 1 | N15: 0.9583333333
A16: 4.4 | B16: 4 | C16: =+MID(VLOOKUP(A16,'Ambiente de Control'!$B$21:$C$222,2,0),4,LEN(VLOOKUP(A16,'Ambiente de Control'!$B$21:$C$222,2,0))-4) -> Analizar si se cuenta con políticas claras y comunicadas relacionadas con la responsabilidad de cada servidor sobre el desarrollo y mantenimiento del control interno (1a línea de defensa | D16: Ambiente de Control | E16: =+VLOOKUP(A16,'Ambiente de Control'!$B$21:$D$222,3,0) -> Dimension de Talento Humano Politica Gestion Estrategica del Talento Humano Dimension de Control Interno Lineas de Defensa | F16: =+VLOOKUP(A16,'Ambiente de Control'!$B$21:$K$222,10,0) -> Mantenimiento del control | G16: =+VLOOKUP(A16,'Ambiente de Control'!$B$21:$O$222,13,0) -> 0.88965 | H16: 3 | I16: Cuando en el análisis de los requerimientos en los diferenes componentes del MECI se cuente con aspectos evaluados en nivel 1 (presente) y 1 (funcionando); 2 (presente) y 1 (funcionando). | J16: Compromiso con la competencia de todo el personal, por lo que la gestión del talento humano tiene un carácter estratégico con el despliegue de actividades clave para todo el ciclo de vida del servidor público –ingreso, permanencia y retiro. | K16: =+IF(ISBLANK(VLOOKUP(A16,'Ambiente de Control'!$B$24:$F$222,5,0)),"",VLOOKUP(A16,'Ambiente de Control'!$B$24:$F$222,5,0)) -> 3 | L16: =+IF(ISBLANK(VLOOKUP(A16,'Ambiente de Control'!$B$24:$K$222,9,0)),"",VLOOKUP(A16,'Ambiente de Control'!$B$24:$K$222,9,0)) -> 3 | M16: 1 | N16: 0.9583333333
A17: 4.5 | B17: 4 | C17: =+MID(VLOOKUP(A17,'Ambiente de Control'!$B$21:$C$222,2,0),4,LEN(VLOOKUP(A17,'Ambiente de Control'!$B$21:$C$222,2,0))-4) -> Evaluación de las actividades relacionadas con el retiro del personal | D17: Ambiente de Control | E17: =+VLOOKUP(A17,'Ambiente de Control'!$B$21:$D$222,3,0) -> Dimension de Talento Humano Politica Gestion Estrategica del Talento Humano Dimension de Control Interno Lineas de Defensa | F17: =+VLOOKUP(A17,'Ambiente de Control'!$B$21:$K$222,10,0) -> Mantenimiento del control | G17: =+VLOOKUP(A17,'Ambiente de Control'!$B$21:$O$222,13,0) -> 60.98965 | H17: 17 | I17: Cuando en el análisis de los requerimientos en los diferenes componentes del MECI se cuente con aspectos evaluados en nivel 1 (presente) y 1 (funcionando); 2 (presente) y 1 (funcionando). | J17: Compromiso con la competencia de todo el personal, por lo que la gestión del talento humano tiene un carácter estratégico con el despliegue de actividades clave para todo el ciclo de vida del servidor público –ingreso, permanencia y retiro. | K17: =+IF(ISBLANK(VLOOKUP(A17,'Ambiente de Control'!$B$24:$F$222,5,0)),"",VLOOKUP(A17,'Ambiente de Control'!$B$24:$F$222,5,0)) -> 3 | L17: =+IF(ISBLANK(VLOOKUP(A17,'Ambiente de Control'!$B$24:$K$222,9,0)),"",VLOOKUP(A17,'Ambiente de Control'!$B$24:$K$222,9,0)) -> 3 | M17: 1 | N17: 0.9583333333
A18: 4.6 | B18: 4 | C18: =+MID(VLOOKUP(A18,'Ambiente de Control'!$B$21:$C$222,2,0),4,LEN(VLOOKUP(A18,'Ambiente de Control'!$B$21:$C$222,2,0))-4) -> Evaluar el impacto del Plan Institucional de Capacitación - PI | D18: Ambiente de Control | E18: =+VLOOKUP(A18,'Ambiente de Control'!$B$21:$D$222,3,0) -> Dimension de Talento Humano Politica Gestion Estrategica del Talento Humano Dimension de Control Interno Lineas de Defensa | F18: =+VLOOKUP(A18,'Ambiente de Control'!$B$21:$K$222,10,0) -> Deficiencia de control (diseño o ejecución) | G18: =+VLOOKUP(A18,'Ambiente de Control'!$B$21:$O$222,13,0) -> 20.989652 | H18: 4 | I18: Cuando en el análisis de los requerimientos en los diferenes componentes del MECI se cuente con aspectos evaluados en nivel 2 (presente) y 2 (funcionando); 3 (presente) y 1 (funcionando); 3 (presente) y 2 (funcionando). | J18: Compromiso con la competencia de todo el personal, por lo que la gestión del talento humano tiene un carácter estratégico con el despliegue de actividades clave para todo el ciclo de vida del servidor público –ingreso, permanencia y retiro. | K18: =+IF(ISBLANK(VLOOKUP(A18,'Ambiente de Control'!$B$24:$F$222,5,0)),"",VLOOKUP(A18,'Ambiente de Control'!$B$24:$F$222,5,0)) -> 3 | L18: =+IF(ISBLANK(VLOOKUP(A18,'Ambiente de Control'!$B$24:$K$222,9,0)),"",VLOOKUP(A18,'Ambiente de Control'!$B$24:$K$222,9,0)) -> 2 | M18: 0.5 | N18: 0.9583333333
A19: 4.7 | B19: 4 | C19: =+MID(VLOOKUP(A19,'Ambiente de Control'!$B$21:$C$222,2,0),4,LEN(VLOOKUP(A19,'Ambiente de Control'!$B$21:$C$222,2,0))-4) -> Evaluación frente a los productos y servicios en los cuales participan los contratistas de apoyo | D19: Ambiente de Control | E19: =+VLOOKUP(A19,'Ambiente de Control'!$B$21:$D$222,3,0) -> Dimension de Talento Humano Politica Gestion Estrategica del Talento Humano Dimension de Control Interno Lineas de Defensa | F19: =+VLOOKUP(A19,'Ambiente de Control'!$B$21:$K$222,10,0) -> Mantenimiento del control | G19: =+VLOOKUP(A19,'Ambiente de Control'!$B$21:$O$222,13,0) -> 61.89623 | H19: =+_xlfn.RANK.EQ(G19,$G$2:$G$82,1) -> 24 | I19: Cuando en el análisis de los requerimientos en los diferenes componentes del MECI se cuente con aspectos evaluados en nivel 1 (presente) y 1 (funcionando); 2 (presente) y 1 (funcionando). | J19: Compromiso con la competencia de todo el personal, por lo que la gestión del talento humano tiene un carácter estratégico con el despliegue de actividades clave para todo el ciclo de vida del servidor público –ingreso, permanencia y retiro. | K19: =+IF(ISBLANK(VLOOKUP(A19,'Ambiente de Control'!$B$24:$F$222,5,0)),"",VLOOKUP(A19,'Ambiente de Control'!$B$24:$F$222,5,0)) -> 3 | L19: =+IF(ISBLANK(VLOOKUP(A19,'Ambiente de Control'!$B$24:$K$222,9,0)),"",VLOOKUP(A19,'Ambiente de Control'!$B$24:$K$222,9,0)) -> 3 | M19: 1 | N19: =+AVERAGEIF($D$2:$D$82,D19,$M$2:$M$82) -> 0.9583333333
A20: 5.1 | B20: 5 | C20: =+MID(VLOOKUP(A20,'Ambiente de Control'!$B$21:$C$222,2,0),4,LEN(VLOOKUP(A20,'Ambiente de Control'!$B$21:$C$222,2,0))-4) -> Acorde con la estructura del Esquema de Líneas de Defensa se han definido estándares de reporte, periodicidad y responsables frente a diferentes temas críticos de la entidad | D20: Ambiente de Control | E20: =+VLOOKUP(A20,'Ambiente de Control'!$B$21:$D$222,3,0) -> Dimension de Informaciòn y Comunicaciòn Dimensiòn de Control Interno Lineas de Defensa | F20: =+VLOOKUP(A20,'Ambiente de Control'!$B$21:$K$222,10,0) -> Mantenimiento del control | G20: =+VLOOKUP(A20,'Ambiente de Control'!$B$21:$O$222,13,0) -> 61.1896 | H20: 18 | I20: Cuando en el análisis de los requerimientos en los diferenes componentes del MECI se cuente con aspectos evaluados en nivel 1 (presente) y 1 (funcionando); 2 (presente) y 1 (funcionando). | J20: La entidad establece líneas de reporte dentro de la entidad para evaluar el funcionamiento del Sistema de Control Interno. | K20: =+IF(ISBLANK(VLOOKUP(A20,'Ambiente de Control'!$B$24:$F$222,5,0)),"",VLOOKUP(A20,'Ambiente de Control'!$B$24:$F$222,5,0)) -> 3 | L20: =+IF(ISBLANK(VLOOKUP(A20,'Ambiente de Control'!$B$24:$K$222,9,0)),"",VLOOKUP(A20,'Ambiente de Control'!$B$24:$K$222,9,0)) -> 3 | M20: 1 | N20: 0.9583333333
A21: 5.2 | B21: 5 | C21: =+MID(VLOOKUP(A21,'Ambiente de Control'!$B$21:$C$222,2,0),4,LEN(VLOOKUP(A21,'Ambiente de Control'!$B$21:$C$222,2,0))-4) -> La Alta Dirección analiza la información asociada con la generación de reportes financieros | D21: Ambiente de Control | E21: =+VLOOKUP(A21,'Ambiente de Control'!$B$21:$D$222,3,0) -> Dimensiòn de Control Interno Linea de Estrategica | F21: =+VLOOKUP(A21,'Ambiente de Control'!$B$21:$K$222,10,0) -> Mantenimiento del control | G21: =+VLOOKUP(A21,'Ambiente de Control'!$B$21:$O$222,13,0) -> 61.28965 | H21: 19 | I21: Cuando en el análisis de los requerimientos en los diferenes componentes del MECI se cuente con aspectos evaluados en nivel 1 (presente) y 1 (funcionando); 2 (presente) y 1 (funcionando). | J21: La entidad establece líneas de reporte dentro de la entidad para evaluar el funcionamiento del Sistema de Control Interno. | K21: =+IF(ISBLANK(VLOOKUP(A21,'Ambiente de Control'!$B$24:$F$222,5,0)),"",VLOOKUP(A21,'Ambiente de Control'!$B$24:$F$222,5,0)) -> 3 | L21: =+IF(ISBLANK(VLOOKUP(A21,'Ambiente de Control'!$B$24:$K$222,9,0)),"",VLOOKUP(A21,'Ambiente de Control'!$B$24:$K$222,9,0)) -> 3 | M21: 1 | N21: 0.9583333333
A22: 5.3 | B22: 5 | C22: =+MID(VLOOKUP(A22,'Ambiente de Control'!$B$21:$C$222,2,0),4,LEN(VLOOKUP(A22,'Ambiente de Control'!$B$21:$C$222,2,0))-4) -> Teniendo en cuenta la información suministrada por la 2a y 3a línea de defensa se toman decisiones a tiempo para garantizar el cumplimiento de las metas y objetivos | D22: Ambiente de Control | E22: =+VLOOKUP(A22,'Ambiente de Control'!$B$21:$D$222,3,0) -> Dimensiòn de Control Interno Lineas de Defensa | F22: =+VLOOKUP(A22,'Ambiente de Control'!$B$21:$K$222,10,0) -> Mantenimiento del control | G22: =+VLOOKUP(A22,'Ambiente de Control'!$B$21:$O$222,13,0) -> 61.38963 | H22: 20 | I22: Cuando en el análisis de los requerimientos en los diferenes componentes del MECI se cuente con aspectos evaluados en nivel 1 (presente) y 1 (funcionando); 2 (presente) y 1 (funcionando). | J22: La entidad establece líneas de reporte dentro de la entidad para evaluar el funcionamiento del Sistema de Control Interno. | K22: =+IF(ISBLANK(VLOOKUP(A22,'Ambiente de Control'!$B$24:$F$222,5,0)),"",VLOOKUP(A22,'Ambiente de Control'!$B$24:$F$222,5,0)) -> 3 | L22: =+IF(ISBLANK(VLOOKUP(A22,'Ambiente de Control'!$B$24:$K$222,9,0)),"",VLOOKUP(A22,'Ambiente de Control'!$B$24:$K$222,9,0)) -> 3 | M22: 1 | N22: 0.9583333333
A23: 5.4 | B23: 5 | C23: =+MID(VLOOKUP(A23,'Ambiente de Control'!$B$21:$C$222,2,0),4,LEN(VLOOKUP(A23,'Ambiente de Control'!$B$21:$C$222,2,0))-4) -> Se evalúa la estructura de control a partir de los cambios en procesos, procedimientos, u otras herramientas, a fin de garantizar su adecuada formulación y afectación frente a la gestión del riesgo | D23: Ambiente de Control | E23: =+VLOOKUP(A23,'Ambiente de Control'!$B$21:$D$222,3,0) -> Dimension de Gestion con Valores para Resultado Politica de Fortalecimiento Organizacional y Simplificaciòn de Procesos Dimension Control Interno Lineas de Defensa | F23: =+VLOOKUP(A23,'Ambiente de Control'!$B$21:$K$222,10,0) -> Mantenimiento del control | G23: =+VLOOKUP(A23,'Ambiente de Control'!$B$21:$O$222,13,0) -> 61.48963 | H23: 21 | I23: Cuando en el análisis de los requerimientos en los diferenes componentes del MECI se cuente con aspectos evaluados en nivel 1 (presente) y 1 (funcionando); 2 (presente) y 1 (funcionando). | J23: La entidad establece líneas de reporte dentro de la entidad para evaluar el funcionamiento del Sistema de Control Interno. | K23: =+IF(ISBLANK(VLOOKUP(A23,'Ambiente de Control'!$B$24:$F$222,5,0)),"",VLOOKUP(A23,'Ambiente de Control'!$B$24:$F$222,5,0)) -> 3 | L23: =+IF(ISBLANK(VLOOKUP(A23,'Ambiente de Control'!$B$24:$K$222,9,0)),"",VLOOKUP(A23,'Ambiente de Control'!$B$24:$K$222,9,0)) -> 3 | M23: 1 | N23: 0.9583333333
A24: 5.5 | B24: 5 | C24: =+MID(VLOOKUP(A24,'Ambiente de Control'!$B$21:$C$222,2,0),4,LEN(VLOOKUP(A24,'Ambiente de Control'!$B$21:$C$222,2,0))-4) -> La entidad aprueba y hace seguimiento al Plan Anual de Auditoría presentado y ejecutado por parte de la Oficina de Control Interno | D24: Ambiente de Control | E24: =+VLOOKUP(A24,'Ambiente de Control'!$B$21:$D$222,3,0) -> Dimension Control Interno Linea Estrategica | F24: =+VLOOKUP(A24,'Ambiente de Control'!$B$21:$K$222,10,0) -> Mantenimiento del control | G24: =+VLOOKUP(A24,'Ambiente de Control'!$B$21:$O$222,13,0) -> 61.58965 | H24: 22 | I24: Cuando en el análisis de los requerimientos en los diferenes componentes del MECI se cuente con aspectos evaluados en nivel 1 (presente) y 1 (funcionando); 2 (presente) y 1 (funcionando). | J24: La entidad establece líneas de reporte dentro de la entidad para evaluar el funcionamiento del Sistema de Control Interno. | K24: =+IF(ISBLANK(VLOOKUP(A24,'Ambiente de Control'!$B$24:$F$222,5,0)),"",VLOOKUP(A24,'Ambiente de Control'!$B$24:$F$222,5,0)) -> 3 | L24: =+IF(ISBLANK(VLOOKUP(A24,'Ambiente de Control'!$B$24:$K$222,9,0)),"",VLOOKUP(A24,'Ambiente de Control'!$B$24:$K$222,9,0)) -> 3 | M24: 1 | N24: 0.9583333333
A25: 5.6 | B25: 5 | C25: =+MID(VLOOKUP(A25,'Ambiente de Control'!$B$21:$C$222,2,0),4,LEN(VLOOKUP(A25,'Ambiente de Control'!$B$21:$C$222,2,0))-4) -> La entidad analiza los informes presentados por la Oficina de Control Interno y evalúa su impacto en relación con la mejora institucional | D25: Ambiente de Control | E25: =+VLOOKUP(A25,'Ambiente de Control'!$B$21:$D$222,3,0) -> Dimension Control Interno Linea Estrategica | F25: =+VLOOKUP(A25,'Ambiente de Control'!$B$21:$K$222,10,0) -> Mantenimiento del control | G25: =+VLOOKUP(A25,'Ambiente de Control'!$B$21:$O$222,13,0) -> 61.689653 | H25: 23 | I25: Cuando en el análisis de los requerimientos en los diferenes componentes del MECI se cuente con aspectos evaluados en nivel 1 (presente) y 1 (funcionando); 2 (presente) y 1 (funcionando). | J25: La entidad establece líneas de reporte dentro de la entidad para evaluar el funcionamiento del Sistema de Control Interno. | K25: =+IF(ISBLANK(VLOOKUP(A25,'Ambiente de Control'!$B$24:$F$222,5,0)),"",VLOOKUP(A25,'Ambiente de Control'!$B$24:$F$222,5,0)) -> 3 | L25: =+IF(ISBLANK(VLOOKUP(A25,'Ambiente de Control'!$B$24:$K$222,9,0)),"",VLOOKUP(A25,'Ambiente de Control'!$B$24:$K$222,9,0)) -> 3 | M25: 1 | N25: 0.9583333333
A26: 6.1 | B26: 6 | C26: =+MID(VLOOKUP(A26,'Evaluación de riesgos'!$B$13:$C$132,2,0),4,LEN(VLOOKUP(A26,'Evaluación de riesgos'!$B$13:$C$132,2,0))-4) -> La Entidad cuenta con mecanismos para vincular o relacionar el plan estratégico con los objetivos estratégicos y estos a su vez con los objetivos operativos | D26: Evaluación de riesgos | E26: =+VLOOKUP(A26,'Evaluación de riesgos'!$B$13:$K$132,3,0) -> Dimension de Direccionamiento Estratetegico y Planeacion. Politica de Planeacion Institucional | F26: =+VLOOKUP(A26,'Evaluación de riesgos'!$B$13:$K$132,10,0) -> Mantenimiento del control | G26: =+VLOOKUP(A26,'Evaluación de riesgos'!$B$13:$O$132,13,0) -> 141.7896 | H26: 25 | I26: Cuando en el análisis de los requerimientos en los diferenes componentes del MECI se cuente con aspectos evaluados en nivel 1 (presente) y 1 (funcionando); 2 (presente) y 1 (funcionando). | J26: Definición de objetivos con suficiente claridad para identificar y evaluar los riesgos relacionados: i)Estratégicos; ii)Operativos; iii)Legales y Presupuestales; iv)De Información Financiera y no Financiera. | K26: =+IF(ISBLANK(VLOOKUP(A26,'Evaluación de riesgos'!$B$16:$F$132,5,0)),"",VLOOKUP(A26,'Evaluación de riesgos'!$B$16:$F$132,5,0)) -> 3 | L26: =+IF(ISBLANK(VLOOKUP(A26,'Evaluación de riesgos'!$B$16:$J$132,9,9)),"",VLOOKUP(A26,'Evaluación de riesgos'!$B$16:$J$132,9,9)) -> 3 | M26: 1 | N26: 1
A27: 6.2 | B27: 6 | C27: =+MID(VLOOKUP(A27,'Evaluación de riesgos'!$B$13:$C$132,2,0),4,LEN(VLOOKUP(A27,'Evaluación de riesgos'!$B$13:$C$132,2,0))-4) -> Los objetivos de los procesos, programas o proyectos (según aplique) que están definidos, son específicos, medibles, alcanzables, relevantes, delimitados en el tiempo | D27: Evaluación de riesgos | E27: =+VLOOKUP(A27,'Evaluación de riesgos'!$B$13:$K$132,3,0) -> Dimension de Gestion con Valores para Resultado Politica de Fortalecimiento Organizacional y Simplificaciòn de Procesos | F27: =+VLOOKUP(A27,'Evaluación de riesgos'!$B$13:$K$132,10,0) -> Mantenimiento del control | G27: =+VLOOKUP(A27,'Evaluación de riesgos'!$B$13:$O$132,13,0) -> 141.8896 | H27: 26 | I27: Cuando en el análisis de los requerimientos en los diferenes componentes del MECI se cuente con aspectos evaluados en nivel 1 (presente) y 1 (funcionando); 2 (presente) y 1 (funcionando). | J27: Definición de objetivos con suficiente claridad para identificar y evaluar los riesgos relacionados: i)Estratégicos; ii)Operativos; iii)Legales y Presupuestales; iv)De Información Financiera y no Financiera. | K27: =+IF(ISBLANK(VLOOKUP(A27,'Evaluación de riesgos'!$B$16:$F$132,5,0)),"",VLOOKUP(A27,'Evaluación de riesgos'!$B$16:$F$132,5,0)) -> 3 | L27: =+IF(ISBLANK(VLOOKUP(A27,'Evaluación de riesgos'!$B$16:$J$132,9,9)),"",VLOOKUP(A27,'Evaluación de riesgos'!$B$16:$J$132,9,9)) -> 3 | M27: 1 | N27: 1
A28: 6.3 | B28: 6 | C28: =+MID(VLOOKUP(A28,'Evaluación de riesgos'!$B$13:$C$132,2,0),4,LEN(VLOOKUP(A28,'Evaluación de riesgos'!$B$13:$C$132,2,0))-4) -> La Alta Dirección evalúa periódicamente los objetivos establecidos para asegurar que estos continúan siendo consistentes y apropiados para la Entidad.C32:H39E32C32:J39C32:I39C32:L39C32:Z39E32C32:J39C32:N39C32:L39C32:K3 | D28: Evaluación de riesgos | E28: =+VLOOKUP(A28,'Evaluación de riesgos'!$B$13:$K$132,3,0) -> Dimension de Direccionamiento Estratetegico y Planeacion. Politica de Planeacion Institucional Dimension Control Interno Linea Estrategica | F28: =+VLOOKUP(A28,'Evaluación de riesgos'!$B$13:$K$132,10,0) -> Mantenimiento del control | G28: =+VLOOKUP(A28,'Evaluación de riesgos'!$B$13:$O$132,13,0) -> 141.9754 | H28: 27 | I28: Cuando en el análisis de los requerimientos en los diferenes componentes del MECI se cuente con aspectos evaluados en nivel 1 (presente) y 1 (funcionando); 2 (presente) y 1 (funcionando). | J28: Definición de objetivos con suficiente claridad para identificar y evaluar los riesgos relacionados: i)Estratégicos; ii)Operativos; iii)Legales y Presupuestales; iv)De Información Financiera y no Financiera. | K28: =+IF(ISBLANK(VLOOKUP(A28,'Evaluación de riesgos'!$B$16:$F$132,5,0)),"",VLOOKUP(A28,'Evaluación de riesgos'!$B$16:$F$132,5,0)) -> 3 | L28: =+IF(ISBLANK(VLOOKUP(A28,'Evaluación de riesgos'!$B$16:$J$132,9,9)),"",VLOOKUP(A28,'Evaluación de riesgos'!$B$16:$J$132,9,9)) -> 3 | M28: 1 | N28: 1
A29: 7.1 | B29: 7 | C29: =+MID(VLOOKUP(A29,'Evaluación de riesgos'!$B$13:$C$132,2,0),4,LEN(VLOOKUP(A29,'Evaluación de riesgos'!$B$13:$C$132,2,0))-4) -> Teniendo en cuenta la estructura de la política de Administración del Riesgo, su alcance define lineamientos para toda la entidad, incluyendo regionales, áreas tercerizadas u otras instancias que afectan la prestación del servicio | D29: Evaluación de riesgos | E29: =+VLOOKUP(A29,'Evaluación de riesgos'!$B$13:$K$132,3,0) -> Dimension de Direccionamiento Estratetegico y Planeacion. Politica de Planeacion Institucional | F29: =+VLOOKUP(A29,'Evaluación de riesgos'!$B$13:$K$132,10,0) -> Mantenimiento del control | G29: =+VLOOKUP(A29,'Evaluación de riesgos'!$B$13:$O$132,13,0) -> 142.0896 | H29: 28 | I29: Cuando en el análisis de los requerimientos en los diferenes componentes del MECI se cuente con aspectos evaluados en nivel 1 (presente) y 1 (funcionando); 2 (presente) y 1 (funcionando). | J29: Identificación y análisis de riesgos (Analiza factores internos y externos; Implica a los niveles apropiados de la dirección; Determina cómo responder a los riesgos; Determina la importancia de los riesgos). | K29: =+IF(ISBLANK(VLOOKUP(A29,'Evaluación de riesgos'!$B$16:$F$132,5,0)),"",VLOOKUP(A29,'Evaluación de riesgos'!$B$16:$F$132,5,0)) -> 3 | L29: =+IF(ISBLANK(VLOOKUP(A29,'Evaluación de riesgos'!$B$16:$J$132,9,9)),"",VLOOKUP(A29,'Evaluación de riesgos'!$B$16:$J$132,9,9)) -> 3 | M29: 1 | N29: 1
A30: 7.2 | B30: 7 | C30: =+MID(VLOOKUP(A30,'Evaluación de riesgos'!$B$13:$C$132,2,0),4,LEN(VLOOKUP(A30,'Evaluación de riesgos'!$B$13:$C$132,2,0))-4) -> La Oficina de Planeación, Gerencia de Riesgos (donde existan), como 2a línea de defensa, consolidan información clave frente a la gestión del riesgo | D30: Evaluación de riesgos | E30: =+VLOOKUP(A30,'Evaluación de riesgos'!$B$13:$K$132,3,0) -> Dimension Control Interno Lineas de Defensa | F30: =+VLOOKUP(A30,'Evaluación de riesgos'!$B$13:$K$132,10,0) -> Mantenimiento del control | G30: =+VLOOKUP(A30,'Evaluación de riesgos'!$B$13:$O$132,13,0) -> 142.1456 | H30: 29 | I30: Cuando en el análisis de los requerimientos en los diferenes componentes del MECI se cuente con aspectos evaluados en nivel 1 (presente) y 1 (funcionando); 2 (presente) y 1 (funcionando). | J30: Identificación y análisis de riesgos (Analiza factores internos y externos; Implica a los niveles apropiados de la dirección; Determina cómo responder a los riesgos; Determina la importancia de los riesgos). | K30: =+IF(ISBLANK(VLOOKUP(A30,'Evaluación de riesgos'!$B$16:$F$132,5,0)),"",VLOOKUP(A30,'Evaluación de riesgos'!$B$16:$F$132,5,0)) -> 3 | L30: =+IF(ISBLANK(VLOOKUP(A30,'Evaluación de riesgos'!$B$16:$J$132,9,9)),"",VLOOKUP(A30,'Evaluación de riesgos'!$B$16:$J$132,9,9)) -> 3 | M30: 1 | N30: 1
A31: 7.3 | B31: 7 | C31: =+MID(VLOOKUP(A31,'Evaluación de riesgos'!$B$13:$C$132,2,0),4,LEN(VLOOKUP(A31,'Evaluación de riesgos'!$B$13:$C$132,2,0))-4) -> A partir de la información consolidada y reportada por la 2a línea de defensa (7.2), la Alta Dirección analiza sus resultados y en especial considera si se han presentado materializaciones de riesgo | D31: Evaluación de riesgos | E31: =+VLOOKUP(A31,'Evaluación de riesgos'!$B$13:$K$132,3,0) -> Dimension Control Interno Lineas de Defensa | F31: =+VLOOKUP(A31,'Evaluación de riesgos'!$B$13:$K$132,10,0) -> Mantenimiento del control | G31: =+VLOOKUP(A31,'Evaluación de riesgos'!$B$13:$O$132,13,0) -> 142.2365 | H31: 30 | I31: Cuando en el análisis de los requerimientos en los diferenes componentes del MECI se cuente con aspectos evaluados en nivel 1 (presente) y 1 (funcionando); 2 (presente) y 1 (funcionando). | J31: Identificación y análisis de riesgos (Analiza factores internos y externos; Implica a los niveles apropiados de la dirección; Determina cómo responder a los riesgos; Determina la importancia de los riesgos). | K31: =+IF(ISBLANK(VLOOKUP(A31,'Evaluación de riesgos'!$B$16:$F$132,5,0)),"",VLOOKUP(A31,'Evaluación de riesgos'!$B$16:$F$132,5,0)) -> 3 | L31: =+IF(ISBLANK(VLOOKUP(A31,'Evaluación de riesgos'!$B$16:$J$132,9,9)),"",VLOOKUP(A31,'Evaluación de riesgos'!$B$16:$J$132,9,9)) -> 3 | M31: 1 | N31: 1
A32: 7.4 | B32: 7 | C32: =+MID(VLOOKUP(A32,'Evaluación de riesgos'!$B$13:$C$132,2,0),4,LEN(VLOOKUP(A32,'Evaluación de riesgos'!$B$13:$C$132,2,0))-4) -> Cuando se detectan materializaciones de riesgo, se definen los cursos de acción en relación con la revisión y actualización del mapa de riesgos correspondiente | D32: Evaluación de riesgos | E32: =+VLOOKUP(A32,'Evaluación de riesgos'!$B$13:$K$132,3,0) -> Dimension de Direccionamiento Estratetegico y Planeacion. Politica de Planeacion Institucional Dimension Control Interno Lineas de Defensa | F32: =+VLOOKUP(A32,'Evaluación de riesgos'!$B$13:$K$132,10,0) -> Mantenimiento del control | G32: =+VLOOKUP(A32,'Evaluación de riesgos'!$B$13:$O$132,13,0) -> 142.3896 | H32: 31 | I32: Cuando en el análisis de los requerimientos en los diferenes componentes del MECI se cuente con aspectos evaluados en nivel 1 (presente) y 1 (funcionando); 2 (presente) y 1 (funcionando). | J32: Identificación y análisis de riesgos (Analiza factores internos y externos; Implica a los niveles apropiados de la dirección; Determina cómo responder a los riesgos; Determina la importancia de los riesgos). | K32: =+IF(ISBLANK(VLOOKUP(A32,'Evaluación de riesgos'!$B$16:$F$132,5,0)),"",VLOOKUP(A32,'Evaluación de riesgos'!$B$16:$F$132,5,0)) -> 3 | L32: =+IF(ISBLANK(VLOOKUP(A32,'Evaluación de riesgos'!$B$16:$J$132,9,9)),"",VLOOKUP(A32,'Evaluación de riesgos'!$B$16:$J$132,9,9)) -> 3 | M32: 1 | N32: 1
A33: 7.5 | B33: 7 | C33: =+MID(VLOOKUP(A33,'Evaluación de riesgos'!$B$13:$C$132,2,0),4,LEN(VLOOKUP(A33,'Evaluación de riesgos'!$B$13:$C$132,2,0))-4) -> Se llevan a cabo seguimientos a las acciones definidas para resolver materializaciones de riesgos detectadas | D33: Evaluación de riesgos | E33: =+VLOOKUP(A33,'Evaluación de riesgos'!$B$13:$K$132,3,0) -> Dimension de Evaluacion de Resultados Politica de Seguimiento y evaluacion al Desempeño Institucional. Dimension Control Interno Lineas de Defensa | F33: =+VLOOKUP(A33,'Evaluación de riesgos'!$B$13:$K$132,10,0) -> Mantenimiento del control | G33: =+VLOOKUP(A33,'Evaluación de riesgos'!$B$13:$O$132,13,0) -> 142.4563 | H33: 32 | I33: Cuando en el análisis de los requerimientos en los diferenes componentes del MECI se cuente con aspectos evaluados en nivel 1 (presente) y 1 (funcionando); 2 (presente) y 1 (funcionando). | J33: Identificación y análisis de riesgos (Analiza factores internos y externos; Implica a los niveles apropiados de la dirección; Determina cómo responder a los riesgos; Determina la importancia de los riesgos). | K33: =+IF(ISBLANK(VLOOKUP(A33,'Evaluación de riesgos'!$B$16:$F$132,5,0)),"",VLOOKUP(A33,'Evaluación de riesgos'!$B$16:$F$132,5,0)) -> 3 | L33: =+IF(ISBLANK(VLOOKUP(A33,'Evaluación de riesgos'!$B$16:$J$132,9,9)),"",VLOOKUP(A33,'Evaluación de riesgos'!$B$16:$J$132,9,9)) -> 3 | M33: 1 | N33: 1
A34: 8.1 | B34: 8 | C34: =+MID(VLOOKUP(A34,'Evaluación de riesgos'!$B$13:$C$132,2,0),4,LEN(VLOOKUP(A34,'Evaluación de riesgos'!$B$13:$C$132,2,0))-4) -> La Alta Dirección acorde con el análisis del entorno interno y externo, define los procesos, programas o proyectos (según aplique), susceptibles de posibles actos de corrupción | D34: Evaluación de riesgos | E34: =+VLOOKUP(A34,'Evaluación de riesgos'!$B$13:$K$132,3,0) -> Dimension de Direccionamiento Estratetegico y Planeacion. Politica de Planeacion Institucional | F34: =+VLOOKUP(A34,'Evaluación de riesgos'!$B$13:$K$132,10,0) -> Mantenimiento del control | G34: =+VLOOKUP(A34,'Evaluación de riesgos'!$B$13:$O$132,13,0) -> 142.5458 | H34: 33 | I34: =+IF(F34=$F$2,$P$4,IF(F34=$F$3,$P$2,$P$3)) -> Cuando en el análisis de los requerimientos en los diferenes componentes del MECI se cuente con aspectos evaluados en nivel 1 (presente) y 1 (funcionando); 2 (presente) y 1 (funcionando). | J34: Evaluación del riesgo de fraude o corrupción. Cumplimiento artículo 73 de la Ley 1474 de 2011, relacionado con la prevención de los riesgos de corrupción. | K34: =+IF(ISBLANK(VLOOKUP(A34,'Evaluación de riesgos'!$B$16:$F$132,5,0)),"",VLOOKUP(A34,'Evaluación de riesgos'!$B$16:$F$132,5,0)) -> 3 | L34: =+IF(ISBLANK(VLOOKUP(A34,'Evaluación de riesgos'!$B$16:$J$132,9,9)),"",VLOOKUP(A34,'Evaluación de riesgos'!$B$16:$J$132,9,9)) -> 3 | M34: 1 | N34: 1
A35: 8.2 | B35: 8 | C35: =+MID(VLOOKUP(A35,'Evaluación de riesgos'!$B$13:$C$132,2,0),4,LEN(VLOOKUP(A35,'Evaluación de riesgos'!$B$13:$C$132,2,0))-4) -> La Alta Dirección monitorea los riesgos de corrupción con la periodicidad establecida en la Política de Administración del Riesgo | D35: Evaluación de riesgos | E35: =+VLOOKUP(A35,'Evaluación de riesgos'!$B$13:$K$132,3,0) -> Dimension de Control Interno Linea Estrategica | F35: =+VLOOKUP(A35,'Evaluación de riesgos'!$B$13:$K$132,10,0) -> Mantenimiento del control | G35: =+VLOOKUP(A35,'Evaluación de riesgos'!$B$13:$O$132,13,0) -> 142.6321 | H35: 34 | I35: Cuando en el análisis de los requerimientos en los diferenes componentes del MECI se cuente con aspectos evaluados en nivel 1 (presente) y 1 (funcionando); 2 (presente) y 1 (funcionando). | J35: Evaluación del riesgo de fraude o corrupción. Cumplimiento artículo 73 de la Ley 1474 de 2011, relacionado con la prevención de los riesgos de corrupción. | K35: =+IF(ISBLANK(VLOOKUP(A35,'Evaluación de riesgos'!$B$16:$F$132,5,0)),"",VLOOKUP(A35,'Evaluación de riesgos'!$B$16:$F$132,5,0)) -> 3 | L35: =+IF(ISBLANK(VLOOKUP(A35,'Evaluación de riesgos'!$B$16:$J$132,9,9)),"",VLOOKUP(A35,'Evaluación de riesgos'!$B$16:$J$132,9,9)) -> 3 | M35: 1 | N35: 1
A36: 8.3 | B36: 8 | C36: =+MID(VLOOKUP(A36,'Evaluación de riesgos'!$B$13:$C$132,2,0),4,LEN(VLOOKUP(A36,'Evaluación de riesgos'!$B$13:$C$132,2,0))-4) -> Para el desarrollo de las actividades de control, la entidad considera la adecuada división de las funciones y que éstas se encuentren segregadas en diferentes personas para reducir el riesgo de acciones fraudulentas | D36: Evaluación de riesgos | E36: =+VLOOKUP(A36,'Evaluación de riesgos'!$B$13:$K$132,3,0) -> Dimension de Contro Interno Lineas de Defensa | F36: =+VLOOKUP(A36,'Evaluación de riesgos'!$B$13:$K$132,10,0) -> Mantenimiento del control | G36: =+VLOOKUP(A36,'Evaluación de riesgos'!$B$13:$O$132,13,0) -> 142.7456 | H36: 35 | I36: Cuando en el análisis de los requerimientos en los diferenes componentes del MECI se cuente con aspectos evaluados en nivel 1 (presente) y 1 (funcionando); 2 (presente) y 1 (funcionando). | J36: Evaluación del riesgo de fraude o corrupción. Cumplimiento artículo 73 de la Ley 1474 de 2011, relacionado con la prevención de los riesgos de corrupción. | K36: =+IF(ISBLANK(VLOOKUP(A36,'Evaluación de riesgos'!$B$16:$F$132,5,0)),"",VLOOKUP(A36,'Evaluación de riesgos'!$B$16:$F$132,5,0)) -> 3 | L36: =+IF(ISBLANK(VLOOKUP(A36,'Evaluación de riesgos'!$B$16:$J$132,9,9)),"",VLOOKUP(A36,'Evaluación de riesgos'!$B$16:$J$132,9,9)) -> 3 | M36: 1 | N36: 1
A37: 8.4 | B37: 8 | C37: =+MID(VLOOKUP(A37,'Evaluación de riesgos'!$B$13:$C$132,2,0),4,LEN(VLOOKUP(A37,'Evaluación de riesgos'!$B$13:$C$132,2,0))-4) -> La Alta Dirección evalúa fallas en los controles (diseño y ejecución) para definir cursos de acción apropiados para su mejora | D37: Evaluación de riesgos | E37: =+VLOOKUP(A37,'Evaluación de riesgos'!$B$13:$K$132,3,0) -> Dimension de Control Interno Linea Estrategica | F37: =+VLOOKUP(A37,'Evaluación de riesgos'!$B$13:$K$132,10,0) -> Mantenimiento del control | G37: =+VLOOKUP(A37,'Evaluación de riesgos'!$B$13:$O$132,13,0) -> 142.8745 | H37: 36 | I37: Cuando en el análisis de los requerimientos en los diferenes componentes del MECI se cuente con aspectos evaluados en nivel 1 (presente) y 1 (funcionando); 2 (presente) y 1 (funcionando). | J37: Evaluación del riesgo de fraude o corrupción. Cumplimiento artículo 73 de la Ley 1474 de 2011, relacionado con la prevención de los riesgos de corrupción. | K37: =+IF(ISBLANK(VLOOKUP(A37,'Evaluación de riesgos'!$B$16:$F$132,5,0)),"",VLOOKUP(A37,'Evaluación de riesgos'!$B$16:$F$132,5,0)) -> 3 | L37: =+IF(ISBLANK(VLOOKUP(A37,'Evaluación de riesgos'!$B$16:$J$132,9,9)),"",VLOOKUP(A37,'Evaluación de riesgos'!$B$16:$J$132,9,9)) -> 3 | M37: 1 | N37: 1
A38: 9.1 | B38: 9 | C38: =+MID(VLOOKUP(A38,'Evaluación de riesgos'!$B$13:$C$132,2,0),4,LEN(VLOOKUP(A38,'Evaluación de riesgos'!$B$13:$C$132,2,0))-4) -> Acorde con lo establecido en la política de Administración del Riesgo, se monitorean los factores internos y externos definidos para la entidad, a fin de establecer cambios en el entorno que determinen nuevos riesgos o ajustes a los existentes | D38: Evaluación de riesgos | E38: =+VLOOKUP(A38,'Evaluación de riesgos'!$B$13:$K$132,3,0) -> Dimension de Direccionamiento Estrategico Politica de Planeacion Institucional | F38: =+VLOOKUP(A38,'Evaluación de riesgos'!$B$13:$K$132,10,0) -> Mantenimiento del control | G38: =+VLOOKUP(A38,'Evaluación de riesgos'!$B$13:$O$132,13,0) -> 142.9635 | H38: 37 | I38: Cuando en el análisis de los requerimientos en los diferenes componentes del MECI se cuente con aspectos evaluados en nivel 1 (presente) y 1 (funcionando); 2 (presente) y 1 (funcionando). | J38: Identificación y análisis de cambios significativos | K38: =+IF(ISBLANK(VLOOKUP(A38,'Evaluación de riesgos'!$B$16:$F$132,5,0)),"",VLOOKUP(A38,'Evaluación de riesgos'!$B$16:$F$132,5,0)) -> 3 | L38: =+IF(ISBLANK(VLOOKUP(A38,'Evaluación de riesgos'!$B$16:$J$132,9,9)),"",VLOOKUP(A38,'Evaluación de riesgos'!$B$16:$J$132,9,9)) -> 3 | M38: 1 | N38: 1
A39: 9.2 | B39: 9 | C39: =+MID(VLOOKUP(A39,'Evaluación de riesgos'!$B$13:$C$132,2,0),4,LEN(VLOOKUP(A39,'Evaluación de riesgos'!$B$13:$C$132,2,0))-4) -> La Alta Dirección analiza los riesgos asociados a actividades tercerizadas, regionales u otras figuras externas que afecten la prestación del servicio a los usuarios, basados en los informes de la segunda y tercera linea de defensa | D39: Evaluación de riesgos | E39: =+VLOOKUP(A39,'Evaluación de riesgos'!$B$13:$K$132,3,0) -> Dimension de Control Interno Lineas de Defensa | F39: =+VLOOKUP(A39,'Evaluación de riesgos'!$B$13:$K$132,10,0) -> Mantenimiento del control | G39: =+VLOOKUP(A39,'Evaluación de riesgos'!$B$13:$O$132,13,0) -> 143.0125 | H39: 38 | I39: Cuando en el análisis de los requerimientos en los diferenes componentes del MECI se cuente con aspectos evaluados en nivel 1 (presente) y 1 (funcionando); 2 (presente) y 1 (funcionando). | J39: Identificación y análisis de cambios significativos | K39: =+IF(ISBLANK(VLOOKUP(A39,'Evaluación de riesgos'!$B$16:$F$132,5,0)),"",VLOOKUP(A39,'Evaluación de riesgos'!$B$16:$F$132,5,0)) -> 3 | L39: =+IF(ISBLANK(VLOOKUP(A39,'Evaluación de riesgos'!$B$16:$J$132,9,9)),"",VLOOKUP(A39,'Evaluación de riesgos'!$B$16:$J$132,9,9)) -> 3 | M39: 1 | N39: 1
A40: 9.3 | B40: 9 | C40: =+MID(VLOOKUP(A40,'Evaluación de riesgos'!$B$13:$C$132,2,0),4,LEN(VLOOKUP(A40,'Evaluación de riesgos'!$B$13:$C$132,2,0))-4) -> La Alta Dirección monitorea los riesgos aceptados revisando que sus condiciones no hayan cambiado y definir su pertinencia para sostenerlos o ajustarlos | D40: Evaluación de riesgos | E40: =+VLOOKUP(A40,'Evaluación de riesgos'!$B$13:$K$132,3,0) -> Dimension de Control Interno Linea Estrategica | F40: =+VLOOKUP(A40,'Evaluación de riesgos'!$B$13:$K$132,10,0) -> Mantenimiento del control | G40: =+VLOOKUP(A40,'Evaluación de riesgos'!$B$13:$O$132,13,0) -> 143.1236 | H40: 39 | I40: Cuando en el análisis de los requerimientos en los diferenes componentes del MECI se cuente con aspectos evaluados en nivel 1 (presente) y 1 (funcionando); 2 (presente) y 1 (funcionando). | J40: Identificación y análisis de cambios significativos | K40: =+IF(ISBLANK(VLOOKUP(A40,'Evaluación de riesgos'!$B$16:$F$132,5,0)),"",VLOOKUP(A40,'Evaluación de riesgos'!$B$16:$F$132,5,0)) -> 3 | L40: =+IF(ISBLANK(VLOOKUP(A40,'Evaluación de riesgos'!$B$16:$J$132,9,9)),"",VLOOKUP(A40,'Evaluación de riesgos'!$B$16:$J$132,9,9)) -> 3 | M40: 1 | N40: 1
A41: 9.4 | B41: 9 | C41: =+MID(VLOOKUP(A41,'Evaluación de riesgos'!$B$13:$C$132,2,0),4,LEN(VLOOKUP(A41,'Evaluación de riesgos'!$B$13:$C$132,2,0))-4) -> La Alta Dirección evalúa fallas en los controles (diseño y ejecución) para definir cursos de acción apropiados para su mejora, basados en los informes de la segunda y tercera linea de defensa | D41: Evaluación de riesgos | E41: =+VLOOKUP(A41,'Evaluación de riesgos'!$B$13:$K$132,3,0) -> Dimension de Control Interno Lineas de Defensa | F41: =+VLOOKUP(A41,'Evaluación de riesgos'!$B$13:$K$132,10,0) -> Mantenimiento del control | G41: =+VLOOKUP(A41,'Evaluación de riesgos'!$B$13:$O$132,13,0) -> 143.2456 | H41: 40 | I41: Cuando en el análisis de los requerimientos en los diferenes componentes del MECI se cuente con aspectos evaluados en nivel 1 (presente) y 1 (funcionando); 2 (presente) y 1 (funcionando). | J41: Identificación y análisis de cambios significativos | K41: =+IF(ISBLANK(VLOOKUP(A41,'Evaluación de riesgos'!$B$16:$F$132,5,0)),"",VLOOKUP(A41,'Evaluación de riesgos'!$B$16:$F$132,5,0)) -> 3 | L41: =+IF(ISBLANK(VLOOKUP(A41,'Evaluación de riesgos'!$B$16:$J$132,9,9)),"",VLOOKUP(A41,'Evaluación de riesgos'!$B$16:$J$132,9,9)) -> 3 | M41: 1 | N41: 1
A42: 9.5 | B42: 9 | C42: =+MID(VLOOKUP(A42,'Evaluación de riesgos'!$B$13:$C$132,2,0),4,LEN(VLOOKUP(A42,'Evaluación de riesgos'!$B$13:$C$132,2,0))-4) -> La entidad analiza el impacto sobre el control interno por cambios en los diferentes niveles organizacionales | D42: Evaluación de riesgos | E42: =+VLOOKUP(A42,'Evaluación de riesgos'!$B$13:$K$132,3,0) -> Dimension de Direccionamiento Estrategico y Planeacion Politica de Planeacion Institucional Dimension de Control Interno Linea Estrategica | F42: =+VLOOKUP(A42,'Evaluación de riesgos'!$B$13:$K$132,10,0) -> Mantenimiento del control | G42: =+VLOOKUP(A42,'Evaluación de riesgos'!$B$13:$O$132,13,0) -> 143.3654 | H42: 41 | I42: Cuando en el análisis de los requerimientos en los diferenes componentes del MECI se cuente con aspectos evaluados en nivel 1 (presente) y 1 (funcionando); 2 (presente) y 1 (funcionando). | J42: Identificación y análisis de cambios significativos | K42: =+IF(ISBLANK(VLOOKUP(A42,'Evaluación de riesgos'!$B$16:$F$132,5,0)),"",VLOOKUP(A42,'Evaluación de riesgos'!$B$16:$F$132,5,0)) -> 3 | L42: =+IF(ISBLANK(VLOOKUP(A42,'Evaluación de riesgos'!$B$16:$J$132,9,9)),"",VLOOKUP(A42,'Evaluación de riesgos'!$B$16:$J$132,9,9)) -> 3 | M42: 1 | N42: 1
A43: 10.1 | B43: =+LEFT(A43,2) -> 10 | C43: =+MID(VLOOKUP(A43,'Actividades de control'!$B$13:$C$172,2,0),5,LEN(VLOOKUP(A43,'Actividades de control'!$B$13:$C$172,2,0))-5) -> Para el desarrollo de las actividades de control, la entidad considera la adecuada división de las funciones y que éstas se encuentren segregadas en diferentes personas para reducir el riesgo de error o de incumplimientos de alto impacto en la operación | D43: Actividades de control | E43: =+VLOOKUP(A43,'Actividades de control'!$B$18:$K$118,3,0) -> Dimension de Control Interno Lineas de Defensa | F43: =+VLOOKUP(A43,'Actividades de control'!$B$18:$K$118,10,0) -> Mantenimiento del control | G43: =+VLOOKUP(A43,'Actividades de control'!$B$13:$N$172,13,0) -> 223.4569 | H43: 42 | I43: Cuando en el análisis de los requerimientos en los diferenes componentes del MECI se cuente con aspectos evaluados en nivel 1 (presente) y 1 (funcionando); 2 (presente) y 1 (funcionando). | J43: Diseño y desarrollo de actividades de control (Integra el desarrollo de controles con la evaluación de riesgos; tiene en cuenta a qué nivel se aplican las actividades; facilita la segregación de funciones). | K43: =+IF(ISBLANK(VLOOKUP(A43,'Actividades de control'!$B$21:$F$118,5,0)),"",VLOOKUP(A43,'Actividades de control'!$B$21:$F$118,5,0)) -> 3 | L43: =+IF(ISBLANK(VLOOKUP(A43,'Actividades de control'!$B$21:$J$118,9,0)),"",VLOOKUP(A43,'Actividades de control'!$B$21:$J$118,9,0)) -> 3 | M43: 1 | N43: 1
A44: 10.2 | B44: =+LEFT(A44,2) -> 10 | C44: =+MID(VLOOKUP(A44,'Actividades de control'!$B$13:$C$172,2,0),5,LEN(VLOOKUP(A44,'Actividades de control'!$B$13:$C$172,2,0))-5) -> Se han idenfificado y documentado las situaciones específicas en donde no es posible segregar adecuadamente las funciones (ej: falta de personal, presupuesto), con el fin de definir actividades de control alternativas para cubrir los riesgos identificados. | D44: Actividades de control | E44: =+VLOOKUP(A44,'Actividades de control'!$B$18:$K$118,3,0) -> Dimension de Control Interno Lineas de Defensa | F44: =+VLOOKUP(A44,'Actividades de control'!$B$18:$K$118,10,0) -> Mantenimiento del control | G44: =+VLOOKUP(A44,'Actividades de control'!$B$13:$N$172,13,0) -> 223.5478 | H44: 43 | I44: Cuando en el análisis de los requerimientos en los diferenes componentes del MECI se cuente con aspectos evaluados en nivel 1 (presente) y 1 (funcionando); 2 (presente) y 1 (funcionando). | J44: Diseño y desarrollo de actividades de control (Integra el desarrollo de controles con la evaluación de riesgos; tiene en cuenta a qué nivel se aplican las actividades; facilita la segregación de funciones). | K44: =+IF(ISBLANK(VLOOKUP(A44,'Actividades de control'!$B$21:$F$118,5,0)),"",VLOOKUP(A44,'Actividades de control'!$B$21:$F$118,5,0)) -> 3 | L44: =+IF(ISBLANK(VLOOKUP(A44,'Actividades de control'!$B$21:$J$118,9,0)),"",VLOOKUP(A44,'Actividades de control'!$B$21:$J$118,9,0)) -> 3 | M44: 1 | N44: 1
A45: 10.3 | B45: 10 | C45: =+MID(VLOOKUP(A45,'Actividades de control'!$B$13:$C$172,2,0),5,LEN(VLOOKUP(A45,'Actividades de control'!$B$13:$C$172,2,0))-5) -> El diseño de otros sistemas de gestión (bajo normas o estándares internacionales como la ISO), se intregan de forma adecuada a la estructura de control de la entidad | D45: Actividades de control | E45: =+VLOOKUP(A45,'Actividades de control'!$B$18:$K$118,3,0) -> Dimension de Gestion con Valores para Resultados Dimension de Control Interno Lineas de Defensa | F45: =+VLOOKUP(A45,'Actividades de control'!$B$18:$K$118,10,0) -> Mantenimiento del control | G45: =+VLOOKUP(A45,'Actividades de control'!$B$13:$N$172,13,0) -> 223.6458 | H45: 44 | I45: Cuando en el análisis de los requerimientos en los diferenes componentes del MECI se cuente con aspectos evaluados en nivel 1 (presente) y 1 (funcionando); 2 (presente) y 1 (funcionando). | J45: Diseño y desarrollo de actividades de control (Integra el desarrollo de controles con la evaluación de riesgos; tiene en cuenta a qué nivel se aplican las actividades; facilita la segregación de funciones). | K45: =+IF(ISBLANK(VLOOKUP(A45,'Actividades de control'!$B$21:$F$118,5,0)),"",VLOOKUP(A45,'Actividades de control'!$B$21:$F$118,5,0)) -> 3 | L45: =+IF(ISBLANK(VLOOKUP(A45,'Actividades de control'!$B$21:$J$118,9,0)),"",VLOOKUP(A45,'Actividades de control'!$B$21:$J$118,9,0)) -> 3 | M45: 1 | N45: 1
A46: 11.1 | B46: 11 | C46: =+MID(VLOOKUP(A46,'Actividades de control'!$B$13:$C$172,2,0),5,LEN(VLOOKUP(A46,'Actividades de control'!$B$13:$C$172,2,0))-5) -> La entidad establece actividades de control relevantes sobre las infraestructuras tecnológicas; los procesos de gestión de la seguridad y sobre los procesos de adquisición, desarrollo y mantenimiento de tecnologías | D46: Actividades de control | E46: =+VLOOKUP(A46,'Actividades de control'!$B$18:$K$118,3,0) -> Dimension de Gestion con Valores para el Resultado Politica de Gobierno Digital Politica de Seguridad Digital | F46: =+VLOOKUP(A46,'Actividades de control'!$B$18:$K$118,10,0) -> Mantenimiento del control | G46: =+VLOOKUP(A46,'Actividades de control'!$B$13:$N$172,13,0) -> 223.7896 | H46: 45 | I46: Cuando en el análisis de los requerimientos en los diferenes componentes del MECI se cuente con aspectos evaluados en nivel 1 (presente) y 1 (funcionando); 2 (presente) y 1 (funcionando). | J46: Seleccionar y Desarrolla controles generales sobre TI para apoyar la consecución de los objetivos . | K46: =+IF(ISBLANK(VLOOKUP(A46,'Actividades de control'!$B$21:$F$118,5,0)),"",VLOOKUP(A46,'Actividades de control'!$B$21:$F$118,5,0)) -> 3 | L46: =+IF(ISBLANK(VLOOKUP(A46,'Actividades de control'!$B$21:$J$118,9,0)),"",VLOOKUP(A46,'Actividades de control'!$B$21:$J$118,9,0)) -> 3 | M46: 1 | N46: 1
